Workbook

Sheet Assignment Worksheet
A1: SDA AUCTION COST RECOVERY ASSIGNMENT WORKSHEET | N1: Send completed worksheet to Cash@SDAinc.net
A2: (Attachment to Assignment) | N2: Call 404-352-9936 for assistance.
A3: Dealer Name: | J3: Payment Types:
C4: Address: | G4: City: | J4: W - Weekly
A5: State: | E5: Zip: | G5: Date: | J5: B - BiWeekly
A6: Phone: | G6: Email: | J6: M - Monthly
A7: Fax: | J7: S - Semimonthly
B9: Payment Type | C9: Customer Contract Sales Date | D9: # of Payments Remaining | E9: Current Principal Balance | F9: Auction Receipt Date | G9: Cost of Vehicle | H9: VIN | I9: Next Payment Due Date | J9: Car Year | K9: Make | L9: Model | M9: Last Name | N9: First Name
A10: EX | B10: M | C10: 2017-12-15 | D10: 36 | E10: 9899 | F10: 2017-11-22 | G10: 4000 | H10: 12AB13578002 | I10: 2018-01-15 | J10: 2011 | K10: Chevy | L10: Malibu | M10: Smith | N10: David
A11: 1 | B11: M | C11: 2018-01-01 | D11: 36 | E11: 9482.27 | F11: 2018-01-03 | G11: 5250 | H11: 1231233123212310 | I11: 2018-01-15 | J11: 2011
A12: 2
A13: 3
A14: 4
A15: 5
A16: 6
A17: 7
A18: 8
A19: 9
A20: 10
A21: 11
A22: 12
A23: 13
A24: 14
A25: 15
A26: 16
A27: 17
A28: 18
A29: 19
A30: 20
A31: 21
A32: 22
A33: 23
A34: 24
A35: 25
B36: Do not insert additional lines. Please start a new worksheet. SDA will consolidate the request. Send completed worksheet to Cash@SDAinc.net

Sheet B-Inputs (hidden)
A1: ACR Dealer Inputs
A2: Notes: Red Text is a variable to be completed by SDA Only. Blue Text is input comleted by Dealers. All Black text is a formula and is automatically calculated.
A4: Dealer Inputs | C4: Notes | D4: RCR Defaults
A5: Dealership Name: | B5: =+'Assignment Worksheet'!D3 -> 0 | C5: Copied from Dealer Completed Form | D5: Dealer Default
A6: State: | B6: TX | C6: Determines Checklist Requirements
A7: Batch #: | B7: 7
A8: Batch ID: | B8: RCR1
A9: Branch ID: | B9: DW1
A10: Pkg No: | B10: 1234A
A11: Funding Request Date:Date: | B11: 2018-05-03 | C11: Date received from Dealer
A14: Financial Deal Inputs | C14: Notes | D14: RCR Defaults
A15: NADA %: | B15: 1.25 | C15: 125% of the NADA Trade in Value as listed in Wayne Reaves | D15: 1.25
A16: NADA % for old Auction Receipts: | B16: 1 | C16: 100% of the NDAD Trade in Value is used when no Auction Receipt is received or is outdie the 90 day window. | D16: 1
A17: Customer Principal %: | B17: 0.65 | C17: 65% of initial customer principal loan as listed in sales agreement | D17: 0.65
A18: Advance Fee %: | B18: 0.07 | C18: Defined by Loan Committee | D18: 0.07
A19: MAX Advance Fee: | B19: 700 | C19: Maximum Advance Fee as defined by loan committee | D19: 700
A20: Max Funding Basis: | B20: 10000 | C20: Maximum funding per account as defined by loan committee | D20: 10000
A21: Monthly Advance Fee: | B21: 0.0125 | C21: Rate per month as defined by loan committee | D21: 0.0125
A22: Weekly Advance Fee: | B22: =+B21/4.333 -> 0.002884837295 | C22: Rate per week as calculated using monthly rate divided by 4.333 | D22: =+D21/4.333 -> 0.002884837295
A23: Max Term Months: | B23: 30 | C23: Maximum funding period as defined as calculated by customer term less term reduction below. | D23: 30
A24: Max Term Weeks: | B24: =+B23*4.333 -> 129.99 | C24: Maximum Term in weeks. Months times 4.333 weeks per month. | D24: 130
A25: Term Reduction in Months: | B25: 6 | C25: Term reduction as defined by loan committee | D25: 6
A26: Low Basis Term Cap: | B26: 5000 | C26: Funding Basis threshold requiring maximum fundting term | D26: 5000
A27: Low Baisis Term Months: | B27: 24 | C27: Low Funding Basis Term Max in months as defined by loan committee | D27: 24
A28: Low Basis Term Cap Weeks: | B28: =ROUND(B27*4.333,0) -> 104 | C28: Low Basis term in weeks as calculated by months times 4.333 weeks | D28: =ROUND(D27*4.333,0) -> 104
A29: Payoff Per Account: | B29: 99 | C29: Payoff fee per individual account as defined by loan committee | D29: 99
A30: Maximum Auction Age in Days: | B30: 90 | C30: Maximum age of vehicle prior to sale to customer - Auction slip date to customer sale date. | D30: 90
A31: Customer Replacement Fee: | B31: 130 | C31: Cost to change a customer name on an existing car. Not a car swap. Same car - same terms. No change in payments. | D31: 130
A32: Title Escrow Fee: | C32: Cost to dealer for not providing titles. | D32: 200
A33: Minimum Funding Term Weeks: | B33: 26 | C33: Term must be at least a certain number of weeks after the 6 month reduction is calculated. | D33: 26
A34: Wire Fee: | C34: Charged at the time of Funding. | D34: 30
A37: Funding Details | C37: Notes | D37: RCR Defaults
A38: Funding Date: | B38: 2018-05-04 | C38: SDA Defined Funding Date based on receipt of all items in Checklist
A39: Days Till First Payment: | B39: 14 | C39: Number of days from funding date till first payment is received by ACH | D39: 14
A40: First Payment Date: | B40: =+B38+B39 -> 2018-05-18
A41: Payment Frequency in Days: | B41: 7 | C41: Payment frequency as defined by Loan Committeee | D41: 7

Sheet C-NADA Values (hidden)
A1: NADA Values
A3: Dealership Name: | D3: =+'Assignment Worksheet'!D3 -> 0 | G3: Batch #: | H3: =+'B-Inputs'!B7 -> 7
C4: Address: | D4: =+'Assignment Worksheet'!D4 -> 0 | G4: City: | H4: =+'Assignment Worksheet'!H4 -> 0
A5: State: | D5: =+'Assignment Worksheet'!D5 -> 0
A6: Phone: | D6: =+'Assignment Worksheet'!D6 -> 0
A7: Fax: | D7: =+'Assignment Worksheet'!D7 -> 0
B9: Last Name | C9: First Name | D9: Car Year | E9: Make | F9: Model | G9: VIN | H9: NADA Average Trade-In Value | I9: Payment History | J9: Auction Date | K9: Term
A10: EX | B10: =+'Assignment Worksheet'!M10 -> Smith | C10: =+'Assignment Worksheet'!N10 -> David | D10: =+'Assignment Worksheet'!J10 -> 2011 | E10: =+'Assignment Worksheet'!K10 -> Chevy | F10: =+'Assignment Worksheet'!L10 -> Malibu | G10: =+'Assignment Worksheet'!H10 -> 12AB13578002 | H10: =+'G&K-Funding Analysis'!I10 -> 3125 | I10: Eligibility
A11: 1 | B11: =+'Assignment Worksheet'!M11 -> 0 | C11: =+'Assignment Worksheet'!N11 -> 0 | D11: =+'Assignment Worksheet'!J11 -> 2011 | E11: =+'Assignment Worksheet'!K11 -> 0 | F11: =+'Assignment Worksheet'!L11 -> 00:00:00 | G11: =+'Assignment Worksheet'!H11 -> 1231233123212310 | H11: 6000 | I11: =IF('Assignment Worksheet'!D11>0,IF(('Assignment Worksheet'!I11+30)>'Assignment Worksheet'!$H$5,"Eligible","Ineligible"),"") -> Eligible | J11: =IF('Assignment Worksheet'!D11>0,(+'G&K-Funding Analysis'!R11),0) -> Eligible | K11: =IF('Assignment Worksheet'!D11>0,+'G&K-Funding Analysis'!T11,0) -> Eligible
A12: 2 | B12: =+'Assignment Worksheet'!M12 -> 0 | C12: =+'Assignment Worksheet'!N12 -> 0 | D12: =+'Assignment Worksheet'!J12 -> 0 | E12: =+'Assignment Worksheet'!K12 -> 0 | F12: =+'Assignment Worksheet'!L12 -> 00:00:00 | G12: =+'Assignment Worksheet'!H12 -> 0 | I12: =IF('Assignment Worksheet'!D12>0,IF(('Assignment Worksheet'!I12+30)>'Assignment Worksheet'!$H$5,"Eligible","Ineligible"),"") ->  | J12: =IF('Assignment Worksheet'!D12>0,(+'G&K-Funding Analysis'!R12),0) -> 0 | K12: =IF('Assignment Worksheet'!D12>0,+'G&K-Funding Analysis'!T12,0) -> 0
A13: 3 | B13: =+'Assignment Worksheet'!M13 -> 0 | C13: =+'Assignment Worksheet'!N13 -> 0 | D13: =+'Assignment Worksheet'!J13 -> 0 | E13: =+'Assignment Worksheet'!K13 -> 0 | F13: =+'Assignment Worksheet'!L13 -> 00:00:00 | G13: =+'Assignment Worksheet'!H13 -> 0 | I13: =IF('Assignment Worksheet'!D13>0,IF(('Assignment Worksheet'!I13+30)>'Assignment Worksheet'!$H$5,"Eligible","Ineligible"),"") ->  | J13: =IF('Assignment Worksheet'!D13>0,(+'G&K-Funding Analysis'!R13),0) -> 0 | K13: =IF('Assignment Worksheet'!D13>0,+'G&K-Funding Analysis'!T13,0) -> 0
A14: 4 | B14: =+'Assignment Worksheet'!M14 -> 0 | C14: =+'Assignment Worksheet'!N14 -> 0 | D14: =+'Assignment Worksheet'!J14 -> 0 | E14: =+'Assignment Worksheet'!K14 -> 0 | F14: =+'Assignment Worksheet'!L14 -> 00:00:00 | G14: =+'Assignment Worksheet'!H14 -> 0 | I14: =IF('Assignment Worksheet'!D14>0,IF(('Assignment Worksheet'!I14+30)>'Assignment Worksheet'!$H$5,"Eligible","Ineligible"),"") ->  | J14: =IF('Assignment Worksheet'!D14>0,(+'G&K-Funding Analysis'!R14),0) -> 0 | K14: =IF('Assignment Worksheet'!D14>0,+'G&K-Funding Analysis'!T14,0) -> 0
A15: 5 | B15: =+'Assignment Worksheet'!M15 -> 0 | C15: =+'Assignment Worksheet'!N15 -> 0 | D15: =+'Assignment Worksheet'!J15 -> 0 | E15: =+'Assignment Worksheet'!K15 -> 0 | F15: =+'Assignment Worksheet'!L15 -> 00:00:00 | G15: =+'Assignment Worksheet'!H15 -> 0 | I15: =IF('Assignment Worksheet'!D15>0,IF(('Assignment Worksheet'!I15+30)>'Assignment Worksheet'!$H$5,"Eligible","Ineligible"),"") ->  | J15: =IF('Assignment Worksheet'!D15>0,(+'G&K-Funding Analysis'!R15),0) -> 0 | K15: =IF('Assignment Worksheet'!D15>0,+'G&K-Funding Analysis'!T15,0) -> 0
A16: 6 | B16: =+'Assignment Worksheet'!M16 -> 0 | C16: =+'Assignment Worksheet'!N16 -> 0 | D16: =+'Assignment Worksheet'!J16 -> 0 | E16: =+'Assignment Worksheet'!K16 -> 0 | F16: =+'Assignment Worksheet'!L16 -> 00:00:00 | G16: =+'Assignment Worksheet'!H16 -> 0 | I16: =IF('Assignment Worksheet'!D16>0,IF(('Assignment Worksheet'!I16+30)>'Assignment Worksheet'!$H$5,"Eligible","Ineligible"),"") ->  | J16: =IF('Assignment Worksheet'!D16>0,(+'G&K-Funding Analysis'!R16),0) -> 0 | K16: =IF('Assignment Worksheet'!D16>0,+'G&K-Funding Analysis'!T16,0) -> 0
A17: 7 | B17: =+'Assignment Worksheet'!M17 -> 0 | C17: =+'Assignment Worksheet'!N17 -> 0 | D17: =+'Assignment Worksheet'!J17 -> 0 | E17: =+'Assignment Worksheet'!K17 -> 0 | F17: =+'Assignment Worksheet'!L17 -> 00:00:00 | G17: =+'Assignment Worksheet'!H17 -> 0 | I17: =IF('Assignment Worksheet'!D17>0,IF(('Assignment Worksheet'!I17+30)>'Assignment Worksheet'!$H$5,"Eligible","Ineligible"),"") ->  | J17: =IF('Assignment Worksheet'!D17>0,(+'G&K-Funding Analysis'!R17),0) -> 0 | K17: =IF('Assignment Worksheet'!D17>0,+'G&K-Funding Analysis'!T17,0) -> 0
A18: 8 | B18: =+'Assignment Worksheet'!M18 -> 0 | C18: =+'Assignment Worksheet'!N18 -> 0 | D18: =+'Assignment Worksheet'!J18 -> 0 | E18: =+'Assignment Worksheet'!K18 -> 0 | F18: =+'Assignment Worksheet'!L18 -> 00:00:00 | G18: =+'Assignment Worksheet'!H18 -> 0 | I18: =IF('Assignment Worksheet'!D18>0,IF(('Assignment Worksheet'!I18+30)>'Assignment Worksheet'!$H$5,"Eligible","Ineligible"),"") ->  | J18: =IF('Assignment Worksheet'!D18>0,(+'G&K-Funding Analysis'!R18),0) -> 0 | K18: =IF('Assignment Worksheet'!D18>0,+'G&K-Funding Analysis'!T18,0) -> 0
A19: 9 | B19: =+'Assignment Worksheet'!M19 -> 0 | C19: =+'Assignment Worksheet'!N19 -> 0 | D19: =+'Assignment Worksheet'!J19 -> 0 | E19: =+'Assignment Worksheet'!K19 -> 0 | F19: =+'Assignment Worksheet'!L19 -> 00:00:00 | G19: =+'Assignment Worksheet'!H19 -> 0 | H19: 0 | I19: =IF('Assignment Worksheet'!D19>0,IF(('Assignment Worksheet'!I19+30)>'Assignment Worksheet'!$H$5,"Eligible","Ineligible"),"") ->  | J19: =IF('Assignment Worksheet'!D19>0,(+'G&K-Funding Analysis'!R19),0) -> 0 | K19: =IF('Assignment Worksheet'!D19>0,+'G&K-Funding Analysis'!T19,0) -> 0
A20: 10 | B20: =+'Assignment Worksheet'!M20 -> 0 | C20: =+'Assignment Worksheet'!N20 -> 0 | D20: =+'Assignment Worksheet'!J20 -> 0 | E20: =+'Assignment Worksheet'!K20 -> 0 | F20: =+'Assignment Worksheet'!L20 -> 00:00:00 | G20: =+'Assignment Worksheet'!H20 -> 0 | H20: 0 | I20: =IF('Assignment Worksheet'!D20>0,IF(('Assignment Worksheet'!I20+30)>'Assignment Worksheet'!$H$5,"Eligible","Ineligible"),"") ->  | J20: =IF('Assignment Worksheet'!D20>0,(+'G&K-Funding Analysis'!R20),0) -> 0 | K20: =IF('Assignment Worksheet'!D20>0,+'G&K-Funding Analysis'!T20,0) -> 0
A21: 11 | B21: =+'Assignment Worksheet'!M21 -> 0 | C21: =+'Assignment Worksheet'!N21 -> 0 | D21: =+'Assignment Worksheet'!J21 -> 0 | E21: =+'Assignment Worksheet'!K21 -> 0 | F21: =+'Assignment Worksheet'!L21 -> 00:00:00 | G21: =+'Assignment Worksheet'!H21 -> 0 | H21: 0 | I21: =IF('Assignment Worksheet'!D21>0,IF(('Assignment Worksheet'!I21+30)>'Assignment Worksheet'!$H$5,"Eligible","Ineligible"),"") ->  | J21: =IF('Assignment Worksheet'!D21>0,(+'G&K-Funding Analysis'!R21),0) -> 0 | K21: =IF('Assignment Worksheet'!D21>0,+'G&K-Funding Analysis'!T21,0) -> 0
A22: 12 | B22: =+'Assignment Worksheet'!M22 -> 0 | C22: =+'Assignment Worksheet'!N22 -> 0 | D22: =+'Assignment Worksheet'!J22 -> 0 | E22: =+'Assignment Worksheet'!K22 -> 0 | F22: =+'Assignment Worksheet'!L22 -> 00:00:00 | G22: =+'Assignment Worksheet'!H22 -> 0 | H22: 0 | I22: =IF('Assignment Worksheet'!D22>0,IF(('Assignment Worksheet'!I22+30)>'Assignment Worksheet'!$H$5,"Eligible","Ineligible"),"") ->  | J22: =IF('Assignment Worksheet'!D22>0,(+'G&K-Funding Analysis'!R22),0) -> 0 | K22: =IF('Assignment Worksheet'!D22>0,+'G&K-Funding Analysis'!T22,0) -> 0
A23: 13 | B23: =+'Assignment Worksheet'!M23 -> 0 | C23: =+'Assignment Worksheet'!N23 -> 0 | D23: =+'Assignment Worksheet'!J23 -> 0 | E23: =+'Assignment Worksheet'!K23 -> 0 | F23: =+'Assignment Worksheet'!L23 -> 00:00:00 | G23: =+'Assignment Worksheet'!H23 -> 0 | H23: 0 | I23: =IF('Assignment Worksheet'!D23>0,IF(('Assignment Worksheet'!I23+30)>'Assignment Worksheet'!$H$5,"Eligible","Ineligible"),"") ->  | J23: =IF('Assignment Worksheet'!D23>0,(+'G&K-Funding Analysis'!R23),0) -> 0 | K23: =IF('Assignment Worksheet'!D23>0,+'G&K-Funding Analysis'!T23,0) -> 0
A24: 14 | B24: =+'Assignment Worksheet'!M24 -> 0 | C24: =+'Assignment Worksheet'!N24 -> 0 | D24: =+'Assignment Worksheet'!J24 -> 0 | E24: =+'Assignment Worksheet'!K24 -> 0 | F24: =+'Assignment Worksheet'!L24 -> 00:00:00 | G24: =+'Assignment Worksheet'!H24 -> 0 | H24: 0 | I24: =IF('Assignment Worksheet'!D24>0,IF(('Assignment Worksheet'!I24+30)>'Assignment Worksheet'!$H$5,"Eligible","Ineligible"),"") ->  | J24: =IF('Assignment Worksheet'!D24>0,(+'G&K-Funding Analysis'!R24),0) -> 0 | K24: =IF('Assignment Worksheet'!D24>0,+'G&K-Funding Analysis'!T24,0) -> 0
A25: 15 | B25: =+'Assignment Worksheet'!M25 -> 0 | C25: =+'Assignment Worksheet'!N25 -> 0 | D25: =+'Assignment Worksheet'!J25 -> 0 | E25: =+'Assignment Worksheet'!K25 -> 0 | F25: =+'Assignment Worksheet'!L25 -> 00:00:00 | G25: =+'Assignment Worksheet'!H25 -> 0 | H25: 0 | I25: =IF('Assignment Worksheet'!D25>0,IF(('Assignment Worksheet'!I25+30)>'Assignment Worksheet'!$H$5,"Eligible","Ineligible"),"") ->  | J25: =IF('Assignment Worksheet'!D25>0,(+'G&K-Funding Analysis'!R25),0) -> 0 | K25: =IF('Assignment Worksheet'!D25>0,+'G&K-Funding Analysis'!T25,0) -> 0
A26: 16 | B26: =+'Assignment Worksheet'!M26 -> 0 | C26: =+'Assignment Worksheet'!N26 -> 0 | D26: =+'Assignment Worksheet'!J26 -> 0 | E26: =+'Assignment Worksheet'!K26 -> 0 | F26: =+'Assignment Worksheet'!L26 -> 00:00:00 | G26: =+'Assignment Worksheet'!H26 -> 0 | H26: 0 | I26: =IF('Assignment Worksheet'!D26>0,IF(('Assignment Worksheet'!I26+30)>'Assignment Worksheet'!$H$5,"Eligible","Ineligible"),"") ->  | J26: =IF('Assignment Worksheet'!D26>0,(+'G&K-Funding Analysis'!R26),0) -> 0 | K26: =IF('Assignment Worksheet'!D26>0,+'G&K-Funding Analysis'!T26,0) -> 0
A27: 17 | B27: =+'Assignment Worksheet'!M27 -> 0 | C27: =+'Assignment Worksheet'!N27 -> 0 | D27: =+'Assignment Worksheet'!J27 -> 0 | E27: =+'Assignment Worksheet'!K27 -> 0 | F27: =+'Assignment Worksheet'!L27 -> 00:00:00 | G27: =+'Assignment Worksheet'!H27 -> 0 | H27: 0 | I27: =IF('Assignment Worksheet'!D27>0,IF(('Assignment Worksheet'!I27+30)>'Assignment Worksheet'!$H$5,"Eligible","Ineligible"),"") ->  | J27: =IF('Assignment Worksheet'!D27>0,(+'G&K-Funding Analysis'!R27),0) -> 0 | K27: =IF('Assignment Worksheet'!D27>0,+'G&K-Funding Analysis'!T27,0) -> 0
A28: 18 | B28: =+'Assignment Worksheet'!M28 -> 0 | C28: =+'Assignment Worksheet'!N28 -> 0 | D28: =+'Assignment Worksheet'!J28 -> 0 | E28: =+'Assignment Worksheet'!K28 -> 0 | F28: =+'Assignment Worksheet'!L28 -> 00:00:00 | G28: =+'Assignment Worksheet'!H28 -> 0 | H28: 0 | I28: =IF('Assignment Worksheet'!D28>0,IF(('Assignment Worksheet'!I28+30)>'Assignment Worksheet'!$H$5,"Eligible","Ineligible"),"") ->  | J28: =IF('Assignment Worksheet'!D28>0,(+'G&K-Funding Analysis'!R28),0) -> 0 | K28: =IF('Assignment Worksheet'!D28>0,+'G&K-Funding Analysis'!T28,0) -> 0
A29: 19 | B29: =+'Assignment Worksheet'!M29 -> 0 | C29: =+'Assignment Worksheet'!N29 -> 0 | D29: =+'Assignment Worksheet'!J29 -> 0 | E29: =+'Assignment Worksheet'!K29 -> 0 | F29: =+'Assignment Worksheet'!L29 -> 00:00:00 | G29: =+'Assignment Worksheet'!H29 -> 0 | H29: 0 | I29: =IF('Assignment Worksheet'!D29>0,IF(('Assignment Worksheet'!I29+30)>'Assignment Worksheet'!$H$5,"Eligible","Ineligible"),"") ->  | J29: =IF('Assignment Worksheet'!D29>0,(+'G&K-Funding Analysis'!R29),0) -> 0 | K29: =IF('Assignment Worksheet'!D29>0,+'G&K-Funding Analysis'!T29,0) -> 0
A30: 20 | B30: =+'Assignment Worksheet'!M30 -> 0 | C30: =+'Assignment Worksheet'!N30 -> 0 | D30: =+'Assignment Worksheet'!J30 -> 0 | E30: =+'Assignment Worksheet'!K30 -> 0 | F30: =+'Assignment Worksheet'!L30 -> 00:00:00 | G30: =+'Assignment Worksheet'!H30 -> 0 | H30: 0 | I30: =IF('Assignment Worksheet'!D30>0,IF(('Assignment Worksheet'!I30+30)>'Assignment Worksheet'!$H$5,"Eligible","Ineligible"),"") ->  | J30: =IF('Assignment Worksheet'!D30>0,(+'G&K-Funding Analysis'!R30),0) -> 0 | K30: =IF('Assignment Worksheet'!D30>0,+'G&K-Funding Analysis'!T30,0) -> 0
A31: 21 | B31: =+'Assignment Worksheet'!M31 -> 0 | C31: =+'Assignment Worksheet'!N31 -> 0 | D31: =+'Assignment Worksheet'!J31 -> 0 | E31: =+'Assignment Worksheet'!K31 -> 0 | F31: =+'Assignment Worksheet'!L31 -> 00:00:00 | G31: =+'Assignment Worksheet'!H31 -> 0 | H31: 0 | I31: =IF('Assignment Worksheet'!D31>0,IF(('Assignment Worksheet'!I31+30)>'Assignment Worksheet'!$H$5,"Eligible","Ineligible"),"") ->  | J31: =IF('Assignment Worksheet'!D31>0,(+'G&K-Funding Analysis'!R31),0) -> 0 | K31: =IF('Assignment Worksheet'!D31>0,+'G&K-Funding Analysis'!T31,0) -> 0
A32: 22 | B32: =+'Assignment Worksheet'!M32 -> 0 | C32: =+'Assignment Worksheet'!N32 -> 0 | D32: =+'Assignment Worksheet'!J32 -> 0 | E32: =+'Assignment Worksheet'!K32 -> 0 | F32: =+'Assignment Worksheet'!L32 -> 00:00:00 | G32: =+'Assignment Worksheet'!H32 -> 0 | H32: 0 | I32: =IF('Assignment Worksheet'!D32>0,IF(('Assignment Worksheet'!I32+30)>'Assignment Worksheet'!$H$5,"Eligible","Ineligible"),"") ->  | J32: =IF('Assignment Worksheet'!D32>0,(+'G&K-Funding Analysis'!R32),0) -> 0 | K32: =IF('Assignment Worksheet'!D32>0,+'G&K-Funding Analysis'!T32,0) -> 0
A33: 23 | B33: =+'Assignment Worksheet'!M33 -> 0 | C33: =+'Assignment Worksheet'!N33 -> 0 | D33: =+'Assignment Worksheet'!J33 -> 0 | E33: =+'Assignment Worksheet'!K33 -> 0 | F33: =+'Assignment Worksheet'!L33 -> 00:00:00 | G33: =+'Assignment Worksheet'!H33 -> 0 | H33: 0 | I33: =IF('Assignment Worksheet'!D33>0,IF(('Assignment Worksheet'!I33+30)>'Assignment Worksheet'!$H$5,"Eligible","Ineligible"),"") ->  | J33: =IF('Assignment Worksheet'!D33>0,(+'G&K-Funding Analysis'!R33),0) -> 0 | K33: =IF('Assignment Worksheet'!D33>0,+'G&K-Funding Analysis'!T33,0) -> 0
A34: 24 | B34: =+'Assignment Worksheet'!M34 -> 0 | C34: =+'Assignment Worksheet'!N34 -> 0 | D34: =+'Assignment Worksheet'!J34 -> 0 | E34: =+'Assignment Worksheet'!K34 -> 0 | F34: =+'Assignment Worksheet'!L34 -> 00:00:00 | G34: =+'Assignment Worksheet'!H34 -> 0 | H34: 0 | I34: =IF('Assignment Worksheet'!D34>0,IF(('Assignment Worksheet'!I34+30)>'Assignment Worksheet'!$H$5,"Eligible","Ineligible"),"") ->  | J34: =IF('Assignment Worksheet'!D34>0,(+'G&K-Funding Analysis'!R34),0) -> 0 | K34: =IF('Assignment Worksheet'!D34>0,+'G&K-Funding Analysis'!T34,0) -> 0
A35: 25 | B35: =+'Assignment Worksheet'!M35 -> 0 | C35: =+'Assignment Worksheet'!N35 -> 0 | D35: =+'Assignment Worksheet'!J35 -> 0 | E35: =+'Assignment Worksheet'!K35 -> 0 | F35: =+'Assignment Worksheet'!L35 -> 00:00:00 | G35: =+'Assignment Worksheet'!H35 -> 0 | H35: 0 | I35: =IF('Assignment Worksheet'!D35>0,IF(('Assignment Worksheet'!I35+30)>'Assignment Worksheet'!$H$5,"Eligible","Ineligible"),"") ->  | J35: =IF('Assignment Worksheet'!D35>0,(+'G&K-Funding Analysis'!R35),0) -> 0 | K35: =IF('Assignment Worksheet'!D35>0,+'G&K-Funding Analysis'!T35,0) -> 0

Sheet D-Checklist (hidden)
A1: SDA Account Checklist
A4: Dealership Name: | D4: =+'Assignment Worksheet'!D3:H3 -> 0 | G4: Batch #: | H4: =+'B-Inputs'!B7 -> 7
B9: Compliant | C9: VIN | D9: Car Year | E9: Make | F9: Model | G9: Last Name | H9: First Name | I9: Original Title or Title Receipt | J9: Original Sales Contract | K9: Original Bill of Sale | L9: Payment History | M9: GPS Agreement | N9: DMS Agreement | O9: Original Arbitration Agreement | P9: Power of Attorney | Q9: License or Social Security Card | R9: Privacy Statement
A10: EX | B10: YES/NO | C10: 12AB13578002 | D10: 2012 | E10: Chevy | F10: Malibu | G10: Smith | H10: David | I10: Required | J10: Required | K10: Required | L10: Required | M10: Required | N10: Required | O10: Optional | P10: Optionsl | Q10: Optional | R10: Optional
A11: 1 | B11: =IF('Assignment Worksheet'!$D11>0,IF(S11=6,"YES","NO"),0) -> NO | C11: =IF('Assignment Worksheet'!D11>0,+'Assignment Worksheet'!H11,0) -> 1231233123212310 | D11: =+'Assignment Worksheet'!J11 -> 2011 | E11: =+'Assignment Worksheet'!K11 -> 0 | F11: =+'Assignment Worksheet'!L11 -> 0 | G11: =+'Assignment Worksheet'!M11 -> 0 | H11: =+'Assignment Worksheet'!N11 -> 0 | P11: 0 | Q11: 0 | R11: 0 | S11: =SUM(I11:N11) -> 0
A12: 2 | B12: =IF('Assignment Worksheet'!$D12>0,IF(S12=6,"YES","NO"),0) -> 0 | C12: =IF('Assignment Worksheet'!D12>0,+'Assignment Worksheet'!H12,0) -> 0 | D12: =+'Assignment Worksheet'!J12 -> 0 | E12: =+'Assignment Worksheet'!K12 -> 0 | F12: =+'Assignment Worksheet'!L12 -> 0 | G12: =+'Assignment Worksheet'!M12 -> 0 | H12: =+'Assignment Worksheet'!N12 -> 0 | P12: 0 | Q12: 0 | R12: 0 | S12: =SUM(I12:N12) -> 0
A13: 3 | B13: =IF('Assignment Worksheet'!$D13>0,IF(S13=6,"YES","NO"),0) -> 0 | C13: =IF('Assignment Worksheet'!D13>0,+'Assignment Worksheet'!H13,0) -> 0 | D13: =+'Assignment Worksheet'!J13 -> 0 | E13: =+'Assignment Worksheet'!K13 -> 0 | F13: =+'Assignment Worksheet'!L13 -> 0 | G13: =+'Assignment Worksheet'!M13 -> 0 | H13: =+'Assignment Worksheet'!N13 -> 0 | P13: 0 | Q13: 0 | R13: 0 | S13: 0
A14: 4 | B14: =IF('Assignment Worksheet'!$D14>0,IF(S14=6,"YES","NO"),0) -> 0 | C14: =IF('Assignment Worksheet'!D14>0,+'Assignment Worksheet'!H14,0) -> 0 | D14: =+'Assignment Worksheet'!J14 -> 0 | E14: =+'Assignment Worksheet'!K14 -> 0 | F14: =+'Assignment Worksheet'!L14 -> 0 | G14: =+'Assignment Worksheet'!M14 -> 0 | H14: =+'Assignment Worksheet'!N14 -> 0 | P14: 0 | Q14: 0 | R14: 0 | S14: 0
A15: 5 | B15: =IF('Assignment Worksheet'!$D15>0,IF(S15=6,"YES","NO"),0) -> 0 | C15: =IF('Assignment Worksheet'!D15>0,+'Assignment Worksheet'!H15,0) -> 0 | D15: =+'Assignment Worksheet'!J15 -> 0 | E15: =+'Assignment Worksheet'!K15 -> 0 | F15: =+'Assignment Worksheet'!L15 -> 0 | G15: =+'Assignment Worksheet'!M15 -> 0 | H15: =+'Assignment Worksheet'!N15 -> 0 | P15: 0 | Q15: 0 | R15: 0 | S15: 0
A16: 6 | B16: =IF('Assignment Worksheet'!$D16>0,IF(S16=6,"YES","NO"),0) -> 0 | C16: =IF('Assignment Worksheet'!D16>0,+'Assignment Worksheet'!H16,0) -> 0 | D16: =+'Assignment Worksheet'!J16 -> 0 | E16: =+'Assignment Worksheet'!K16 -> 0 | F16: =+'Assignment Worksheet'!L16 -> 0 | G16: =+'Assignment Worksheet'!M16 -> 0 | H16: =+'Assignment Worksheet'!N16 -> 0 | P16: 0 | Q16: 0 | R16: 0 | S16: 0
A17: 7 | B17: =IF('Assignment Worksheet'!$D17>0,IF(S17=6,"YES","NO"),0) -> 0 | C17: =IF('Assignment Worksheet'!D17>0,+'Assignment Worksheet'!H17,0) -> 0 | D17: =+'Assignment Worksheet'!J17 -> 0 | E17: =+'Assignment Worksheet'!K17 -> 0 | F17: =+'Assignment Worksheet'!L17 -> 0 | G17: =+'Assignment Worksheet'!M17 -> 0 | H17: =+'Assignment Worksheet'!N17 -> 0 | P17: 0 | Q17: 0 | R17: 0 | S17: 0
A18: 8 | B18: =IF('Assignment Worksheet'!$D18>0,IF(S18=6,"YES","NO"),0) -> 0 | C18: =IF('Assignment Worksheet'!D18>0,+'Assignment Worksheet'!H18,0) -> 0 | D18: =+'Assignment Worksheet'!J18 -> 0 | E18: =+'Assignment Worksheet'!K18 -> 0 | F18: =+'Assignment Worksheet'!L18 -> 0 | G18: =+'Assignment Worksheet'!M18 -> 0 | H18: =+'Assignment Worksheet'!N18 -> 0 | S18: 0
A19: 9 | B19: =IF('Assignment Worksheet'!$D19>0,IF(S19=6,"YES","NO"),0) -> 0 | C19: =IF('Assignment Worksheet'!D19>0,+'Assignment Worksheet'!H19,0) -> 0 | D19: =+'Assignment Worksheet'!J19 -> 0 | E19: =+'Assignment Worksheet'!K19 -> 0 | F19: =+'Assignment Worksheet'!L19 -> 0 | G19: =+'Assignment Worksheet'!M19 -> 0 | H19: =+'Assignment Worksheet'!N19 -> 0 | S19: 0
A20: 10 | B20: =IF('Assignment Worksheet'!$D20>0,IF(S20=6,"YES","NO"),0) -> 0 | C20: =IF('Assignment Worksheet'!D20>0,+'Assignment Worksheet'!H20,0) -> 0 | D20: =+'Assignment Worksheet'!J20 -> 0 | E20: =+'Assignment Worksheet'!K20 -> 0 | F20: =+'Assignment Worksheet'!L20 -> 0 | G20: =+'Assignment Worksheet'!M20 -> 0 | H20: =+'Assignment Worksheet'!N20 -> 0 | S20: 0
A21: 11 | B21: =IF('Assignment Worksheet'!$D21>0,IF(S21=6,"YES","NO"),0) -> 0 | C21: =IF('Assignment Worksheet'!D21>0,+'Assignment Worksheet'!H21,0) -> 0 | D21: =+'Assignment Worksheet'!J21 -> 0 | E21: =+'Assignment Worksheet'!K21 -> 0 | F21: =+'Assignment Worksheet'!L21 -> 0 | G21: =+'Assignment Worksheet'!M21 -> 0 | H21: =+'Assignment Worksheet'!N21 -> 0 | S21: 0
A22: 12 | B22: =IF('Assignment Worksheet'!$D22>0,IF(S22=6,"YES","NO"),0) -> 0 | C22: =IF('Assignment Worksheet'!D22>0,+'Assignment Worksheet'!H22,0) -> 0 | D22: =+'Assignment Worksheet'!J22 -> 0 | E22: =+'Assignment Worksheet'!K22 -> 0 | F22: =+'Assignment Worksheet'!L22 -> 0 | G22: =+'Assignment Worksheet'!M22 -> 0 | H22: =+'Assignment Worksheet'!N22 -> 0 | S22: 0
A23: 13 | B23: =IF('Assignment Worksheet'!$D23>0,IF(S23=6,"YES","NO"),0) -> 0 | C23: =IF('Assignment Worksheet'!D23>0,+'Assignment Worksheet'!H23,0) -> 0 | D23: =+'Assignment Worksheet'!J23 -> 0 | E23: =+'Assignment Worksheet'!K23 -> 0 | F23: =+'Assignment Worksheet'!L23 -> 0 | G23: =+'Assignment Worksheet'!M23 -> 0 | H23: =+'Assignment Worksheet'!N23 -> 0 | S23: 0
A24: 14 | B24: =IF('Assignment Worksheet'!$D24>0,IF(S24=6,"YES","NO"),0) -> 0 | C24: =IF('Assignment Worksheet'!D24>0,+'Assignment Worksheet'!H24,0) -> 0 | D24: =+'Assignment Worksheet'!J24 -> 0 | E24: =+'Assignment Worksheet'!K24 -> 0 | F24: =+'Assignment Worksheet'!L24 -> 0 | G24: =+'Assignment Worksheet'!M24 -> 0 | H24: =+'Assignment Worksheet'!N24 -> 0 | S24: 0
A25: 15 | B25: =IF('Assignment Worksheet'!$D25>0,IF(S25=6,"YES","NO"),0) -> 0 | C25: =IF('Assignment Worksheet'!D25>0,+'Assignment Worksheet'!H25,0) -> 0 | D25: =+'Assignment Worksheet'!J25 -> 0 | E25: =+'Assignment Worksheet'!K25 -> 0 | F25: =+'Assignment Worksheet'!L25 -> 0 | G25: =+'Assignment Worksheet'!M25 -> 0 | H25: =+'Assignment Worksheet'!N25 -> 0 | S25: 0
A26: 16 | B26: =IF('Assignment Worksheet'!$D26>0,IF(S26=6,"YES","NO"),0) -> 0 | C26: =IF('Assignment Worksheet'!D26>0,+'Assignment Worksheet'!H26,0) -> 0 | D26: =+'Assignment Worksheet'!J26 -> 0 | E26: =+'Assignment Worksheet'!K26 -> 0 | F26: =+'Assignment Worksheet'!L26 -> 0 | G26: =+'Assignment Worksheet'!M26 -> 0 | H26: =+'Assignment Worksheet'!N26 -> 0 | S26: 0
A27: 17 | B27: =IF('Assignment Worksheet'!$D27>0,IF(S27=6,"YES","NO"),0) -> 0 | C27: =IF('Assignment Worksheet'!D27>0,+'Assignment Worksheet'!H27,0) -> 0 | D27: =+'Assignment Worksheet'!J27 -> 0 | E27: =+'Assignment Worksheet'!K27 -> 0 | F27: =+'Assignment Worksheet'!L27 -> 0 | G27: =+'Assignment Worksheet'!M27 -> 0 | H27: =+'Assignment Worksheet'!N27 -> 0 | S27: 0
A28: 18 | B28: =IF('Assignment Worksheet'!$D28>0,IF(S28=6,"YES","NO"),0) -> 0 | C28: =IF('Assignment Worksheet'!D28>0,+'Assignment Worksheet'!H28,0) -> 0 | D28: =+'Assignment Worksheet'!J28 -> 0 | E28: =+'Assignment Worksheet'!K28 -> 0 | F28: =+'Assignment Worksheet'!L28 -> 0 | G28: =+'Assignment Worksheet'!M28 -> 0 | H28: =+'Assignment Worksheet'!N28 -> 0 | S28: 0
A29: 19 | B29: =IF('Assignment Worksheet'!$D29>0,IF(S29=6,"YES","NO"),0) -> 0 | C29: =IF('Assignment Worksheet'!D29>0,+'Assignment Worksheet'!H29,0) -> 0 | D29: =+'Assignment Worksheet'!J29 -> 0 | E29: =+'Assignment Worksheet'!K29 -> 0 | F29: =+'Assignment Worksheet'!L29 -> 0 | G29: =+'Assignment Worksheet'!M29 -> 0 | H29: =+'Assignment Worksheet'!N29 -> 0 | S29: 0
A30: 20 | B30: =IF('Assignment Worksheet'!$D30>0,IF(S30=6,"YES","NO"),0) -> 0 | C30: =IF('Assignment Worksheet'!D30>0,+'Assignment Worksheet'!H30,0) -> 0 | D30: =+'Assignment Worksheet'!J30 -> 0 | E30: =+'Assignment Worksheet'!K30 -> 0 | F30: =+'Assignment Worksheet'!L30 -> 0 | G30: =+'Assignment Worksheet'!M30 -> 0 | H30: =+'Assignment Worksheet'!N30 -> 0 | S30: 0
A31: 21 | B31: =IF('Assignment Worksheet'!$D31>0,IF(S31=6,"YES","NO"),0) -> 0 | C31: =IF('Assignment Worksheet'!D31>0,+'Assignment Worksheet'!H31,0) -> 0 | D31: =+'Assignment Worksheet'!J31 -> 0 | E31: =+'Assignment Worksheet'!K31 -> 0 | F31: =+'Assignment Worksheet'!L31 -> 0 | G31: =+'Assignment Worksheet'!M31 -> 0 | H31: =+'Assignment Worksheet'!N31 -> 0 | S31: 0
A32: 22 | B32: =IF('Assignment Worksheet'!$D32>0,IF(S32=6,"YES","NO"),0) -> 0 | C32: =IF('Assignment Worksheet'!D32>0,+'Assignment Worksheet'!H32,0) -> 0 | D32: =+'Assignment Worksheet'!J32 -> 0 | E32: =+'Assignment Worksheet'!K32 -> 0 | F32: =+'Assignment Worksheet'!L32 -> 0 | G32: =+'Assignment Worksheet'!M32 -> 0 | H32: =+'Assignment Worksheet'!N32 -> 0 | S32: 0
A33: 23 | B33: =IF('Assignment Worksheet'!$D33>0,IF(S33=6,"YES","NO"),0) -> 0 | C33: =IF('Assignment Worksheet'!D33>0,+'Assignment Worksheet'!H33,0) -> 0 | D33: =+'Assignment Worksheet'!J33 -> 0 | E33: =+'Assignment Worksheet'!K33 -> 0 | F33: =+'Assignment Worksheet'!L33 -> 0 | G33: =+'Assignment Worksheet'!M33 -> 0 | H33: =+'Assignment Worksheet'!N33 -> 0 | S33: 0
A34: 24 | B34: =IF('Assignment Worksheet'!$D34>0,IF(S34=6,"YES","NO"),0) -> 0 | C34: =IF('Assignment Worksheet'!D34>0,+'Assignment Worksheet'!H34,0) -> 0 | D34: =+'Assignment Worksheet'!J34 -> 0 | E34: =+'Assignment Worksheet'!K34 -> 0 | F34: =+'Assignment Worksheet'!L34 -> 0 | G34: =+'Assignment Worksheet'!M34 -> 0 | H34: =+'Assignment Worksheet'!N34 -> 0 | S34: 0
A35: 25 | B35: =IF('Assignment Worksheet'!$D35>0,IF(S35=6,"YES","NO"),0) -> 0 | C35: =IF('Assignment Worksheet'!D35>0,+'Assignment Worksheet'!H35,0) -> 0 | D35: =+'Assignment Worksheet'!J35 -> 0 | E35: =+'Assignment Worksheet'!K35 -> 0 | F35: =+'Assignment Worksheet'!L35 -> 0 | G35: =+'Assignment Worksheet'!M35 -> 0 | H35: =+'Assignment Worksheet'!N35 -> 0 | S35: 0

Sheet E-Attachment To Assignment (hidden)
A1: ATTACHMENT TO ASSIGNMENT DATED: | H1: =+'B-Inputs'!$B$38 -> 2018-05-04
A3: Dealership Name: | D3: =+'Assignment Worksheet'!D3 -> 0 | G3: Batch #: | H3: =+'B-Inputs'!B7 -> 7
C4: Address: | D4: =+'Assignment Worksheet'!D4 -> 0
A5: City: | D5: =+'Assignment Worksheet'!H4 -> 0 | G5: State: | H5: =+'Assignment Worksheet'!D5 -> 0
A6: Phone: | D6: =+'Assignment Worksheet'!D6 -> 0 | G6: Zip: | H6: =+'Assignment Worksheet'!F5 -> 0
A7: Fax: | D7: =+'Assignment Worksheet'!D7 -> 0 | G7: Email: | H7: =+'Assignment Worksheet'!H6 -> 0
B10: Last Name | C10: First Name | D10: Car Year | E10: Make | F10: Model | G10: Number Weekly Payments | H10: Funding Basis | I10: Funding Basis Pay Down | J10: Advance Fee | K10: Total Payment | L10: One Time Administrative Cost | M10: Title/Escrow | N10: Documents Compliant | O10: Customer Change
A11: 1 | B11: =+'Assignment Worksheet'!M11 -> 0 | C11: =+'Assignment Worksheet'!N11 -> 0 | D11: =+'Assignment Worksheet'!J11 -> 2011 | E11: =+'Assignment Worksheet'!K11 -> 0 | F11: =+'Assignment Worksheet'!L11 -> 0 | G11: =IF(D11>0,(+'G&K-Funding Analysis'!J11),"") -> 129.99 | H11: =IF(D11>0,(+'G&K-Funding Analysis'!I11),0) -> 5250 | I11: =IF(H11>0,(+'G&K-Funding Analysis'!K11),"") -> 40.39 | J11: =IF(H11>0,(+'G&K-Funding Analysis'!L11),"") -> 15.15 | K11: =IF(H11>0,(+'G&K-Funding Analysis'!M11),"") -> 55.54 | L11: =IF(H11>0,(+'G&K-Funding Analysis'!N11),"") -> 367.5 | M11: =IF(H11>0,IF('D-Checklist'!I11=1,0,+'B-Inputs'!$B$32),"") -> 0 | N11: =IF(H11>0,(+'G&K-Funding Analysis'!O11),"") -> NO
A12: 2 | B12: =+'Assignment Worksheet'!M12 -> 0 | C12: =+'Assignment Worksheet'!N12 -> 0 | D12: =+'Assignment Worksheet'!J12 -> 0 | E12: =+'Assignment Worksheet'!K12 -> 0 | F12: =+'Assignment Worksheet'!L12 -> 0 | G12: =IF(H12>0,(+'G&K-Funding Analysis'!J12),"") ->  | H12: =IF(D12>0,(+'G&K-Funding Analysis'!I12),0) -> 0 | I12: =IF(H12>0,(+'G&K-Funding Analysis'!K12),"") ->  | J12: =IF(H12>0,(+'G&K-Funding Analysis'!L12),"") ->  | K12: =IF(H12>0,(+'G&K-Funding Analysis'!M12),"") ->  | L12: =IF(H12>0,(+'G&K-Funding Analysis'!N12),"") ->  | M12: =IF(H12>0,IF('D-Checklist'!I12=1,0,+'B-Inputs'!$B$32),"") ->  | N12: =IF(H12>0,(+'G&K-Funding Analysis'!O12),"") -> 
A13: 3 | B13: =+'Assignment Worksheet'!M13 -> 0 | C13: =+'Assignment Worksheet'!N13 -> 0 | D13: =+'Assignment Worksheet'!J13 -> 0 | E13: =+'Assignment Worksheet'!K13 -> 0 | F13: =+'Assignment Worksheet'!L13 -> 0 | G13: =IF(H13>0,(+'G&K-Funding Analysis'!J13),"") ->  | H13: =IF(D13>0,(+'G&K-Funding Analysis'!I13),0) -> 0 | I13: =IF(H13>0,(+'G&K-Funding Analysis'!K13),"") ->  | J13: =IF(H13>0,(+'G&K-Funding Analysis'!L13),"") ->  | K13: =IF(H13>0,(+'G&K-Funding Analysis'!M13),"") ->  | L13: =IF(H13>0,(+'G&K-Funding Analysis'!N13),"") ->  | M13: =IF(H13>0,IF('D-Checklist'!I13=1,0,+'B-Inputs'!$B$32),"") ->  | N13: =IF(H13>0,(+'G&K-Funding Analysis'!O13),"") -> 
A14: 4 | B14: =+'Assignment Worksheet'!M14 -> 0 | C14: =+'Assignment Worksheet'!N14 -> 0 | D14: =+'Assignment Worksheet'!J14 -> 0 | E14: =+'Assignment Worksheet'!K14 -> 0 | F14: =+'Assignment Worksheet'!L14 -> 0 | G14: =IF(H14>0,(+'G&K-Funding Analysis'!J14),"") ->  | H14: =IF(D14>0,(+'G&K-Funding Analysis'!I14),0) -> 0 | I14: =IF(H14>0,(+'G&K-Funding Analysis'!K14),"") ->  | J14: =IF(H14>0,(+'G&K-Funding Analysis'!L14),"") ->  | K14: =IF(H14>0,(+'G&K-Funding Analysis'!M14),"") ->  | L14: =IF(H14>0,(+'G&K-Funding Analysis'!N14),"") ->  | M14: =IF(H14>0,IF('D-Checklist'!I14=1,0,+'B-Inputs'!$B$32),"") ->  | N14: =IF(H14>0,(+'G&K-Funding Analysis'!O14),"") -> 
A15: 5 | B15: =+'Assignment Worksheet'!M15 -> 0 | C15: =+'Assignment Worksheet'!N15 -> 0 | D15: =+'Assignment Worksheet'!J15 -> 0 | E15: =+'Assignment Worksheet'!K15 -> 0 | F15: =+'Assignment Worksheet'!L15 -> 0 | G15: =IF(H15>0,(+'G&K-Funding Analysis'!J15),"") ->  | H15: =IF(D15>0,(+'G&K-Funding Analysis'!I15),0) -> 0 | I15: =IF(H15>0,(+'G&K-Funding Analysis'!K15),"") ->  | J15: =IF(H15>0,(+'G&K-Funding Analysis'!L15),"") ->  | K15: =IF(H15>0,(+'G&K-Funding Analysis'!M15),"") ->  | L15: =IF(H15>0,(+'G&K-Funding Analysis'!N15),"") ->  | M15: =IF(H15>0,IF('D-Checklist'!I15=1,0,+'B-Inputs'!$B$32),"") ->  | N15: =IF(H15>0,(+'G&K-Funding Analysis'!O15),"") -> 
A16: 6 | B16: =+'Assignment Worksheet'!M16 -> 0 | C16: =+'Assignment Worksheet'!N16 -> 0 | D16: =+'Assignment Worksheet'!J16 -> 0 | E16: =+'Assignment Worksheet'!K16 -> 0 | F16: =+'Assignment Worksheet'!L16 -> 0 | G16: =IF(H16>0,(+'G&K-Funding Analysis'!J16),"") ->  | H16: =IF(D16>0,(+'G&K-Funding Analysis'!I16),0) -> 0 | I16: =IF(H16>0,(+'G&K-Funding Analysis'!K16),"") ->  | J16: =IF(H16>0,(+'G&K-Funding Analysis'!L16),"") ->  | K16: =IF(H16>0,(+'G&K-Funding Analysis'!M16),"") ->  | L16: =IF(H16>0,(+'G&K-Funding Analysis'!N16),"") ->  | M16: =IF(H16>0,IF('D-Checklist'!I16=1,0,+'B-Inputs'!$B$32),"") ->  | N16: =IF(H16>0,(+'G&K-Funding Analysis'!O16),"") -> 
A17: 7 | B17: =+'Assignment Worksheet'!M17 -> 0 | C17: =+'Assignment Worksheet'!N17 -> 0 | D17: =+'Assignment Worksheet'!J17 -> 0 | E17: =+'Assignment Worksheet'!K17 -> 0 | F17: =+'Assignment Worksheet'!L17 -> 0 | G17: =IF(H17>0,(+'G&K-Funding Analysis'!J17),"") ->  | H17: =IF(D17>0,(+'G&K-Funding Analysis'!I17),0) -> 0 | I17: =IF(H17>0,(+'G&K-Funding Analysis'!K17),"") ->  | J17: =IF(H17>0,(+'G&K-Funding Analysis'!L17),"") ->  | K17: =IF(H17>0,(+'G&K-Funding Analysis'!M17),"") ->  | L17: =IF(H17>0,(+'G&K-Funding Analysis'!N17),"") ->  | M17: =IF(H17>0,IF('D-Checklist'!I17=1,0,+'B-Inputs'!$B$32),"") ->  | N17: =IF(H17>0,(+'G&K-Funding Analysis'!O17),"") -> 
A18: 8 | B18: =+'Assignment Worksheet'!M18 -> 0 | C18: =+'Assignment Worksheet'!N18 -> 0 | D18: =+'Assignment Worksheet'!J18 -> 0 | E18: =+'Assignment Worksheet'!K18 -> 0 | F18: =+'Assignment Worksheet'!L18 -> 0 | G18: =IF(H18>0,(+'G&K-Funding Analysis'!J18),"") ->  | H18: =IF(D18>0,(+'G&K-Funding Analysis'!I18),0) -> 0 | I18: =IF(H18>0,(+'G&K-Funding Analysis'!K18),"") ->  | J18: =IF(H18>0,(+'G&K-Funding Analysis'!L18),"") ->  | K18: =IF(H18>0,(+'G&K-Funding Analysis'!M18),"") ->  | L18: =IF(H18>0,(+'G&K-Funding Analysis'!N18),"") ->  | M18: =IF(H18>0,IF('D-Checklist'!I18=1,0,+'B-Inputs'!$B$32),"") ->  | N18: =IF(H18>0,(+'G&K-Funding Analysis'!O18),"") -> 
A19: 9 | B19: =+'Assignment Worksheet'!M19 -> 0 | C19: =+'Assignment Worksheet'!N19 -> 0 | D19: =+'Assignment Worksheet'!J19 -> 0 | E19: =+'Assignment Worksheet'!K19 -> 0 | F19: =+'Assignment Worksheet'!L19 -> 0 | G19: =IF(H19>0,(+'G&K-Funding Analysis'!J19),"") ->  | H19: =IF(D19>0,(+'G&K-Funding Analysis'!I19),0) -> 0 | I19: =IF(H19>0,(+'G&K-Funding Analysis'!K19),"") ->  | J19: =IF(H19>0,(+'G&K-Funding Analysis'!L19),"") ->  | K19: =IF(H19>0,(+'G&K-Funding Analysis'!M19),"") ->  | L19: =IF(H19>0,(+'G&K-Funding Analysis'!N19),"") ->  | M19: =IF(H19>0,IF('D-Checklist'!I19=1,0,+'B-Inputs'!$B$32),"") ->  | N19: =IF(H19>0,(+'G&K-Funding Analysis'!O19),"") -> 
A20: 10 | B20: =+'Assignment Worksheet'!M20 -> 0 | C20: =+'Assignment Worksheet'!N20 -> 0 | D20: =+'Assignment Worksheet'!J20 -> 0 | E20: =+'Assignment Worksheet'!K20 -> 0 | F20: =+'Assignment Worksheet'!L20 -> 0 | G20: =IF(H20>0,(+'G&K-Funding Analysis'!J20),"") ->  | H20: =IF(D20>0,(+'G&K-Funding Analysis'!I20),0) -> 0 | I20: =IF(H20>0,(+'G&K-Funding Analysis'!K20),"") ->  | J20: =IF(H20>0,(+'G&K-Funding Analysis'!L20),"") ->  | K20: =IF(H20>0,(+'G&K-Funding Analysis'!M20),"") ->  | L20: =IF(H20>0,(+'G&K-Funding Analysis'!N20),"") ->  | M20: =IF(H20>0,IF('D-Checklist'!I20=1,0,+'B-Inputs'!$B$32),"") ->  | N20: =IF(H20>0,(+'G&K-Funding Analysis'!O20),"") -> 
A21: 11 | B21: =+'Assignment Worksheet'!M21 -> 0 | C21: =+'Assignment Worksheet'!N21 -> 0 | D21: =+'Assignment Worksheet'!J21 -> 0 | E21: =+'Assignment Worksheet'!K21 -> 0 | F21: =+'Assignment Worksheet'!L21 -> 0 | G21: =IF(H21>0,(+'G&K-Funding Analysis'!J21),"") ->  | H21: =IF(D21>0,(+'G&K-Funding Analysis'!I21),0) -> 0 | I21: =IF(H21>0,(+'G&K-Funding Analysis'!K21),"") ->  | J21: =IF(H21>0,(+'G&K-Funding Analysis'!L21),"") ->  | K21: =IF(H21>0,(+'G&K-Funding Analysis'!M21),"") ->  | L21: =IF(H21>0,(+'G&K-Funding Analysis'!N21),"") ->  | M21: =IF(H21>0,IF('D-Checklist'!I21=1,0,+'B-Inputs'!$B$32),"") ->  | N21: =IF(H21>0,(+'G&K-Funding Analysis'!O21),"") -> 
A22: 12 | B22: =+'Assignment Worksheet'!M22 -> 0 | C22: =+'Assignment Worksheet'!N22 -> 0 | D22: =+'Assignment Worksheet'!J22 -> 0 | E22: =+'Assignment Worksheet'!K22 -> 0 | F22: =+'Assignment Worksheet'!L22 -> 0 | G22: =IF(H22>0,(+'G&K-Funding Analysis'!J22),"") ->  | H22: =IF(D22>0,(+'G&K-Funding Analysis'!I22),0) -> 0 | I22: =IF(H22>0,(+'G&K-Funding Analysis'!K22),"") ->  | J22: =IF(H22>0,(+'G&K-Funding Analysis'!L22),"") ->  | K22: =IF(H22>0,(+'G&K-Funding Analysis'!M22),"") ->  | L22: =IF(H22>0,(+'G&K-Funding Analysis'!N22),"") ->  | M22: =IF(H22>0,IF('D-Checklist'!I22=1,0,+'B-Inputs'!$B$32),"") ->  | N22: =IF(H22>0,(+'G&K-Funding Analysis'!O22),"") -> 
A23: 13 | B23: =+'Assignment Worksheet'!M23 -> 0 | C23: =+'Assignment Worksheet'!N23 -> 0 | D23: =+'Assignment Worksheet'!J23 -> 0 | E23: =+'Assignment Worksheet'!K23 -> 0 | F23: =+'Assignment Worksheet'!L23 -> 0 | G23: =IF(H23>0,(+'G&K-Funding Analysis'!J23),"") ->  | H23: =IF(D23>0,(+'G&K-Funding Analysis'!I23),0) -> 0 | I23: =IF(H23>0,(+'G&K-Funding Analysis'!K23),"") ->  | J23: =IF(H23>0,(+'G&K-Funding Analysis'!L23),"") ->  | K23: =IF(H23>0,(+'G&K-Funding Analysis'!M23),"") ->  | L23: =IF(H23>0,(+'G&K-Funding Analysis'!N23),"") ->  | M23: =IF(H23>0,IF('D-Checklist'!I23=1,0,+'B-Inputs'!$B$32),"") ->  | N23: =IF(H23>0,(+'G&K-Funding Analysis'!O23),"") -> 
A24: 14 | B24: =+'Assignment Worksheet'!M24 -> 0 | C24: =+'Assignment Worksheet'!N24 -> 0 | D24: =+'Assignment Worksheet'!J24 -> 0 | E24: =+'Assignment Worksheet'!K24 -> 0 | F24: =+'Assignment Worksheet'!L24 -> 0 | G24: =IF(H24>0,(+'G&K-Funding Analysis'!J24),"") ->  | H24: =IF(D24>0,(+'G&K-Funding Analysis'!I24),0) -> 0 | I24: =IF(H24>0,(+'G&K-Funding Analysis'!K24),"") ->  | J24: =IF(H24>0,(+'G&K-Funding Analysis'!L24),"") ->  | K24: =IF(H24>0,(+'G&K-Funding Analysis'!M24),"") ->  | L24: =IF(H24>0,(+'G&K-Funding Analysis'!N24),"") ->  | M24: =IF(H24>0,IF('D-Checklist'!I24=1,0,+'B-Inputs'!$B$32),"") ->  | N24: =IF(H24>0,(+'G&K-Funding Analysis'!O24),"") -> 
A25: 15 | B25: =+'Assignment Worksheet'!M25 -> 0 | C25: =+'Assignment Worksheet'!N25 -> 0 | D25: =+'Assignment Worksheet'!J25 -> 0 | E25: =+'Assignment Worksheet'!K25 -> 0 | F25: =+'Assignment Worksheet'!L25 -> 0 | G25: =IF(H25>0,(+'G&K-Funding Analysis'!J25),"") ->  | H25: =IF(D25>0,(+'G&K-Funding Analysis'!I25),0) -> 0 | I25: =IF(H25>0,(+'G&K-Funding Analysis'!K25),"") ->  | J25: =IF(H25>0,(+'G&K-Funding Analysis'!L25),"") ->  | K25: =IF(H25>0,(+'G&K-Funding Analysis'!M25),"") ->  | L25: =IF(H25>0,(+'G&K-Funding Analysis'!N25),"") ->  | M25: =IF(H25>0,IF('D-Checklist'!I25=1,0,+'B-Inputs'!$B$32),"") ->  | N25: =IF(H25>0,(+'G&K-Funding Analysis'!O25),"") -> 
A26: 16 | B26: =+'Assignment Worksheet'!M26 -> 0 | C26: =+'Assignment Worksheet'!N26 -> 0 | D26: =+'Assignment Worksheet'!J26 -> 0 | E26: =+'Assignment Worksheet'!K26 -> 0 | F26: =+'Assignment Worksheet'!L26 -> 0 | G26: =IF(H26>0,(+'G&K-Funding Analysis'!J26),"") ->  | H26: =IF(D26>0,(+'G&K-Funding Analysis'!I26),0) -> 0 | I26: =IF(H26>0,(+'G&K-Funding Analysis'!K26),"") ->  | J26: =IF(H26>0,(+'G&K-Funding Analysis'!L26),"") ->  | K26: =IF(H26>0,(+'G&K-Funding Analysis'!M26),"") ->  | L26: =IF(H26>0,(+'G&K-Funding Analysis'!N26),"") ->  | M26: =IF(H26>0,IF('D-Checklist'!I26=1,0,+'B-Inputs'!$B$32),"") ->  | N26: =IF(H26>0,(+'G&K-Funding Analysis'!O26),"") -> 
A27: 17 | B27: =+'Assignment Worksheet'!M27 -> 0 | C27: =+'Assignment Worksheet'!N27 -> 0 | D27: =+'Assignment Worksheet'!J27 -> 0 | E27: =+'Assignment Worksheet'!K27 -> 0 | F27: =+'Assignment Worksheet'!L27 -> 0 | G27: =IF(H27>0,(+'G&K-Funding Analysis'!J27),"") ->  | H27: =IF(D27>0,(+'G&K-Funding Analysis'!I27),0) -> 0 | I27: =IF(H27>0,(+'G&K-Funding Analysis'!K27),"") ->  | J27: =IF(H27>0,(+'G&K-Funding Analysis'!L27),"") ->  | K27: =IF(H27>0,(+'G&K-Funding Analysis'!M27),"") ->  | L27: =IF(H27>0,(+'G&K-Funding Analysis'!N27),"") ->  | M27: =IF(H27>0,IF('D-Checklist'!I27=1,0,+'B-Inputs'!$B$32),"") ->  | N27: =IF(H27>0,(+'G&K-Funding Analysis'!O27),"") -> 
A28: 18 | B28: =+'Assignment Worksheet'!M28 -> 0 | C28: =+'Assignment Worksheet'!N28 -> 0 | D28: =+'Assignment Worksheet'!J28 -> 0 | E28: =+'Assignment Worksheet'!K28 -> 0 | F28: =+'Assignment Worksheet'!L28 -> 0 | G28: =IF(H28>0,(+'G&K-Funding Analysis'!J28),"") ->  | H28: =IF(D28>0,(+'G&K-Funding Analysis'!I28),0) -> 0 | I28: =IF(H28>0,(+'G&K-Funding Analysis'!K28),"") ->  | J28: =IF(H28>0,(+'G&K-Funding Analysis'!L28),"") ->  | K28: =IF(H28>0,(+'G&K-Funding Analysis'!M28),"") ->  | L28: =IF(H28>0,(+'G&K-Funding Analysis'!N28),"") ->  | M28: =IF(H28>0,IF('D-Checklist'!I28=1,0,+'B-Inputs'!$B$32),"") ->  | N28: =IF(H28>0,(+'G&K-Funding Analysis'!O28),"") -> 
A29: 19 | B29: =+'Assignment Worksheet'!M29 -> 0 | C29: =+'Assignment Worksheet'!N29 -> 0 | D29: =+'Assignment Worksheet'!J29 -> 0 | E29: =+'Assignment Worksheet'!K29 -> 0 | F29: =+'Assignment Worksheet'!L29 -> 0 | G29: =IF(H29>0,(+'G&K-Funding Analysis'!J29),"") ->  | H29: =IF(D29>0,(+'G&K-Funding Analysis'!I29),0) -> 0 | I29: =IF(H29>0,(+'G&K-Funding Analysis'!K29),"") ->  | J29: =IF(H29>0,(+'G&K-Funding Analysis'!L29),"") ->  | K29: =IF(H29>0,(+'G&K-Funding Analysis'!M29),"") ->  | L29: =IF(H29>0,(+'G&K-Funding Analysis'!N29),"") ->  | M29: =IF(H29>0,IF('D-Checklist'!I29=1,0,+'B-Inputs'!$B$32),"") ->  | N29: =IF(H29>0,(+'G&K-Funding Analysis'!O29),"") -> 
A30: 20 | B30: =+'Assignment Worksheet'!M30 -> 0 | C30: =+'Assignment Worksheet'!N30 -> 0 | D30: =+'Assignment Worksheet'!J30 -> 0 | E30: =+'Assignment Worksheet'!K30 -> 0 | F30: =+'Assignment Worksheet'!L30 -> 0 | G30: =IF(H30>0,(+'G&K-Funding Analysis'!J30),"") ->  | H30: =IF(D30>0,(+'G&K-Funding Analysis'!I30),0) -> 0 | I30: =IF(H30>0,(+'G&K-Funding Analysis'!K30),"") ->  | J30: =IF(H30>0,(+'G&K-Funding Analysis'!L30),"") ->  | K30: =IF(H30>0,(+'G&K-Funding Analysis'!M30),"") ->  | L30: =IF(H30>0,(+'G&K-Funding Analysis'!N30),"") ->  | M30: =IF(H30>0,IF('D-Checklist'!I30=1,0,+'B-Inputs'!$B$32),"") ->  | N30: =IF(H30>0,(+'G&K-Funding Analysis'!O30),"") -> 
A31: 21 | B31: =+'Assignment Worksheet'!M31 -> 0 | C31: =+'Assignment Worksheet'!N31 -> 0 | D31: =+'Assignment Worksheet'!J31 -> 0 | E31: =+'Assignment Worksheet'!K31 -> 0 | F31: =+'Assignment Worksheet'!L31 -> 0 | G31: =IF(H31>0,(+'G&K-Funding Analysis'!J31),"") ->  | H31: =IF(D31>0,(+'G&K-Funding Analysis'!I31),0) -> 0 | I31: =IF(H31>0,(+'G&K-Funding Analysis'!K31),"") ->  | J31: =IF(H31>0,(+'G&K-Funding Analysis'!L31),"") ->  | K31: =IF(H31>0,(+'G&K-Funding Analysis'!M31),"") ->  | L31: =IF(H31>0,(+'G&K-Funding Analysis'!N31),"") ->  | M31: =IF(H31>0,IF('D-Checklist'!I31=1,0,+'B-Inputs'!$B$32),"") ->  | N31: =IF(H31>0,(+'G&K-Funding Analysis'!O31),"") -> 
A32: 22 | B32: =+'Assignment Worksheet'!M32 -> 0 | C32: =+'Assignment Worksheet'!N32 -> 0 | D32: =+'Assignment Worksheet'!J32 -> 0 | E32: =+'Assignment Worksheet'!K32 -> 0 | F32: =+'Assignment Worksheet'!L32 -> 0 | G32: =IF(H32>0,(+'G&K-Funding Analysis'!J32),"") ->  | H32: =IF(D32>0,(+'G&K-Funding Analysis'!I32),0) -> 0 | I32: =IF(H32>0,(+'G&K-Funding Analysis'!K32),"") ->  | J32: =IF(H32>0,(+'G&K-Funding Analysis'!L32),"") ->  | K32: =IF(H32>0,(+'G&K-Funding Analysis'!M32),"") ->  | L32: =IF(H32>0,(+'G&K-Funding Analysis'!N32),"") ->  | M32: =IF(H32>0,IF('D-Checklist'!I32=1,0,+'B-Inputs'!$B$32),"") ->  | N32: =IF(H32>0,(+'G&K-Funding Analysis'!O32),"") -> 
A33: 23 | B33: =+'Assignment Worksheet'!M33 -> 0 | C33: =+'Assignment Worksheet'!N33 -> 0 | D33: =+'Assignment Worksheet'!J33 -> 0 | E33: =+'Assignment Worksheet'!K33 -> 0 | F33: =+'Assignment Worksheet'!L33 -> 0 | G33: =IF(H33>0,(+'G&K-Funding Analysis'!J33),"") ->  | H33: =IF(D33>0,(+'G&K-Funding Analysis'!I33),0) -> 0 | I33: =IF(H33>0,(+'G&K-Funding Analysis'!K33),"") ->  | J33: =IF(H33>0,(+'G&K-Funding Analysis'!L33),"") ->  | K33: =IF(H33>0,(+'G&K-Funding Analysis'!M33),"") ->  | L33: =IF(H33>0,(+'G&K-Funding Analysis'!N33),"") ->  | M33: =IF(H33>0,IF('D-Checklist'!I33=1,0,+'B-Inputs'!$B$32),"") ->  | N33: =IF(H33>0,(+'G&K-Funding Analysis'!O33),"") -> 
A34: 24 | B34: =+'Assignment Worksheet'!M34 -> 0 | C34: =+'Assignment Worksheet'!N34 -> 0 | D34: =+'Assignment Worksheet'!J34 -> 0 | E34: =+'Assignment Worksheet'!K34 -> 0 | F34: =+'Assignment Worksheet'!L34 -> 0 | G34: =IF(H34>0,(+'G&K-Funding Analysis'!J34),"") ->  | H34: =IF(D34>0,(+'G&K-Funding Analysis'!I34),0) -> 0 | I34: =IF(H34>0,(+'G&K-Funding Analysis'!K34),"") ->  | J34: =IF(H34>0,(+'G&K-Funding Analysis'!L34),"") ->  | K34: =IF(H34>0,(+'G&K-Funding Analysis'!M34),"") ->  | L34: =IF(H34>0,(+'G&K-Funding Analysis'!N34),"") ->  | M34: =IF(H34>0,IF('D-Checklist'!I34=1,0,+'B-Inputs'!$B$32),"") ->  | N34: =IF(H34>0,(+'G&K-Funding Analysis'!O34),"") -> 
A35: 25 | B35: =+'Assignment Worksheet'!M35 -> 0 | C35: =+'Assignment Worksheet'!N35 -> 0 | D35: =+'Assignment Worksheet'!J35 -> 0 | E35: =+'Assignment Worksheet'!K35 -> 0 | F35: =+'Assignment Worksheet'!L35 -> 0 | G35: =IF(H35>0,(+'G&K-Funding Analysis'!J35),"") ->  | H35: =IF(D35>0,(+'G&K-Funding Analysis'!I35),0) -> 0 | I35: =IF(H35>0,(+'G&K-Funding Analysis'!K35),"") ->  | J35: =IF(H35>0,(+'G&K-Funding Analysis'!L35),"") ->  | K35: =IF(H35>0,(+'G&K-Funding Analysis'!M35),"") ->  | L35: =IF(H35>0,(+'G&K-Funding Analysis'!N35),"") ->  | M35: =IF(H35>0,IF('D-Checklist'!I35=1,0,+'B-Inputs'!$B$32),"") ->  | N35: =IF(H35>0,(+'G&K-Funding Analysis'!O35),"") -> 
F36: Total Purchase Amount: | H36: =SUM(H11:H35) -> 5250 | L36: =SUM(L11:L35) -> 367.5 | M36: =SUM(M11:M35) -> 0
E38: Less Administrative Cost: | H38: =+L36 -> 367.5
E39: Less Title Escrow: | H39: =+M36 -> 0
E40: Less Wire Fee: | H40: =+'B-Inputs'!B34 -> 0
E41: Total to Be Deducted: | H41: =SUM(H38:H40) -> 367.5
E43: TOTAL TO BE FUNDED: | H43: =+H36-H41 -> 4882.5

Sheet F-Attachment Payments (hidden)
A1: ATTACHMENT TO ASSIGNMENT DATED: | D1: =+'B-Inputs'!$B$38 -> 2018-05-04
A2: Payment Schedule
A3: Dealer Name: | B3: =+'Assignment Worksheet'!D3 -> 0 | C3: Batch #: | D3: =+'B-Inputs'!B7 -> 7
A4: Address: | B4: =+'Assignment Worksheet'!D4 -> 0
A5: City: | B5: =+'Assignment Worksheet'!H4 -> 0 | C5: Phone: | D5: =+'Assignment Worksheet'!D6 -> 0
A6: State: | B6: =+'Assignment Worksheet'!D5 -> 0 | C6: Fax: | D6: =IF('Assignment Worksheet'!D7>0,+'Assignment Worksheet'!D7:F7,"") -> 
A7: Zip: | B7: =+'Assignment Worksheet'!F5 -> 0 | C7: Email:
A10: Scheduled Due Dates | B10: Payment Number | C10: Payment Amount | D10: Date Paid | E10: Amount ACH'd
A11: =+'L-Payment Schedule'!P10 -> 2018-05-18 | B11: 1 | C11: =TRANSPOSE('L-Payment Schedule'!P36:EO36) -> 55.54
A12: =+A11+'L-Payment Schedule'!$S$7 -> 2018-05-25 | B12: 2 | C12: 55.54
A13: =+A12+'L-Payment Schedule'!$S$7 -> 2018-06-01 | B13: 3 | C13: 55.54
A14: =+A13+'L-Payment Schedule'!$S$7 -> 2018-06-08 | B14: 4 | C14: 55.54
A15: =+A14+'L-Payment Schedule'!$S$7 -> 2018-06-15 | B15: 5 | C15: 55.54
A16: =+A15+'L-Payment Schedule'!$S$7 -> 2018-06-22 | B16: 6 | C16: 55.54
A17: =+A16+'L-Payment Schedule'!$S$7 -> 2018-06-29 | B17: 7 | C17: 55.54
A18: =+A17+'L-Payment Schedule'!$S$7 -> 2018-07-06 | B18: 8 | C18: 55.54
A19: =+A18+'L-Payment Schedule'!$S$7 -> 2018-07-13 | B19: 9 | C19: 55.54
A20: =+A19+'L-Payment Schedule'!$S$7 -> 2018-07-20 | B20: 10 | C20: 55.54
A21: =+A20+'L-Payment Schedule'!$S$7 -> 2018-07-27 | B21: 11 | C21: 55.54
A22: =+A21+'L-Payment Schedule'!$S$7 -> 2018-08-03 | B22: 12 | C22: 55.54
A23: =+A22+'L-Payment Schedule'!$S$7 -> 2018-08-10 | B23: 13 | C23: 55.54
A24: =+A23+'L-Payment Schedule'!$S$7 -> 2018-08-17 | B24: 14 | C24: 55.54
A25: =+A24+'L-Payment Schedule'!$S$7 -> 2018-08-24 | B25: 15 | C25: 55.54
A26: =+A25+'L-Payment Schedule'!$S$7 -> 2018-08-31 | B26: 16 | C26: 55.54
A27: =+A26+'L-Payment Schedule'!$S$7 -> 2018-09-07 | B27: 17 | C27: 55.54
A28: =+A27+'L-Payment Schedule'!$S$7 -> 2018-09-14 | B28: 18 | C28: 55.54
A29: =+A28+'L-Payment Schedule'!$S$7 -> 2018-09-21 | B29: 19 | C29: 55.54
A30: =+A29+'L-Payment Schedule'!$S$7 -> 2018-09-28 | B30: 20 | C30: 55.54
A31: =+A30+'L-Payment Schedule'!$S$7 -> 2018-10-05 | B31: 21 | C31: 55.54
A32: =+A31+'L-Payment Schedule'!$S$7 -> 2018-10-12 | B32: 22 | C32: 55.54
A33: =+A32+'L-Payment Schedule'!$S$7 -> 2018-10-19 | B33: 23 | C33: 55.54
A34: =+A33+'L-Payment Schedule'!$S$7 -> 2018-10-26 | B34: 24 | C34: 55.54
A35: =+A34+'L-Payment Schedule'!$S$7 -> 2018-11-02 | B35: 25 | C35: 55.54
A36: =+A35+'L-Payment Schedule'!$S$7 -> 2018-11-09 | B36: 26 | C36: 55.54
A37: =+A36+'L-Payment Schedule'!$S$7 -> 2018-11-16 | B37: 27 | C37: 55.54
A38: =+A37+'L-Payment Schedule'!$S$7 -> 2018-11-23 | B38: 28 | C38: 55.54
A39: =+A38+'L-Payment Schedule'!$S$7 -> 2018-11-30 | B39: 29 | C39: 55.54
A40: =+A39+'L-Payment Schedule'!$S$7 -> 2018-12-07 | B40: 30 | C40: 55.54
A41: =+A40+'L-Payment Schedule'!$S$7 -> 2018-12-14 | B41: 31 | C41: 55.54
A42: =+A41+'L-Payment Schedule'!$S$7 -> 2018-12-21 | B42: 32 | C42: 55.54
A43: =+A42+'L-Payment Schedule'!$S$7 -> 2018-12-28 | B43: 33 | C43: 55.54
A44: =+A43+'L-Payment Schedule'!$S$7 -> 2019-01-04 | B44: 34 | C44: 55.54
A45: =+A44+'L-Payment Schedule'!$S$7 -> 2019-01-11 | B45: 35 | C45: 55.54
A46: =+A45+'L-Payment Schedule'!$S$7 -> 2019-01-18 | B46: 36 | C46: 55.54
A47: =+A46+'L-Payment Schedule'!$S$7 -> 2019-01-25 | B47: 37 | C47: 55.54
A48: =+A47+'L-Payment Schedule'!$S$7 -> 2019-02-01 | B48: 38 | C48: 55.54
A49: =+A48+'L-Payment Schedule'!$S$7 -> 2019-02-08 | B49: 39 | C49: 55.54
A50: =+A49+'L-Payment Schedule'!$S$7 -> 2019-02-15 | B50: 40 | C50: 55.54
A51: =+A50+'L-Payment Schedule'!$S$7 -> 2019-02-22 | B51: 41 | C51: 55.54
A52: =+A51+'L-Payment Schedule'!$S$7 -> 2019-03-01 | B52: 42 | C52: 55.54
A53: =+A52+'L-Payment Schedule'!$S$7 -> 2019-03-08 | B53: 43 | C53: 55.54
A54: =+A53+'L-Payment Schedule'!$S$7 -> 2019-03-15 | B54: 44 | C54: 55.54
A55: =+A54+'L-Payment Schedule'!$S$7 -> 2019-03-22 | B55: 45 | C55: 55.54
A56: =+A55+'L-Payment Schedule'!$S$7 -> 2019-03-29 | B56: 46 | C56: 55.54
A57: =+A56+'L-Payment Schedule'!$S$7 -> 2019-04-05 | B57: 47 | C57: 55.54
A58: =+A57+'L-Payment Schedule'!$S$7 -> 2019-04-12 | B58: 48 | C58: 55.54
A59: =+A58+'L-Payment Schedule'!$S$7 -> 2019-04-19 | B59: 49 | C59: 55.54
A60: =+A59+'L-Payment Schedule'!$S$7 -> 2019-04-26 | B60: 50 | C60: 55.54
A61: =+A60+'L-Payment Schedule'!$S$7 -> 2019-05-03 | B61: 51 | C61: 55.54
A62: =+A61+'L-Payment Schedule'!$S$7 -> 2019-05-10 | B62: 52 | C62: 55.54
A63: =+A62+'L-Payment Schedule'!$S$7 -> 2019-05-17 | B63: 53 | C63: 55.54
A64: =+A63+'L-Payment Schedule'!$S$7 -> 2019-05-24 | B64: 54 | C64: 55.54
A65: =+A64+'L-Payment Schedule'!$S$7 -> 2019-05-31 | B65: 55 | C65: 55.54
A66: =+A65+'L-Payment Schedule'!$S$7 -> 2019-06-07 | B66: 56 | C66: 55.54
A67: =+A66+'L-Payment Schedule'!$S$7 -> 2019-06-14 | B67: 57 | C67: 55.54
A68: =+A67+'L-Payment Schedule'!$S$7 -> 2019-06-21 | B68: 58 | C68: 55.54
A69: =+A68+'L-Payment Schedule'!$S$7 -> 2019-06-28 | B69: 59 | C69: 55.54
A70: =+A69+'L-Payment Schedule'!$S$7 -> 2019-07-05 | B70: 60 | C70: 55.54
A71: =+A70+'L-Payment Schedule'!$S$7 -> 2019-07-12 | B71: 61 | C71: 55.54
A72: =+A71+'L-Payment Schedule'!$S$7 -> 2019-07-19 | B72: 62 | C72: 55.54
A73: =+A72+'L-Payment Schedule'!$S$7 -> 2019-07-26 | B73: 63 | C73: 55.54
A74: =+A73+'L-Payment Schedule'!$S$7 -> 2019-08-02 | B74: 64 | C74: 55.54
A75: =+A74+'L-Payment Schedule'!$S$7 -> 2019-08-09 | B75: 65 | C75: 55.54
A76: =+A75+'L-Payment Schedule'!$S$7 -> 2019-08-16 | B76: 66 | C76: 55.54
A77: =+A76+'L-Payment Schedule'!$S$7 -> 2019-08-23 | B77: 67 | C77: 55.54
A78: =+A77+'L-Payment Schedule'!$S$7 -> 2019-08-30 | B78: 68 | C78: 55.54
A79: =+A78+'L-Payment Schedule'!$S$7 -> 2019-09-06 | B79: 69 | C79: 55.54
A80: =+A79+'L-Payment Schedule'!$S$7 -> 2019-09-13 | B80: 70 | C80: 55.54
A81: =+A80+'L-Payment Schedule'!$S$7 -> 2019-09-20 | B81: 71 | C81: 55.54
A82: =+A81+'L-Payment Schedule'!$S$7 -> 2019-09-27 | B82: 72 | C82: 55.54
A83: =+A82+'L-Payment Schedule'!$S$7 -> 2019-10-04 | B83: 73 | C83: 55.54
A84: =+A83+'L-Payment Schedule'!$S$7 -> 2019-10-11 | B84: 74 | C84: 55.54
A85: =+A84+'L-Payment Schedule'!$S$7 -> 2019-10-18 | B85: 75 | C85: 55.54
A86: =+A85+'L-Payment Schedule'!$S$7 -> 2019-10-25 | B86: 76 | C86: 55.54
A87: =+A86+'L-Payment Schedule'!$S$7 -> 2019-11-01 | B87: 77 | C87: 55.54
A88: =+A87+'L-Payment Schedule'!$S$7 -> 2019-11-08 | B88: 78 | C88: 55.54
A89: =+A88+'L-Payment Schedule'!$S$7 -> 2019-11-15 | B89: 79 | C89: 55.54
A90: =+A89+'L-Payment Schedule'!$S$7 -> 2019-11-22 | B90: 80 | C90: 55.54
A91: =+A90+'L-Payment Schedule'!$S$7 -> 2019-11-29 | B91: 81 | C91: 55.54
A92: =+A91+'L-Payment Schedule'!$S$7 -> 2019-12-06 | B92: 82 | C92: 55.54
A93: =+A92+'L-Payment Schedule'!$S$7 -> 2019-12-13 | B93: 83 | C93: 55.54
A94: =+A93+'L-Payment Schedule'!$S$7 -> 2019-12-20 | B94: 84 | C94: 55.54
A95: =+A94+'L-Payment Schedule'!$S$7 -> 2019-12-27 | B95: 85 | C95: 55.54
A96: =+A95+'L-Payment Schedule'!$S$7 -> 2020-01-03 | B96: 86 | C96: 55.54
A97: =+A96+'L-Payment Schedule'!$S$7 -> 2020-01-10 | B97: 87 | C97: 55.54
A98: =+A97+'L-Payment Schedule'!$S$7 -> 2020-01-17 | B98: 88 | C98: 55.54
A99: =+A98+'L-Payment Schedule'!$S$7 -> 2020-01-24 | B99: 89 | C99: 55.54
A100: =+A99+'L-Payment Schedule'!$S$7 -> 2020-01-31 | B100: 90 | C100: 55.54
A101: =+A100+'L-Payment Schedule'!$S$7 -> 2020-02-07 | B101: 91 | C101: 55.54
A102: =+A101+'L-Payment Schedule'!$S$7 -> 2020-02-14 | B102: 92 | C102: 55.54
A103: =+A102+'L-Payment Schedule'!$S$7 -> 2020-02-21 | B103: 93 | C103: 55.54
A104: =+A103+'L-Payment Schedule'!$S$7 -> 2020-02-28 | B104: 94 | C104: 55.54
A105: =+A104+'L-Payment Schedule'!$S$7 -> 2020-03-06 | B105: 95 | C105: 55.54
A106: =+A105+'L-Payment Schedule'!$S$7 -> 2020-03-13 | B106: 96 | C106: 55.54
A107: =+A106+'L-Payment Schedule'!$S$7 -> 2020-03-20 | B107: 97 | C107: 55.54
A108: =+A107+'L-Payment Schedule'!$S$7 -> 2020-03-27 | B108: 98 | C108: 55.54
A109: =+A108+'L-Payment Schedule'!$S$7 -> 2020-04-03 | B109: 99 | C109: 55.54
A110: =+A109+'L-Payment Schedule'!$S$7 -> 2020-04-10 | B110: 100 | C110: 55.54
A111: =+A110+'L-Payment Schedule'!$S$7 -> 2020-04-17 | B111: 101 | C111: 55.54
A112: =+A111+'L-Payment Schedule'!$S$7 -> 2020-04-24 | B112: 102 | C112: 55.54
A113: =+A112+'L-Payment Schedule'!$S$7 -> 2020-05-01 | B113: 103 | C113: 55.54
A114: =+A113+'L-Payment Schedule'!$S$7 -> 2020-05-08 | B114: 104 | C114: 55.54
A115: =+A114+'L-Payment Schedule'!$S$7 -> 2020-05-15 | B115: 105 | C115: 55.54
A116: =+A115+'L-Payment Schedule'!$S$7 -> 2020-05-22 | B116: 106 | C116: 55.54
A117: =+A116+'L-Payment Schedule'!$S$7 -> 2020-05-29 | B117: 107 | C117: 55.54
A118: =+A117+'L-Payment Schedule'!$S$7 -> 2020-06-05 | B118: 108 | C118: 55.54
A119: =+A118+'L-Payment Schedule'!$S$7 -> 2020-06-12 | B119: 109 | C119: 55.54
A120: =+A119+'L-Payment Schedule'!$S$7 -> 2020-06-19 | B120: 110 | C120: 55.54
A121: =+A120+'L-Payment Schedule'!$S$7 -> 2020-06-26 | B121: 111 | C121: 55.54
A122: =+A121+'L-Payment Schedule'!$S$7 -> 2020-07-03 | B122: 112 | C122: 55.54
A123: =+A122+'L-Payment Schedule'!$S$7 -> 2020-07-10 | B123: 113 | C123: 55.54
A124: =+A123+'L-Payment Schedule'!$S$7 -> 2020-07-17 | B124: 114 | C124: 55.54
A125: =+A124+'L-Payment Schedule'!$S$7 -> 2020-07-24 | B125: 115 | C125: 55.54
A126: =+A125+'L-Payment Schedule'!$S$7 -> 2020-07-31 | B126: 116 | C126: 55.54
A127: =+A126+'L-Payment Schedule'!$S$7 -> 2020-08-07 | B127: 117 | C127: 55.54
A128: =+A127+'L-Payment Schedule'!$S$7 -> 2020-08-14 | B128: 118 | C128: 55.54
A129: =+A128+'L-Payment Schedule'!$S$7 -> 2020-08-21 | B129: 119 | C129: 55.54
A130: =+A129+'L-Payment Schedule'!$S$7 -> 2020-08-28 | B130: 120 | C130: 55.54
A131: =+A130+'L-Payment Schedule'!$S$7 -> 2020-09-04 | B131: 121 | C131: 55.54
A132: =+A131+'L-Payment Schedule'!$S$7 -> 2020-09-11 | B132: 122 | C132: 55.54
A133: =+A132+'L-Payment Schedule'!$S$7 -> 2020-09-18 | B133: 123 | C133: 55.54
A134: =+A133+'L-Payment Schedule'!$S$7 -> 2020-09-25 | B134: 124 | C134: 55.54
A135: =+A134+'L-Payment Schedule'!$S$7 -> 2020-10-02 | B135: 125 | C135: 55.54
A136: =+A135+'L-Payment Schedule'!$S$7 -> 2020-10-09 | B136: 126 | C136: 55.54
A137: =+A136+'L-Payment Schedule'!$S$7 -> 2020-10-16 | B137: 127 | C137: 55.54
A138: =+A137+'L-Payment Schedule'!$S$7 -> 2020-10-23 | B138: 128 | C138: 55.54
A139: =+A138+'L-Payment Schedule'!$S$7 -> 2020-10-30 | B139: 129 | C139: 55.54
A140: =+A139+'L-Payment Schedule'!$S$7 -> 2020-11-06 | B140: 130 | C140: 55.54

Sheet Q - Internal Payments (hidden)
A1: INTERNAL ONLY - PAYMENT/ACH SCHEDULE | F1: =+'B-Inputs'!$B$38 -> 2018-05-04
A3: Dealer Name: | B3: =+'Assignment Worksheet'!D3 -> 0 | C3: Batch #: | F3: =+'B-Inputs'!B7 -> 7
A4: Address: | B4: =+'Assignment Worksheet'!D4 -> 0
A5: City: | B5: =+'Assignment Worksheet'!H4 -> 0 | C5: Phone: | F5: =+'Assignment Worksheet'!D6 -> 0
A6: State: | B6: =+'Assignment Worksheet'!D5 -> 0 | C6: Fax: | F6: =IF('Assignment Worksheet'!D7>0,+'Assignment Worksheet'!D7:F7,"") -> 
A7: Zip: | B7: =+'Assignment Worksheet'!F5 -> 0 | C7: Email:
A10: Scheduled Due Dates | B10: Payment Number | C10: Total Payment | D10: Interest | E10: Principal | F10: Date Paid | G10: Amount ACH'd
A11: =+'L-Payment Schedule'!P10 -> 2018-05-18 | B11: 1 | C11: =TRANSPOSE('L-Payment Schedule'!P36:EO36) -> 55.54 | D11: =TRANSPOSE('L-Payment Schedule'!JR36:OQ36) -> 15.15 | E11: =TRANSPOSE('L-Payment Schedule'!EQ36:JP36) -> 40.39
A12: =+A11+'L-Payment Schedule'!$S$7 -> 2018-05-25 | B12: 2 | C12: 55.54 | D12: 15.15 | E12: 40.39
A13: =+A12+'L-Payment Schedule'!$S$7 -> 2018-06-01 | B13: 3 | C13: 55.54 | D13: 15.15 | E13: 40.39
A14: =+A13+'L-Payment Schedule'!$S$7 -> 2018-06-08 | B14: 4 | C14: 55.54 | D14: 15.15 | E14: 40.39
A15: =+A14+'L-Payment Schedule'!$S$7 -> 2018-06-15 | B15: 5 | C15: 55.54 | D15: 15.15 | E15: 40.39
A16: =+A15+'L-Payment Schedule'!$S$7 -> 2018-06-22 | B16: 6 | C16: 55.54 | D16: 15.15 | E16: 40.39
A17: =+A16+'L-Payment Schedule'!$S$7 -> 2018-06-29 | B17: 7 | C17: 55.54 | D17: 15.15 | E17: 40.39
A18: =+A17+'L-Payment Schedule'!$S$7 -> 2018-07-06 | B18: 8 | C18: 55.54 | D18: 15.15 | E18: 40.39
A19: =+A18+'L-Payment Schedule'!$S$7 -> 2018-07-13 | B19: 9 | C19: 55.54 | D19: 15.15 | E19: 40.39
A20: =+A19+'L-Payment Schedule'!$S$7 -> 2018-07-20 | B20: 10 | C20: 55.54 | D20: 15.15 | E20: 40.39
A21: =+A20+'L-Payment Schedule'!$S$7 -> 2018-07-27 | B21: 11 | C21: 55.54 | D21: 15.15 | E21: 40.39
A22: =+A21+'L-Payment Schedule'!$S$7 -> 2018-08-03 | B22: 12 | C22: 55.54 | D22: 15.15 | E22: 40.39
A23: =+A22+'L-Payment Schedule'!$S$7 -> 2018-08-10 | B23: 13 | C23: 55.54 | D23: 15.15 | E23: 40.39
A24: =+A23+'L-Payment Schedule'!$S$7 -> 2018-08-17 | B24: 14 | C24: 55.54 | D24: 15.15 | E24: 40.39
A25: =+A24+'L-Payment Schedule'!$S$7 -> 2018-08-24 | B25: 15 | C25: 55.54 | D25: 15.15 | E25: 40.39
A26: =+A25+'L-Payment Schedule'!$S$7 -> 2018-08-31 | B26: 16 | C26: 55.54 | D26: 15.15 | E26: 40.39
A27: =+A26+'L-Payment Schedule'!$S$7 -> 2018-09-07 | B27: 17 | C27: 55.54 | D27: 15.15 | E27: 40.39
A28: =+A27+'L-Payment Schedule'!$S$7 -> 2018-09-14 | B28: 18 | C28: 55.54 | D28: 15.15 | E28: 40.39
A29: =+A28+'L-Payment Schedule'!$S$7 -> 2018-09-21 | B29: 19 | C29: 55.54 | D29: 15.15 | E29: 40.39
A30: =+A29+'L-Payment Schedule'!$S$7 -> 2018-09-28 | B30: 20 | C30: 55.54 | D30: 15.15 | E30: 40.39
A31: =+A30+'L-Payment Schedule'!$S$7 -> 2018-10-05 | B31: 21 | C31: 55.54 | D31: 15.15 | E31: 40.39
A32: =+A31+'L-Payment Schedule'!$S$7 -> 2018-10-12 | B32: 22 | C32: 55.54 | D32: 15.15 | E32: 40.39
A33: =+A32+'L-Payment Schedule'!$S$7 -> 2018-10-19 | B33: 23 | C33: 55.54 | D33: 15.15 | E33: 40.39
A34: =+A33+'L-Payment Schedule'!$S$7 -> 2018-10-26 | B34: 24 | C34: 55.54 | D34: 15.15 | E34: 40.39
A35: =+A34+'L-Payment Schedule'!$S$7 -> 2018-11-02 | B35: 25 | C35: 55.54 | D35: 15.15 | E35: 40.39
A36: =+A35+'L-Payment Schedule'!$S$7 -> 2018-11-09 | B36: 26 | C36: 55.54 | D36: 15.15 | E36: 40.39
A37: =+A36+'L-Payment Schedule'!$S$7 -> 2018-11-16 | B37: 27 | C37: 55.54 | D37: 15.15 | E37: 40.39
A38: =+A37+'L-Payment Schedule'!$S$7 -> 2018-11-23 | B38: 28 | C38: 55.54 | D38: 15.15 | E38: 40.39
A39: =+A38+'L-Payment Schedule'!$S$7 -> 2018-11-30 | B39: 29 | C39: 55.54 | D39: 15.15 | E39: 40.39
A40: =+A39+'L-Payment Schedule'!$S$7 -> 2018-12-07 | B40: 30 | C40: 55.54 | D40: 15.15 | E40: 40.39
A41: =+A40+'L-Payment Schedule'!$S$7 -> 2018-12-14 | B41: 31 | C41: 55.54 | D41: 15.15 | E41: 40.39
A42: =+A41+'L-Payment Schedule'!$S$7 -> 2018-12-21 | B42: 32 | C42: 55.54 | D42: 15.15 | E42: 40.39
A43: =+A42+'L-Payment Schedule'!$S$7 -> 2018-12-28 | B43: 33 | C43: 55.54 | D43: 15.15 | E43: 40.39
A44: =+A43+'L-Payment Schedule'!$S$7 -> 2019-01-04 | B44: 34 | C44: 55.54 | D44: 15.15 | E44: 40.39
A45: =+A44+'L-Payment Schedule'!$S$7 -> 2019-01-11 | B45: 35 | C45: 55.54 | D45: 15.15 | E45: 40.39
A46: =+A45+'L-Payment Schedule'!$S$7 -> 2019-01-18 | B46: 36 | C46: 55.54 | D46: 15.15 | E46: 40.39
A47: =+A46+'L-Payment Schedule'!$S$7 -> 2019-01-25 | B47: 37 | C47: 55.54 | D47: 15.15 | E47: 40.39
A48: =+A47+'L-Payment Schedule'!$S$7 -> 2019-02-01 | B48: 38 | C48: 55.54 | D48: 15.15 | E48: 40.39
A49: =+A48+'L-Payment Schedule'!$S$7 -> 2019-02-08 | B49: 39 | C49: 55.54 | D49: 15.15 | E49: 40.39
A50: =+A49+'L-Payment Schedule'!$S$7 -> 2019-02-15 | B50: 40 | C50: 55.54 | D50: 15.15 | E50: 40.39
A51: =+A50+'L-Payment Schedule'!$S$7 -> 2019-02-22 | B51: 41 | C51: 55.54 | D51: 15.15 | E51: 40.39
A52: =+A51+'L-Payment Schedule'!$S$7 -> 2019-03-01 | B52: 42 | C52: 55.54 | D52: 15.15 | E52: 40.39
A53: =+A52+'L-Payment Schedule'!$S$7 -> 2019-03-08 | B53: 43 | C53: 55.54 | D53: 15.15 | E53: 40.39
A54: =+A53+'L-Payment Schedule'!$S$7 -> 2019-03-15 | B54: 44 | C54: 55.54 | D54: 15.15 | E54: 40.39
A55: =+A54+'L-Payment Schedule'!$S$7 -> 2019-03-22 | B55: 45 | C55: 55.54 | D55: 15.15 | E55: 40.39
A56: =+A55+'L-Payment Schedule'!$S$7 -> 2019-03-29 | B56: 46 | C56: 55.54 | D56: 15.15 | E56: 40.39
A57: =+A56+'L-Payment Schedule'!$S$7 -> 2019-04-05 | B57: 47 | C57: 55.54 | D57: 15.15 | E57: 40.39
A58: =+A57+'L-Payment Schedule'!$S$7 -> 2019-04-12 | B58: 48 | C58: 55.54 | D58: 15.15 | E58: 40.39
A59: =+A58+'L-Payment Schedule'!$S$7 -> 2019-04-19 | B59: 49 | C59: 55.54 | D59: 15.15 | E59: 40.39
A60: =+A59+'L-Payment Schedule'!$S$7 -> 2019-04-26 | B60: 50 | C60: 55.54 | D60: 15.15 | E60: 40.39
A61: =+A60+'L-Payment Schedule'!$S$7 -> 2019-05-03 | B61: 51 | C61: 55.54 | D61: 15.15 | E61: 40.39
A62: =+A61+'L-Payment Schedule'!$S$7 -> 2019-05-10 | B62: 52 | C62: 55.54 | D62: 15.15 | E62: 40.39
A63: =+A62+'L-Payment Schedule'!$S$7 -> 2019-05-17 | B63: 53 | C63: 55.54 | D63: 15.15 | E63: 40.39
A64: =+A63+'L-Payment Schedule'!$S$7 -> 2019-05-24 | B64: 54 | C64: 55.54 | D64: 15.15 | E64: 40.39
A65: =+A64+'L-Payment Schedule'!$S$7 -> 2019-05-31 | B65: 55 | C65: 55.54 | D65: 15.15 | E65: 40.39
A66: =+A65+'L-Payment Schedule'!$S$7 -> 2019-06-07 | B66: 56 | C66: 55.54 | D66: 15.15 | E66: 40.39
A67: =+A66+'L-Payment Schedule'!$S$7 -> 2019-06-14 | B67: 57 | C67: 55.54 | D67: 15.15 | E67: 40.39
A68: =+A67+'L-Payment Schedule'!$S$7 -> 2019-06-21 | B68: 58 | C68: 55.54 | D68: 15.15 | E68: 40.39
A69: =+A68+'L-Payment Schedule'!$S$7 -> 2019-06-28 | B69: 59 | C69: 55.54 | D69: 15.15 | E69: 40.39
A70: =+A69+'L-Payment Schedule'!$S$7 -> 2019-07-05 | B70: 60 | C70: 55.54 | D70: 15.15 | E70: 40.39
A71: =+A70+'L-Payment Schedule'!$S$7 -> 2019-07-12 | B71: 61 | C71: 55.54 | D71: 15.15 | E71: 40.39
A72: =+A71+'L-Payment Schedule'!$S$7 -> 2019-07-19 | B72: 62 | C72: 55.54 | D72: 15.15 | E72: 40.39
A73: =+A72+'L-Payment Schedule'!$S$7 -> 2019-07-26 | B73: 63 | C73: 55.54 | D73: 15.15 | E73: 40.39
A74: =+A73+'L-Payment Schedule'!$S$7 -> 2019-08-02 | B74: 64 | C74: 55.54 | D74: 15.15 | E74: 40.39
A75: =+A74+'L-Payment Schedule'!$S$7 -> 2019-08-09 | B75: 65 | C75: 55.54 | D75: 15.15 | E75: 40.39
A76: =+A75+'L-Payment Schedule'!$S$7 -> 2019-08-16 | B76: 66 | C76: 55.54 | D76: 15.15 | E76: 40.39
A77: =+A76+'L-Payment Schedule'!$S$7 -> 2019-08-23 | B77: 67 | C77: 55.54 | D77: 15.15 | E77: 40.39
A78: =+A77+'L-Payment Schedule'!$S$7 -> 2019-08-30 | B78: 68 | C78: 55.54 | D78: 15.15 | E78: 40.39
A79: =+A78+'L-Payment Schedule'!$S$7 -> 2019-09-06 | B79: 69 | C79: 55.54 | D79: 15.15 | E79: 40.39
A80: =+A79+'L-Payment Schedule'!$S$7 -> 2019-09-13 | B80: 70 | C80: 55.54 | D80: 15.15 | E80: 40.39
A81: =+A80+'L-Payment Schedule'!$S$7 -> 2019-09-20 | B81: 71 | C81: 55.54 | D81: 15.15 | E81: 40.39
A82: =+A81+'L-Payment Schedule'!$S$7 -> 2019-09-27 | B82: 72 | C82: 55.54 | D82: 15.15 | E82: 40.39
A83: =+A82+'L-Payment Schedule'!$S$7 -> 2019-10-04 | B83: 73 | C83: 55.54 | D83: 15.15 | E83: 40.39
A84: =+A83+'L-Payment Schedule'!$S$7 -> 2019-10-11 | B84: 74 | C84: 55.54 | D84: 15.15 | E84: 40.39
A85: =+A84+'L-Payment Schedule'!$S$7 -> 2019-10-18 | B85: 75 | C85: 55.54 | D85: 15.15 | E85: 40.39
A86: =+A85+'L-Payment Schedule'!$S$7 -> 2019-10-25 | B86: 76 | C86: 55.54 | D86: 15.15 | E86: 40.39
A87: =+A86+'L-Payment Schedule'!$S$7 -> 2019-11-01 | B87: 77 | C87: 55.54 | D87: 15.15 | E87: 40.39
A88: =+A87+'L-Payment Schedule'!$S$7 -> 2019-11-08 | B88: 78 | C88: 55.54 | D88: 15.15 | E88: 40.39
A89: =+A88+'L-Payment Schedule'!$S$7 -> 2019-11-15 | B89: 79 | C89: 55.54 | D89: 15.15 | E89: 40.39
A90: =+A89+'L-Payment Schedule'!$S$7 -> 2019-11-22 | B90: 80 | C90: 55.54 | D90: 15.15 | E90: 40.39
A91: =+A90+'L-Payment Schedule'!$S$7 -> 2019-11-29 | B91: 81 | C91: 55.54 | D91: 15.15 | E91: 40.39
A92: =+A91+'L-Payment Schedule'!$S$7 -> 2019-12-06 | B92: 82 | C92: 55.54 | D92: 15.15 | E92: 40.39
A93: =+A92+'L-Payment Schedule'!$S$7 -> 2019-12-13 | B93: 83 | C93: 55.54 | D93: 15.15 | E93: 40.39
A94: =+A93+'L-Payment Schedule'!$S$7 -> 2019-12-20 | B94: 84 | C94: 55.54 | D94: 15.15 | E94: 40.39
A95: =+A94+'L-Payment Schedule'!$S$7 -> 2019-12-27 | B95: 85 | C95: 55.54 | D95: 15.15 | E95: 40.39
A96: =+A95+'L-Payment Schedule'!$S$7 -> 2020-01-03 | B96: 86 | C96: 55.54 | D96: 15.15 | E96: 40.39
A97: =+A96+'L-Payment Schedule'!$S$7 -> 2020-01-10 | B97: 87 | C97: 55.54 | D97: 15.15 | E97: 40.39
A98: =+A97+'L-Payment Schedule'!$S$7 -> 2020-01-17 | B98: 88 | C98: 55.54 | D98: 15.15 | E98: 40.39
A99: =+A98+'L-Payment Schedule'!$S$7 -> 2020-01-24 | B99: 89 | C99: 55.54 | D99: 15.15 | E99: 40.39
A100: =+A99+'L-Payment Schedule'!$S$7 -> 2020-01-31 | B100: 90 | C100: 55.54 | D100: 15.15 | E100: 40.39
A101: =+A100+'L-Payment Schedule'!$S$7 -> 2020-02-07 | B101: 91 | C101: 55.54 | D101: 15.15 | E101: 40.39
A102: =+A101+'L-Payment Schedule'!$S$7 -> 2020-02-14 | B102: 92 | C102: 55.54 | D102: 15.15 | E102: 40.39
A103: =+A102+'L-Payment Schedule'!$S$7 -> 2020-02-21 | B103: 93 | C103: 55.54 | D103: 15.15 | E103: 40.39
A104: =+A103+'L-Payment Schedule'!$S$7 -> 2020-02-28 | B104: 94 | C104: 55.54 | D104: 15.15 | E104: 40.39
A105: =+A104+'L-Payment Schedule'!$S$7 -> 2020-03-06 | B105: 95 | C105: 55.54 | D105: 15.15 | E105: 40.39
A106: =+A105+'L-Payment Schedule'!$S$7 -> 2020-03-13 | B106: 96 | C106: 55.54 | D106: 15.15 | E106: 40.39
A107: =+A106+'L-Payment Schedule'!$S$7 -> 2020-03-20 | B107: 97 | C107: 55.54 | D107: 15.15 | E107: 40.39
A108: =+A107+'L-Payment Schedule'!$S$7 -> 2020-03-27 | B108: 98 | C108: 55.54 | D108: 15.15 | E108: 40.39
A109: =+A108+'L-Payment Schedule'!$S$7 -> 2020-04-03 | B109: 99 | C109: 55.54 | D109: 15.15 | E109: 40.39
A110: =+A109+'L-Payment Schedule'!$S$7 -> 2020-04-10 | B110: 100 | C110: 55.54 | D110: 15.15 | E110: 40.39
A111: =+A110+'L-Payment Schedule'!$S$7 -> 2020-04-17 | B111: 101 | C111: 55.54 | D111: 15.15 | E111: 40.39
A112: =+A111+'L-Payment Schedule'!$S$7 -> 2020-04-24 | B112: 102 | C112: 55.54 | D112: 15.15 | E112: 40.39
A113: =+A112+'L-Payment Schedule'!$S$7 -> 2020-05-01 | B113: 103 | C113: 55.54 | D113: 15.15 | E113: 40.39
A114: =+A113+'L-Payment Schedule'!$S$7 -> 2020-05-08 | B114: 104 | C114: 55.54 | D114: 15.15 | E114: 40.39
A115: =+A114+'L-Payment Schedule'!$S$7 -> 2020-05-15 | B115: 105 | C115: 55.54 | D115: 15.15 | E115: 40.39
A116: =+A115+'L-Payment Schedule'!$S$7 -> 2020-05-22 | B116: 106 | C116: 55.54 | D116: 15.15 | E116: 40.39
A117: =+A116+'L-Payment Schedule'!$S$7 -> 2020-05-29 | B117: 107 | C117: 55.54 | D117: 15.15 | E117: 40.39
A118: =+A117+'L-Payment Schedule'!$S$7 -> 2020-06-05 | B118: 108 | C118: 55.54 | D118: 15.15 | E118: 40.39
A119: =+A118+'L-Payment Schedule'!$S$7 -> 2020-06-12 | B119: 109 | C119: 55.54 | D119: 15.15 | E119: 40.39
A120: =+A119+'L-Payment Schedule'!$S$7 -> 2020-06-19 | B120: 110 | C120: 55.54 | D120: 15.15 | E120: 40.39
A121: =+A120+'L-Payment Schedule'!$S$7 -> 2020-06-26 | B121: 111 | C121: 55.54 | D121: 15.15 | E121: 40.39
A122: =+A121+'L-Payment Schedule'!$S$7 -> 2020-07-03 | B122: 112 | C122: 55.54 | D122: 15.15 | E122: 40.39
A123: =+A122+'L-Payment Schedule'!$S$7 -> 2020-07-10 | B123: 113 | C123: 55.54 | D123: 15.15 | E123: 40.39
A124: =+A123+'L-Payment Schedule'!$S$7 -> 2020-07-17 | B124: 114 | C124: 55.54 | D124: 15.15 | E124: 40.39
A125: =+A124+'L-Payment Schedule'!$S$7 -> 2020-07-24 | B125: 115 | C125: 55.54 | D125: 15.15 | E125: 40.39
A126: =+A125+'L-Payment Schedule'!$S$7 -> 2020-07-31 | B126: 116 | C126: 55.54 | D126: 15.15 | E126: 40.39
A127: =+A126+'L-Payment Schedule'!$S$7 -> 2020-08-07 | B127: 117 | C127: 55.54 | D127: 15.15 | E127: 40.39
A128: =+A127+'L-Payment Schedule'!$S$7 -> 2020-08-14 | B128: 118 | C128: 55.54 | D128: 15.15 | E128: 40.39
A129: =+A128+'L-Payment Schedule'!$S$7 -> 2020-08-21 | B129: 119 | C129: 55.54 | D129: 15.15 | E129: 40.39
A130: =+A129+'L-Payment Schedule'!$S$7 -> 2020-08-28 | B130: 120 | C130: 55.54 | D130: 15.15 | E130: 40.39
A131: =+A130+'L-Payment Schedule'!$S$7 -> 2020-09-04 | B131: 121 | C131: 55.54 | D131: 15.15 | E131: 40.39
A132: =+A131+'L-Payment Schedule'!$S$7 -> 2020-09-11 | B132: 122 | C132: 55.54 | D132: 15.15 | E132: 40.39
A133: =+A132+'L-Payment Schedule'!$S$7 -> 2020-09-18 | B133: 123 | C133: 55.54 | D133: 15.15 | E133: 40.39
A134: =+A133+'L-Payment Schedule'!$S$7 -> 2020-09-25 | B134: 124 | C134: 55.54 | D134: 15.15 | E134: 40.39
A135: =+A134+'L-Payment Schedule'!$S$7 -> 2020-10-02 | B135: 125 | C135: 55.54 | D135: 15.15 | E135: 40.39
A136: =+A135+'L-Payment Schedule'!$S$7 -> 2020-10-09 | B136: 126 | C136: 55.54 | D136: 15.15 | E136: 40.39
A137: =+A136+'L-Payment Schedule'!$S$7 -> 2020-10-16 | B137: 127 | C137: 55.54 | D137: 15.15 | E137: 40.39
A138: =+A137+'L-Payment Schedule'!$S$7 -> 2020-10-23 | B138: 128 | C138: 55.54 | D138: 15.15 | E138: 40.39
A139: =+A138+'L-Payment Schedule'!$S$7 -> 2020-10-30 | B139: 129 | C139: 55.54 | D139: 15.15 | E139: 40.39
A140: =+A139+'L-Payment Schedule'!$S$7 -> 2020-11-06 | B140: 130 | C140: 55.54 | D140: 15.15 | E140: 40.39

Sheet G&K-Funding Analysis (hidden)
A1: SDA INTERNAL ANALYSIS FUNDING ANALYSIS | Q1: SDA Funding Basis and Term Analysis
Q3: Dealership Name: | T3: =+'Assignment Worksheet'!Q2:U2 -> 0 | AA3: Low Basis Term Cap: | AC3: =+'B-Inputs'!$B$26 -> 5000 | AE3: Max Auction Date: | AF3: =+'B-Inputs'!$B$30 -> 90
A4: Dealership Name: | D4: =+'Assignment Worksheet'!D3:H3 -> 0 | Q4: NADA %: | T4: =+'B-Inputs'!$B$15 -> 1.25 | U4: Monthly Advance Fee: | Y4: =+'B-Inputs'!$B$21 -> 0.0125 | AA4: Low Basis Term Cap Weeks: | AC4: =+'B-Inputs'!$B$27*4.333 -> 103.992 | AD4: Min Funding Weeks: | AF4: =+'B-Inputs'!R30 -> 0
A5: NADA %: | D5: =+'B-Inputs'!$B$15 -> 1.25 | E5: Monthly Advance Fee: | H5: =+'B-Inputs'!$B$21 -> 0.0125 | J5: Low Basis Term Cap: | L5: =+'B-Inputs'!$B$26 -> 5000 | N5: Max Auction Date: | O5: =+'B-Inputs'!$B$30 -> 90 | Q5: Customer Principal %: | T5: =+'B-Inputs'!$B$17 -> 0.65 | U5: Weekly Advance Fee: | Y5: =+'B-Inputs'!B22 -> 0.002884837295 | AA5: Term Reduction: | AC5: =+'B-Inputs'!$B$25 -> 6
A6: Customer Principal %: | D6: =+'B-Inputs'!$B$17 -> 0.65 | E6: Weekly Advance Fee: | H6: =+'B-Inputs'!$B$22 -> 0.002884837295 | J6: Low Basis Term Cap Weeks: | L6: =+'B-Inputs'!$B$27*4.333 -> 103.992 | M6: Min Funding Weeks: | O6: =+'B-Inputs'!B33 -> 26 | Q6: Advance Fee %: | T6: =+'B-Inputs'!$B$18 -> 0.07 | U6: MAX Advance Fee: | Y6: =+'B-Inputs'!$B$19 -> 700 | AA6: Payoff Per Account: | AC6: =+'B-Inputs'!$B$29 -> 99
A7: Advance Fee %: | D7: =+'B-Inputs'!$B$18 -> 0.07 | E7: MAX Advance Fee: | H7: =+'B-Inputs'!$B$19 -> 700 | J7: Term Reduction: | L7: =+'B-Inputs'!$B$25 -> 6 | M7: Max Term Weeks: | O7: =+'B-Inputs'!B24 -> 129.99 | Q7: Max Funding Basis: | T7: =+'B-Inputs'!$B$20 -> 10000 | U7: Max Term Months: | Y7: =+'B-Inputs'!$B$23 -> 30
A8: Max Funding Basis: | D8: =+'B-Inputs'!$B$20 -> 10000 | E8: Max Term Months: | H8: =+'B-Inputs'!$B$23 -> 30 | J8: Payoff Per Account: | L8: =+'B-Inputs'!$B$29 -> 99 | R8: Compliance | U8: Funding Basis Values | Z8: Auction Compliance | AB8: Term Conversion to Weeks | AI8: ACTUAL | AJ8: Load Fee
B9: Auction Eligible | C9: VIN | D9: Car Year | E9: Make | F9: Model | G9: Last Name | H9: First Name | I9: Funding Basis | J9: Term in Weeks | K9: Funding Basis Pay Down | L9: Advance Fee | M9: Total Payment | N9: One Time Load Fee | O9: Documents Compliant | R9: Eligible (Auction Age) | S9: Payment History Current | T9: Min Term Compliant | U9: NADA Average Trade In | V9: SDA % of NADA Average Trade | W9: Auction Cost | X9: Maximum Funding Per Vehicle | Y9: SDA % of Current Principal | Z9: Auction Date | AA9: Auction Date plus Days | AB9: Monthly Conversion To weeks | AC9: Semi-Monthly conversion | AD9: Bi-Weekly Conversion | AE9: Weekly Conversion | AF9: Less Term Reduction | AG9: Calculated TERM in Weeks | AH9: Max Term in Weeks | AI9: Funding Term in Weeks | AJ9: Load Fee | AK9: Max Load Fee
A10: EX | C10: =+'Assignment Worksheet'!H10 -> 12AB13578002 | D10: =+'Assignment Worksheet'!J10 -> 2011 | E10: =+'Assignment Worksheet'!K10 -> Chevy | F10: =+'Assignment Worksheet'!L10 -> Malibu | G10: =+'Assignment Worksheet'!M10 -> Smith | H10: =+'Assignment Worksheet'!N10 -> David | I10: =MIN(V10:Y10) -> 3125 | J10: =IF(AND(I10<=$L$5,AI10>$L$6),+$L$6,(IF(AND(I10>$L$5,AG10>=$O$7),+$O$7,+ROUND(AI10,0)))) -> 103.992 | K10: =IF(I10>0,+I10/J10,"") -> 30.05038849 | L10: =IF(I10>0,+I10*$H$6,"") -> 9.015116547 | M10: =SUM(K10:L10) -> 39.06550504 | N10: =MIN(AJ10:AK10) -> 700 | O10: =+'D-Checklist'!B10 -> YES/NO | Q10: EX | R10: Eligible or InEligibility | U10: 2500 | V10: =+U10*$D$5 -> 3125 | W10: =+'Assignment Worksheet'!G10 -> 4000 | X10: 10000 | Y10: =+'Assignment Worksheet'!E10*$D$6 -> 6434.35 | Z10: =+'Assignment Worksheet'!F10 -> 2017-11-22 | AA10: =IF(I10>0,+Z10+$O$5,"") -> 2018-02-20 | AB10: =IF('Assignment Worksheet'!B10="M",+'Assignment Worksheet'!D10*4.333,0) -> 155.988 | AC10: =IF('Assignment Worksheet'!B10="S",+'Assignment Worksheet'!D10*2,0) -> 0 | AD10: =IF('Assignment Worksheet'!B10="B",+'Assignment Worksheet'!D10*2.1665,0) -> 0 | AE10: =IF('Assignment Worksheet'!B10="W",+'Assignment Worksheet'!D10,0) -> 0 | AF10: =IF(I10>0,(-$L$7*4.333),"") -> -25.998 | AG10: =IF(I10>0,(SUM(AB10:AF10)),"") -> 129.99 | AH10: =IF(I10>0,(+$H$8*4.333),"") -> 129.99 | AI10: =IF(I10:I59,MIN(AG10:AH10),"") -> 129.99 | AJ10: =IF(R10="YES",+I10*$D$7,"") ->  | AK10: =IF(I10:I59,(+$H$7),"") -> 700
A11: 1 | B11: =+R11 -> Eligible | C11: =+'Assignment Worksheet'!H11 -> 1231233123212310 | D11: =+'Assignment Worksheet'!J11 -> 2011 | E11: =+'Assignment Worksheet'!K11 -> 0 | F11: =+'Assignment Worksheet'!L11 -> 0 | G11: =+'Assignment Worksheet'!M11 -> 0 | H11: =+'Assignment Worksheet'!N11 -> 0 | I11: =IF(C11>0,MIN(V11:Y11),0) -> 5250 | J11: =IF(AND(I11<=$L$5,AI11>$L$6),+$L$6,(IF(AND(I11>$L$5,AG11>=$O$7),+$O$7,+ROUND(AI11,0)))) -> 129.99 | K11: =IF(I11>0,(ROUND(I11/J11,2)),"") -> 40.39 | L11: =IF(I11>0,(ROUND(+I11*$H$6,2)),"") -> 15.15 | M11: =SUM(K11:L11) -> 55.54 | N11: =MIN(AJ11:AK11) -> 367.5 | O11: =IF(I11>0,(+'D-Checklist'!B11),"") -> NO | Q11: 1 | R11: =IF('Assignment Worksheet'!D11>0,(IF('Assignment Worksheet'!C11>'G&K-Funding Analysis'!AA11,"Ineligible", "Eligible")),0) -> Eligible | S11: =+'C-NADA Values'!I11 -> Eligible | T11: =IF('Assignment Worksheet'!D11>0,(IF('G&K-Funding Analysis'!AI11>0,"Eligible","Ineligible")),"") -> Eligible | U11: =+'C-NADA Values'!H11 -> 6000 | V11: =IF(R11="Ineligible",(+U11*'B-Inputs'!$B$16),+U11*$D$5) -> 7500 | W11: =+'Assignment Worksheet'!G11 -> 5250 | X11: =IF(W11>0,+'B-Inputs'!$B$20,0) -> 10000 | Y11: =+'Assignment Worksheet'!E11*$D$6 -> 6163.4755 | Z11: =+'Assignment Worksheet'!F11 -> 2018-01-03 | AA11: =IF(W11>0,+Z11+$O$5,"") -> 2018-04-03 | AB11: =IF('Assignment Worksheet'!B11="M",+'Assignment Worksheet'!D11*4.333,0) -> 155.988 | AC11: =IF('Assignment Worksheet'!B11="S",+'Assignment Worksheet'!D11*2.166,0) -> 0 | AD11: =IF('Assignment Worksheet'!B11="B",+'Assignment Worksheet'!D11*2,0) -> 0 | AE11: =IF('Assignment Worksheet'!B11="W",+'Assignment Worksheet'!D11,0) -> 0 | AF11: =IF(W11>0,-$L$7*4.333,0) -> -25.998 | AG11: =IF(W11>0,SUM(AB11:AF11),0) -> 129.99 | AH11: =IF(W11>0,+$H$8*4.333,0) -> 129.99 | AI11: =IF(W11>0,MIN(AG11:AH11),0) -> 129.99 | AJ11: =IF(D11>0,+I11*$D$7,"") -> 367.5 | AK11: 700
A12: 2 | B12: 0 | C12: =+'Assignment Worksheet'!H12 -> 0 | D12: =+'Assignment Worksheet'!J12 -> 0 | E12: =+'Assignment Worksheet'!K12 -> 0 | F12: =+'Assignment Worksheet'!L12 -> 0 | G12: =+'Assignment Worksheet'!M12 -> 0 | H12: =+'Assignment Worksheet'!N12 -> 0 | I12: =IF(C12>0,MIN(V12:Y12),0) -> 0 | J12: =IF(AND(I12<=$L$5,AI12>$L$6),+$L$6,(IF(AND(I12>$L$5,AG12>=$O$7),+$O$7,+ROUND(AI12,0)))) -> 0 | K12: =IF(I12>0,(ROUND(I12/J12,2)),"") ->  | L12: =IF(I12>0,(ROUND(+I12*$H$6,2)),"") ->  | M12: =SUM(K12:L12) -> 0 | N12: =MIN(AJ12:AK12) -> 0 | O12: =IF(I12>0,(+'D-Checklist'!B12),"") ->  | Q12: 2 | R12: =IF('Assignment Worksheet'!D12>0,(IF('Assignment Worksheet'!C12>'G&K-Funding Analysis'!AA12,"Ineligible", "Eligible")),0) -> 0 | S12: =+'C-NADA Values'!I12 ->  | T12: =IF('Assignment Worksheet'!D12>0,(IF('G&K-Funding Analysis'!AI12>0,"Eligible","Ineligible")),"") ->  | U12: =+'C-NADA Values'!H12 -> 0 | V12: =IF(R12="Ineligible",(+U12*'B-Inputs'!$B$16),+U12*$D$5) -> 0 | W12: =+'Assignment Worksheet'!G12 -> 0 | X12: =IF(W12>0,+'B-Inputs'!$B$20,0) -> 0 | Y12: =+'Assignment Worksheet'!E12*$D$6 -> 0 | Z12: =+'Assignment Worksheet'!F12 -> 00:00:00 | AA12: =IF(W12>0,+Z12+$O$5,"") ->  | AB12: =IF('Assignment Worksheet'!B12="M",+'Assignment Worksheet'!D12*4.333,0) -> 0 | AC12: =IF('Assignment Worksheet'!B12="S",+'Assignment Worksheet'!D12*2.166,0) -> 0 | AD12: =IF('Assignment Worksheet'!B12="B",+'Assignment Worksheet'!D12*2,0) -> 0 | AE12: =IF('Assignment Worksheet'!B12="W",+'Assignment Worksheet'!D12,0) -> 0 | AF12: =IF(W12>0,-$L$7*4.333,0) -> 0 | AG12: =IF(W12>0,SUM(AB12:AF12),0) -> 0 | AH12: =IF(W12>0,+$H$8*4.333,0) -> 0 | AI12: =IF(W12>0,MIN(AG12:AH12),0) -> 0 | AJ12: =IF(D12>0,+I12*$D$7,"") -> 
A13: 3 | B13: 0 | C13: =+'Assignment Worksheet'!H13 -> 0 | D13: =+'Assignment Worksheet'!J13 -> 0 | E13: =+'Assignment Worksheet'!K13 -> 0 | F13: =+'Assignment Worksheet'!L13 -> 0 | G13: =+'Assignment Worksheet'!M13 -> 0 | H13: =+'Assignment Worksheet'!N13 -> 0 | I13: 0 | J13: 0 | M13: 0 | N13: 0 | O13: =IF(I13>0,(+'D-Checklist'!B13),"") ->  | Q13: 3 | R13: =IF('Assignment Worksheet'!D13>0,(IF('Assignment Worksheet'!C13>'G&K-Funding Analysis'!AA13,"Ineligible", "Eligible")),0) -> 0 | S13: =+'C-NADA Values'!I13 ->  | T13: =IF('Assignment Worksheet'!D13>0,(IF('G&K-Funding Analysis'!AI13>0,"Eligible","Ineligible")),"") ->  | U13: =+'C-NADA Values'!H13 -> 0 | V13: =IF(R13="Ineligible",(+U13*'B-Inputs'!$B$16),+U13*$D$5) -> 0 | W13: =+'Assignment Worksheet'!G13 -> 0 | X13: =IF(W13>0,+'B-Inputs'!$B$20,0) -> 0 | Y13: =+'Assignment Worksheet'!E13*$D$6 -> 0 | Z13: =+'Assignment Worksheet'!F13 -> 00:00:00 | AB13: =IF('Assignment Worksheet'!B13="M",+'Assignment Worksheet'!D13*4.333,0) -> 0 | AC13: =IF('Assignment Worksheet'!B13="S",+'Assignment Worksheet'!D13*2.166,0) -> 0 | AD13: =IF('Assignment Worksheet'!B13="B",+'Assignment Worksheet'!D13*2,0) -> 0 | AE13: =IF('Assignment Worksheet'!B13="W",+'Assignment Worksheet'!D13,0) -> 0 | AF13: 0 | AG13: 0 | AH13: 0 | AI13: 0
A14: 4 | B14: 0 | C14: =+'Assignment Worksheet'!H14 -> 0 | D14: =+'Assignment Worksheet'!J14 -> 0 | E14: =+'Assignment Worksheet'!K14 -> 0 | F14: =+'Assignment Worksheet'!L14 -> 0 | G14: =+'Assignment Worksheet'!M14 -> 0 | H14: =+'Assignment Worksheet'!N14 -> 0 | I14: 0 | J14: 0 | M14: 0 | N14: 0 | O14: =IF(I14>0,(+'D-Checklist'!B14),"") ->  | Q14: 4 | R14: =IF('Assignment Worksheet'!D14>0,(IF('Assignment Worksheet'!C14>'G&K-Funding Analysis'!AA14,"Ineligible", "Eligible")),0) -> 0 | S14: =+'C-NADA Values'!I14 ->  | T14: =IF('Assignment Worksheet'!D14>0,(IF('G&K-Funding Analysis'!AI14>0,"Eligible","Ineligible")),"") ->  | U14: =+'C-NADA Values'!H14 -> 0 | V14: =IF(R14="Ineligible",(+U14*'B-Inputs'!$B$16),+U14*$D$5) -> 0 | W14: =+'Assignment Worksheet'!G14 -> 0 | X14: =IF(W14>0,+'B-Inputs'!$B$20,0) -> 0 | Y14: =+'Assignment Worksheet'!E14*$D$6 -> 0 | Z14: =+'Assignment Worksheet'!F14 -> 00:00:00 | AB14: =IF('Assignment Worksheet'!B14="M",+'Assignment Worksheet'!D14*4.333,0) -> 0 | AC14: =IF('Assignment Worksheet'!B14="S",+'Assignment Worksheet'!D14*2.166,0) -> 0 | AD14: =IF('Assignment Worksheet'!B14="B",+'Assignment Worksheet'!D14*2,0) -> 0 | AE14: =IF('Assignment Worksheet'!B14="W",+'Assignment Worksheet'!D14,0) -> 0 | AF14: 0 | AG14: 0 | AH14: 0 | AI14: 0
A15: 5 | B15: 0 | C15: =+'Assignment Worksheet'!H15 -> 0 | D15: =+'Assignment Worksheet'!J15 -> 0 | E15: =+'Assignment Worksheet'!K15 -> 0 | F15: =+'Assignment Worksheet'!L15 -> 0 | G15: =+'Assignment Worksheet'!M15 -> 0 | H15: =+'Assignment Worksheet'!N15 -> 0 | I15: 0 | J15: 0 | M15: 0 | N15: 0 | O15: =IF(I15>0,(+'D-Checklist'!B15),"") ->  | Q15: 5 | R15: =IF('Assignment Worksheet'!D15>0,(IF('Assignment Worksheet'!C15>'G&K-Funding Analysis'!AA15,"Ineligible", "Eligible")),0) -> 0 | S15: =+'C-NADA Values'!I15 ->  | T15: =IF('Assignment Worksheet'!D15>0,(IF('G&K-Funding Analysis'!AI15>0,"Eligible","Ineligible")),"") ->  | U15: =+'C-NADA Values'!H15 -> 0 | V15: =IF(R15="Ineligible",(+U15*'B-Inputs'!$B$16),+U15*$D$5) -> 0 | W15: =+'Assignment Worksheet'!G15 -> 0 | X15: =IF(W15>0,+'B-Inputs'!$B$20,0) -> 0 | Y15: =+'Assignment Worksheet'!E15*$D$6 -> 0 | Z15: =+'Assignment Worksheet'!F15 -> 00:00:00 | AB15: =IF('Assignment Worksheet'!B15="M",+'Assignment Worksheet'!D15*4.333,0) -> 0 | AC15: =IF('Assignment Worksheet'!B15="S",+'Assignment Worksheet'!D15*2.166,0) -> 0 | AD15: =IF('Assignment Worksheet'!B15="B",+'Assignment Worksheet'!D15*2,0) -> 0 | AE15: =IF('Assignment Worksheet'!B15="W",+'Assignment Worksheet'!D15,0) -> 0 | AF15: 0 | AG15: 0 | AH15: 0 | AI15: 0
A16: 6 | B16: 0 | C16: =+'Assignment Worksheet'!H16 -> 0 | D16: =+'Assignment Worksheet'!J16 -> 0 | E16: =+'Assignment Worksheet'!K16 -> 0 | F16: =+'Assignment Worksheet'!L16 -> 0 | G16: =+'Assignment Worksheet'!M16 -> 0 | H16: =+'Assignment Worksheet'!N16 -> 0 | I16: 0 | J16: 0 | M16: 0 | N16: 0 | O16: =IF(I16>0,(+'D-Checklist'!B16),"") ->  | Q16: 6 | R16: =IF('Assignment Worksheet'!D16>0,(IF('Assignment Worksheet'!C16>'G&K-Funding Analysis'!AA16,"Ineligible", "Eligible")),0) -> 0 | S16: =+'C-NADA Values'!I16 ->  | T16: =IF('Assignment Worksheet'!D16>0,(IF('G&K-Funding Analysis'!AI16>0,"Eligible","Ineligible")),"") ->  | U16: =+'C-NADA Values'!H16 -> 0 | V16: =IF(R16="Ineligible",(+U16*'B-Inputs'!$B$16),+U16*$D$5) -> 0 | W16: =+'Assignment Worksheet'!G16 -> 0 | X16: =IF(W16>0,+'B-Inputs'!$B$20,0) -> 0 | Y16: =+'Assignment Worksheet'!E16*$D$6 -> 0 | Z16: =+'Assignment Worksheet'!F16 -> 00:00:00 | AB16: =IF('Assignment Worksheet'!B16="M",+'Assignment Worksheet'!D16*4.333,0) -> 0 | AC16: =IF('Assignment Worksheet'!B16="S",+'Assignment Worksheet'!D16*2.166,0) -> 0 | AD16: =IF('Assignment Worksheet'!B16="B",+'Assignment Worksheet'!D16*2,0) -> 0 | AE16: =IF('Assignment Worksheet'!B16="W",+'Assignment Worksheet'!D16,0) -> 0 | AF16: 0 | AG16: 0 | AH16: 0 | AI16: 0
A17: 7 | B17: 0 | C17: =+'Assignment Worksheet'!H17 -> 0 | D17: =+'Assignment Worksheet'!J17 -> 0 | E17: =+'Assignment Worksheet'!K17 -> 0 | F17: =+'Assignment Worksheet'!L17 -> 0 | G17: =+'Assignment Worksheet'!M17 -> 0 | H17: =+'Assignment Worksheet'!N17 -> 0 | I17: 0 | J17: 0 | M17: 0 | N17: 0 | O17: =IF(I17>0,(+'D-Checklist'!B17),"") ->  | Q17: 7 | R17: =IF('Assignment Worksheet'!D17>0,(IF('Assignment Worksheet'!C17>'G&K-Funding Analysis'!AA17,"Ineligible", "Eligible")),0) -> 0 | S17: =+'C-NADA Values'!I17 ->  | T17: =IF('Assignment Worksheet'!D17>0,(IF('G&K-Funding Analysis'!AI17>0,"Eligible","Ineligible")),"") ->  | U17: =+'C-NADA Values'!H17 -> 0 | V17: =IF(R17="Ineligible",(+U17*'B-Inputs'!$B$16),+U17*$D$5) -> 0 | W17: =+'Assignment Worksheet'!G17 -> 0 | X17: =IF(W17>0,+'B-Inputs'!$B$20,0) -> 0 | Y17: =+'Assignment Worksheet'!E17*$D$6 -> 0 | Z17: =+'Assignment Worksheet'!F17 -> 00:00:00 | AB17: =IF('Assignment Worksheet'!B17="M",+'Assignment Worksheet'!D17*4.333,0) -> 0 | AC17: =IF('Assignment Worksheet'!B17="S",+'Assignment Worksheet'!D17*2.166,0) -> 0 | AD17: =IF('Assignment Worksheet'!B17="B",+'Assignment Worksheet'!D17*2,0) -> 0 | AE17: =IF('Assignment Worksheet'!B17="W",+'Assignment Worksheet'!D17,0) -> 0 | AF17: 0 | AG17: 0 | AH17: 0 | AI17: 0 | AL17: 4
A18: 8 | B18: 0 | C18: =+'Assignment Worksheet'!H18 -> 0 | D18: =+'Assignment Worksheet'!J18 -> 0 | E18: =+'Assignment Worksheet'!K18 -> 0 | F18: =+'Assignment Worksheet'!L18 -> 0 | G18: =+'Assignment Worksheet'!M18 -> 0 | H18: =+'Assignment Worksheet'!N18 -> 0 | I18: 0 | J18: 0 | M18: 0 | N18: 0 | O18: =IF(I18>0,(+'D-Checklist'!B18),"") ->  | Q18: 8 | R18: =IF('Assignment Worksheet'!D18>0,(IF('Assignment Worksheet'!C18>'G&K-Funding Analysis'!AA18,"Ineligible", "Eligible")),0) -> 0 | S18: =+'C-NADA Values'!I18 ->  | T18: =IF('Assignment Worksheet'!D18>0,(IF('G&K-Funding Analysis'!AI18>0,"Eligible","Ineligible")),"") ->  | U18: =+'C-NADA Values'!H18 -> 0 | V18: =IF(R18="Ineligible",(+U18*'B-Inputs'!$B$16),+U18*$D$5) -> 0 | W18: =+'Assignment Worksheet'!G18 -> 0 | X18: =IF(W18>0,+'B-Inputs'!$B$20,0) -> 0 | Y18: =+'Assignment Worksheet'!E18*$D$6 -> 0 | Z18: =+'Assignment Worksheet'!F18 -> 00:00:00 | AB18: =IF('Assignment Worksheet'!B18="M",+'Assignment Worksheet'!D18*4.333,0) -> 0 | AC18: =IF('Assignment Worksheet'!B18="S",+'Assignment Worksheet'!D18*2.166,0) -> 0 | AD18: =IF('Assignment Worksheet'!B18="B",+'Assignment Worksheet'!D18*2,0) -> 0 | AE18: =IF('Assignment Worksheet'!B18="W",+'Assignment Worksheet'!D18,0) -> 0 | AF18: 0 | AG18: 0 | AH18: 0 | AI18: 0
A19: 9 | B19: 0 | C19: =+'Assignment Worksheet'!H19 -> 0 | D19: =+'Assignment Worksheet'!J19 -> 0 | E19: =+'Assignment Worksheet'!K19 -> 0 | F19: =+'Assignment Worksheet'!L19 -> 0 | G19: =+'Assignment Worksheet'!M19 -> 0 | H19: =+'Assignment Worksheet'!N19 -> 0 | I19: 0 | J19: 0 | M19: 0 | N19: 0 | O19: =IF(I19>0,(+'D-Checklist'!B19),"") ->  | Q19: 9 | R19: =IF('Assignment Worksheet'!D19>0,(IF('Assignment Worksheet'!C19>'G&K-Funding Analysis'!AA19,"Ineligible", "Eligible")),0) -> 0 | S19: =+'C-NADA Values'!I19 ->  | T19: =IF('Assignment Worksheet'!D19>0,(IF('G&K-Funding Analysis'!AI19>0,"Eligible","Ineligible")),"") ->  | U19: =+'C-NADA Values'!H19 -> 0 | V19: =IF(R19="Ineligible",(+U19*'B-Inputs'!$B$16),+U19*$D$5) -> 0 | W19: =+'Assignment Worksheet'!G19 -> 0 | X19: =IF(W19>0,+'B-Inputs'!$B$20,0) -> 0 | Y19: =+'Assignment Worksheet'!E19*$D$6 -> 0 | Z19: =+'Assignment Worksheet'!F19 -> 00:00:00 | AB19: =IF('Assignment Worksheet'!B19="M",+'Assignment Worksheet'!D19*4.333,0) -> 0 | AC19: =IF('Assignment Worksheet'!B19="S",+'Assignment Worksheet'!D19*2.166,0) -> 0 | AD19: =IF('Assignment Worksheet'!B19="B",+'Assignment Worksheet'!D19*2,0) -> 0 | AE19: =IF('Assignment Worksheet'!B19="W",+'Assignment Worksheet'!D19,0) -> 0 | AF19: 0 | AG19: 0 | AH19: 0 | AI19: 0
A20: 10 | B20: 0 | C20: =+'Assignment Worksheet'!H20 -> 0 | D20: =+'Assignment Worksheet'!J20 -> 0 | E20: =+'Assignment Worksheet'!K20 -> 0 | F20: =+'Assignment Worksheet'!L20 -> 0 | G20: =+'Assignment Worksheet'!M20 -> 0 | H20: =+'Assignment Worksheet'!N20 -> 0 | I20: 0 | J20: 0 | M20: 0 | N20: 0 | O20: =IF(I20>0,(+'D-Checklist'!B20),"") ->  | Q20: 10 | R20: =IF('Assignment Worksheet'!D20>0,(IF('Assignment Worksheet'!C20>'G&K-Funding Analysis'!AA20,"Ineligible", "Eligible")),0) -> 0 | S20: =+'C-NADA Values'!I20 ->  | T20: =IF('Assignment Worksheet'!D20>0,(IF('G&K-Funding Analysis'!AI20>0,"Eligible","Ineligible")),"") ->  | U20: =+'C-NADA Values'!H20 -> 0 | V20: =IF(R20="Ineligible",(+U20*'B-Inputs'!$B$16),+U20*$D$5) -> 0 | W20: =+'Assignment Worksheet'!G20 -> 0 | X20: =IF(W20>0,+'B-Inputs'!$B$20,0) -> 0 | Y20: =+'Assignment Worksheet'!E20*$D$6 -> 0 | Z20: =+'Assignment Worksheet'!F20 -> 00:00:00 | AB20: =IF('Assignment Worksheet'!B20="M",+'Assignment Worksheet'!D20*4.333,0) -> 0 | AC20: =IF('Assignment Worksheet'!B20="S",+'Assignment Worksheet'!D20*2.166,0) -> 0 | AD20: =IF('Assignment Worksheet'!B20="B",+'Assignment Worksheet'!D20*2,0) -> 0 | AE20: =IF('Assignment Worksheet'!B20="W",+'Assignment Worksheet'!D20,0) -> 0 | AF20: 0 | AG20: 0 | AH20: 0 | AI20: 0
A21: 11 | B21: 0 | C21: =+'Assignment Worksheet'!H21 -> 0 | D21: =+'Assignment Worksheet'!J21 -> 0 | E21: =+'Assignment Worksheet'!K21 -> 0 | F21: =+'Assignment Worksheet'!L21 -> 0 | G21: =+'Assignment Worksheet'!M21 -> 0 | H21: =+'Assignment Worksheet'!N21 -> 0 | I21: 0 | J21: 0 | M21: 0 | N21: 0 | O21: =IF(I21>0,(+'D-Checklist'!B21),"") ->  | Q21: 11 | R21: =IF('Assignment Worksheet'!D21>0,(IF('Assignment Worksheet'!C21>'G&K-Funding Analysis'!AA21,"Ineligible", "Eligible")),0) -> 0 | S21: =+'C-NADA Values'!I21 ->  | T21: =IF('Assignment Worksheet'!D21>0,(IF('G&K-Funding Analysis'!AI21>0,"Eligible","Ineligible")),"") ->  | U21: =+'C-NADA Values'!H21 -> 0 | V21: =IF(R21="Ineligible",(+U21*'B-Inputs'!$B$16),+U21*$D$5) -> 0 | W21: =+'Assignment Worksheet'!G21 -> 0 | X21: =IF(W21>0,+'B-Inputs'!$B$20,0) -> 0 | Y21: =+'Assignment Worksheet'!E21*$D$6 -> 0 | Z21: =+'Assignment Worksheet'!F21 -> 00:00:00 | AB21: =IF('Assignment Worksheet'!B21="M",+'Assignment Worksheet'!D21*4.333,0) -> 0 | AC21: =IF('Assignment Worksheet'!B21="S",+'Assignment Worksheet'!D21*2.166,0) -> 0 | AD21: =IF('Assignment Worksheet'!B21="B",+'Assignment Worksheet'!D21*2,0) -> 0 | AE21: =IF('Assignment Worksheet'!B21="W",+'Assignment Worksheet'!D21,0) -> 0 | AF21: 0 | AG21: 0 | AH21: 0 | AI21: 0
A22: 12 | B22: 0 | C22: =+'Assignment Worksheet'!H22 -> 0 | D22: =+'Assignment Worksheet'!J22 -> 0 | E22: =+'Assignment Worksheet'!K22 -> 0 | F22: =+'Assignment Worksheet'!L22 -> 0 | G22: =+'Assignment Worksheet'!M22 -> 0 | H22: =+'Assignment Worksheet'!N22 -> 0 | I22: 0 | J22: 0 | M22: 0 | N22: 0 | O22: =IF(I22>0,(+'D-Checklist'!B22),"") ->  | Q22: 12 | R22: =IF('Assignment Worksheet'!D22>0,(IF('Assignment Worksheet'!C22>'G&K-Funding Analysis'!AA22,"Ineligible", "Eligible")),0) -> 0 | S22: =+'C-NADA Values'!I22 ->  | T22: =IF('Assignment Worksheet'!D22>0,(IF('G&K-Funding Analysis'!AI22>0,"Eligible","Ineligible")),"") ->  | U22: =+'C-NADA Values'!H22 -> 0 | V22: =IF(R22="Ineligible",(+U22*'B-Inputs'!$B$16),+U22*$D$5) -> 0 | W22: =+'Assignment Worksheet'!G22 -> 0 | X22: =IF(W22>0,+'B-Inputs'!$B$20,0) -> 0 | Y22: =+'Assignment Worksheet'!E22*$D$6 -> 0 | Z22: =+'Assignment Worksheet'!F22 -> 00:00:00 | AB22: =IF('Assignment Worksheet'!B22="M",+'Assignment Worksheet'!D22*4.333,0) -> 0 | AC22: =IF('Assignment Worksheet'!B22="S",+'Assignment Worksheet'!D22*2.166,0) -> 0 | AD22: =IF('Assignment Worksheet'!B22="B",+'Assignment Worksheet'!D22*2,0) -> 0 | AE22: =IF('Assignment Worksheet'!B22="W",+'Assignment Worksheet'!D22,0) -> 0 | AF22: 0 | AG22: 0 | AH22: 0 | AI22: 0
A23: 13 | B23: 0 | C23: =+'Assignment Worksheet'!H23 -> 0 | D23: =+'Assignment Worksheet'!J23 -> 0 | E23: =+'Assignment Worksheet'!K23 -> 0 | F23: =+'Assignment Worksheet'!L23 -> 0 | G23: =+'Assignment Worksheet'!M23 -> 0 | H23: =+'Assignment Worksheet'!N23 -> 0 | I23: 0 | J23: 0 | M23: 0 | N23: 0 | O23: =IF(I23>0,(+'D-Checklist'!B23),"") ->  | Q23: 13 | R23: =IF('Assignment Worksheet'!D23>0,(IF('Assignment Worksheet'!C23>'G&K-Funding Analysis'!AA23,"Ineligible", "Eligible")),0) -> 0 | S23: =+'C-NADA Values'!I23 ->  | T23: =IF('Assignment Worksheet'!D23>0,(IF('G&K-Funding Analysis'!AI23>0,"Eligible","Ineligible")),"") ->  | U23: =+'C-NADA Values'!H23 -> 0 | V23: =IF(R23="Ineligible",(+U23*'B-Inputs'!$B$16),+U23*$D$5) -> 0 | W23: =+'Assignment Worksheet'!G23 -> 0 | X23: =IF(W23>0,+'B-Inputs'!$B$20,0) -> 0 | Y23: =+'Assignment Worksheet'!E23*$D$6 -> 0 | Z23: =+'Assignment Worksheet'!F23 -> 00:00:00 | AB23: =IF('Assignment Worksheet'!B23="M",+'Assignment Worksheet'!D23*4.333,0) -> 0 | AC23: =IF('Assignment Worksheet'!B23="S",+'Assignment Worksheet'!D23*2.166,0) -> 0 | AD23: =IF('Assignment Worksheet'!B23="B",+'Assignment Worksheet'!D23*2,0) -> 0 | AE23: =IF('Assignment Worksheet'!B23="W",+'Assignment Worksheet'!D23,0) -> 0 | AF23: 0 | AG23: 0 | AH23: 0 | AI23: 0
A24: 14 | B24: 0 | C24: =+'Assignment Worksheet'!H24 -> 0 | D24: =+'Assignment Worksheet'!J24 -> 0 | E24: =+'Assignment Worksheet'!K24 -> 0 | F24: =+'Assignment Worksheet'!L24 -> 0 | G24: =+'Assignment Worksheet'!M24 -> 0 | H24: =+'Assignment Worksheet'!N24 -> 0 | I24: 0 | J24: 0 | M24: 0 | N24: 0 | O24: =IF(I24>0,(+'D-Checklist'!B24),"") ->  | Q24: 14 | R24: =IF('Assignment Worksheet'!D24>0,(IF('Assignment Worksheet'!C24>'G&K-Funding Analysis'!AA24,"Ineligible", "Eligible")),0) -> 0 | S24: =+'C-NADA Values'!I24 ->  | T24: =IF('Assignment Worksheet'!D24>0,(IF('G&K-Funding Analysis'!AI24>0,"Eligible","Ineligible")),"") ->  | U24: =+'C-NADA Values'!H24 -> 0 | V24: =IF(R24="Ineligible",(+U24*'B-Inputs'!$B$16),+U24*$D$5) -> 0 | W24: =+'Assignment Worksheet'!G24 -> 0 | X24: =IF(W24>0,+'B-Inputs'!$B$20,0) -> 0 | Y24: =+'Assignment Worksheet'!E24*$D$6 -> 0 | Z24: =+'Assignment Worksheet'!F24 -> 00:00:00 | AB24: =IF('Assignment Worksheet'!B24="M",+'Assignment Worksheet'!D24*4.333,0) -> 0 | AC24: =IF('Assignment Worksheet'!B24="S",+'Assignment Worksheet'!D24*2.166,0) -> 0 | AD24: =IF('Assignment Worksheet'!B24="B",+'Assignment Worksheet'!D24*2,0) -> 0 | AE24: =IF('Assignment Worksheet'!B24="W",+'Assignment Worksheet'!D24,0) -> 0 | AF24: 0 | AG24: 0 | AH24: 0 | AI24: 0
A25: 15 | B25: 0 | C25: =+'Assignment Worksheet'!H25 -> 0 | D25: =+'Assignment Worksheet'!J25 -> 0 | E25: =+'Assignment Worksheet'!K25 -> 0 | F25: =+'Assignment Worksheet'!L25 -> 0 | G25: =+'Assignment Worksheet'!M25 -> 0 | H25: =+'Assignment Worksheet'!N25 -> 0 | I25: 0 | J25: 0 | M25: 0 | N25: 0 | O25: =IF(I25>0,(+'D-Checklist'!B25),"") ->  | Q25: 15 | R25: =IF('Assignment Worksheet'!D25>0,(IF('Assignment Worksheet'!C25>'G&K-Funding Analysis'!AA25,"Ineligible", "Eligible")),0) -> 0 | S25: =+'C-NADA Values'!I25 ->  | T25: =IF('Assignment Worksheet'!D25>0,(IF('G&K-Funding Analysis'!AI25>0,"Eligible","Ineligible")),"") ->  | U25: =+'C-NADA Values'!H25 -> 0 | V25: =IF(R25="Ineligible",(+U25*'B-Inputs'!$B$16),+U25*$D$5) -> 0 | W25: =+'Assignment Worksheet'!G25 -> 0 | X25: =IF(W25>0,+'B-Inputs'!$B$20,0) -> 0 | Y25: =+'Assignment Worksheet'!E25*$D$6 -> 0 | Z25: =+'Assignment Worksheet'!F25 -> 00:00:00 | AB25: =IF('Assignment Worksheet'!B25="M",+'Assignment Worksheet'!D25*4.333,0) -> 0 | AC25: =IF('Assignment Worksheet'!B25="S",+'Assignment Worksheet'!D25*2.166,0) -> 0 | AD25: =IF('Assignment Worksheet'!B25="B",+'Assignment Worksheet'!D25*2,0) -> 0 | AE25: =IF('Assignment Worksheet'!B25="W",+'Assignment Worksheet'!D25,0) -> 0 | AF25: 0 | AG25: 0 | AH25: 0 | AI25: 0
A26: 16 | B26: 0 | C26: =+'Assignment Worksheet'!H26 -> 0 | D26: =+'Assignment Worksheet'!J26 -> 0 | E26: =+'Assignment Worksheet'!K26 -> 0 | F26: =+'Assignment Worksheet'!L26 -> 0 | G26: =+'Assignment Worksheet'!M26 -> 0 | H26: =+'Assignment Worksheet'!N26 -> 0 | I26: 0 | J26: 0 | M26: 0 | N26: 0 | O26: =IF(I26>0,(+'D-Checklist'!B26),"") ->  | Q26: 16 | R26: =IF('Assignment Worksheet'!D26>0,(IF('Assignment Worksheet'!C26>'G&K-Funding Analysis'!AA26,"Ineligible", "Eligible")),0) -> 0 | S26: =+'C-NADA Values'!I26 ->  | T26: =IF('Assignment Worksheet'!D26>0,(IF('G&K-Funding Analysis'!AI26>0,"Eligible","Ineligible")),"") ->  | U26: =+'C-NADA Values'!H26 -> 0 | V26: =IF(R26="Ineligible",(+U26*'B-Inputs'!$B$16),+U26*$D$5) -> 0 | W26: =+'Assignment Worksheet'!G26 -> 0 | X26: =IF(W26>0,+'B-Inputs'!$B$20,0) -> 0 | Y26: =+'Assignment Worksheet'!E26*$D$6 -> 0 | Z26: =+'Assignment Worksheet'!F26 -> 00:00:00 | AB26: =IF('Assignment Worksheet'!B26="M",+'Assignment Worksheet'!D26*4.333,0) -> 0 | AC26: =IF('Assignment Worksheet'!B26="S",+'Assignment Worksheet'!D26*2.166,0) -> 0 | AD26: =IF('Assignment Worksheet'!B26="B",+'Assignment Worksheet'!D26*2,0) -> 0 | AE26: =IF('Assignment Worksheet'!B26="W",+'Assignment Worksheet'!D26,0) -> 0 | AF26: 0 | AG26: 0 | AH26: 0 | AI26: 0
A27: 17 | B27: 0 | C27: =+'Assignment Worksheet'!H27 -> 0 | D27: =+'Assignment Worksheet'!J27 -> 0 | E27: =+'Assignment Worksheet'!K27 -> 0 | F27: =+'Assignment Worksheet'!L27 -> 0 | G27: =+'Assignment Worksheet'!M27 -> 0 | H27: =+'Assignment Worksheet'!N27 -> 0 | I27: 0 | J27: 0 | M27: 0 | N27: 0 | O27: =IF(I27>0,(+'D-Checklist'!B27),"") ->  | Q27: 17 | R27: =IF('Assignment Worksheet'!D27>0,(IF('Assignment Worksheet'!C27>'G&K-Funding Analysis'!AA27,"Ineligible", "Eligible")),0) -> 0 | S27: =+'C-NADA Values'!I27 ->  | T27: =IF('Assignment Worksheet'!D27>0,(IF('G&K-Funding Analysis'!AI27>0,"Eligible","Ineligible")),"") ->  | U27: =+'C-NADA Values'!H27 -> 0 | V27: =IF(R27="Ineligible",(+U27*'B-Inputs'!$B$16),+U27*$D$5) -> 0 | W27: =+'Assignment Worksheet'!G27 -> 0 | X27: =IF(W27>0,+'B-Inputs'!$B$20,0) -> 0 | Y27: =+'Assignment Worksheet'!E27*$D$6 -> 0 | Z27: =+'Assignment Worksheet'!F27 -> 00:00:00 | AB27: =IF('Assignment Worksheet'!B27="M",+'Assignment Worksheet'!D27*4.333,0) -> 0 | AC27: =IF('Assignment Worksheet'!B27="S",+'Assignment Worksheet'!D27*2.166,0) -> 0 | AD27: =IF('Assignment Worksheet'!B27="B",+'Assignment Worksheet'!D27*2,0) -> 0 | AE27: =IF('Assignment Worksheet'!B27="W",+'Assignment Worksheet'!D27,0) -> 0 | AF27: 0 | AG27: 0 | AH27: 0 | AI27: 0
A28: 18 | B28: 0 | C28: =+'Assignment Worksheet'!H28 -> 0 | D28: =+'Assignment Worksheet'!J28 -> 0 | E28: =+'Assignment Worksheet'!K28 -> 0 | F28: =+'Assignment Worksheet'!L28 -> 0 | G28: =+'Assignment Worksheet'!M28 -> 0 | H28: =+'Assignment Worksheet'!N28 -> 0 | I28: 0 | J28: 0 | M28: 0 | N28: 0 | O28: =IF(I28>0,(+'D-Checklist'!B28),"") ->  | Q28: 18 | R28: =IF('Assignment Worksheet'!D28>0,(IF('Assignment Worksheet'!C28>'G&K-Funding Analysis'!AA28,"Ineligible", "Eligible")),0) -> 0 | S28: =+'C-NADA Values'!I28 ->  | T28: =IF('Assignment Worksheet'!D28>0,(IF('G&K-Funding Analysis'!AI28>0,"Eligible","Ineligible")),"") ->  | U28: =+'C-NADA Values'!H28 -> 0 | V28: =IF(R28="Ineligible",(+U28*'B-Inputs'!$B$16),+U28*$D$5) -> 0 | W28: =+'Assignment Worksheet'!G28 -> 0 | X28: =IF(W28>0,+'B-Inputs'!$B$20,0) -> 0 | Y28: =+'Assignment Worksheet'!E28*$D$6 -> 0 | Z28: =+'Assignment Worksheet'!F28 -> 00:00:00 | AB28: =IF('Assignment Worksheet'!B28="M",+'Assignment Worksheet'!D28*4.333,0) -> 0 | AC28: =IF('Assignment Worksheet'!B28="S",+'Assignment Worksheet'!D28*2.166,0) -> 0 | AD28: =IF('Assignment Worksheet'!B28="B",+'Assignment Worksheet'!D28*2,0) -> 0 | AE28: =IF('Assignment Worksheet'!B28="W",+'Assignment Worksheet'!D28,0) -> 0 | AF28: 0 | AG28: 0 | AH28: 0 | AI28: 0
A29: 19 | B29: 0 | C29: =+'Assignment Worksheet'!H29 -> 0 | D29: =+'Assignment Worksheet'!J29 -> 0 | E29: =+'Assignment Worksheet'!K29 -> 0 | F29: =+'Assignment Worksheet'!L29 -> 0 | G29: =+'Assignment Worksheet'!M29 -> 0 | H29: =+'Assignment Worksheet'!N29 -> 0 | I29: 0 | J29: 0 | M29: 0 | N29: 0 | O29: =IF(I29>0,(+'D-Checklist'!B29),"") ->  | Q29: 19 | R29: =IF('Assignment Worksheet'!D29>0,(IF('Assignment Worksheet'!C29>'G&K-Funding Analysis'!AA29,"Ineligible", "Eligible")),0) -> 0 | S29: =+'C-NADA Values'!I29 ->  | T29: =IF('Assignment Worksheet'!D29>0,(IF('G&K-Funding Analysis'!AI29>0,"Eligible","Ineligible")),"") ->  | U29: =+'C-NADA Values'!H29 -> 0 | V29: =IF(R29="Ineligible",(+U29*'B-Inputs'!$B$16),+U29*$D$5) -> 0 | W29: =+'Assignment Worksheet'!G29 -> 0 | X29: =IF(W29>0,+'B-Inputs'!$B$20,0) -> 0 | Y29: =+'Assignment Worksheet'!E29*$D$6 -> 0 | Z29: =+'Assignment Worksheet'!F29 -> 00:00:00 | AB29: =IF('Assignment Worksheet'!B29="M",+'Assignment Worksheet'!D29*4.333,0) -> 0 | AC29: =IF('Assignment Worksheet'!B29="S",+'Assignment Worksheet'!D29*2.166,0) -> 0 | AD29: =IF('Assignment Worksheet'!B29="B",+'Assignment Worksheet'!D29*2,0) -> 0 | AE29: =IF('Assignment Worksheet'!B29="W",+'Assignment Worksheet'!D29,0) -> 0 | AF29: 0 | AG29: 0 | AH29: 0 | AI29: 0
A30: 20 | B30: 0 | C30: =+'Assignment Worksheet'!H30 -> 0 | D30: =+'Assignment Worksheet'!J30 -> 0 | E30: =+'Assignment Worksheet'!K30 -> 0 | F30: =+'Assignment Worksheet'!L30 -> 0 | G30: =+'Assignment Worksheet'!M30 -> 0 | H30: =+'Assignment Worksheet'!N30 -> 0 | I30: 0 | J30: 0 | M30: 0 | N30: 0 | O30: =IF(I30>0,(+'D-Checklist'!B30),"") ->  | Q30: 20 | R30: =IF('Assignment Worksheet'!D30>0,(IF('Assignment Worksheet'!C30>'G&K-Funding Analysis'!AA30,"Ineligible", "Eligible")),0) -> 0 | S30: =+'C-NADA Values'!I30 ->  | T30: =IF('Assignment Worksheet'!D30>0,(IF('G&K-Funding Analysis'!AI30>0,"Eligible","Ineligible")),"") ->  | U30: =+'C-NADA Values'!H30 -> 0 | V30: =IF(R30="Ineligible",(+U30*'B-Inputs'!$B$16),+U30*$D$5) -> 0 | W30: =+'Assignment Worksheet'!G30 -> 0 | X30: =IF(W30>0,+'B-Inputs'!$B$20,0) -> 0 | Y30: =+'Assignment Worksheet'!E30*$D$6 -> 0 | Z30: =+'Assignment Worksheet'!F30 -> 00:00:00 | AB30: =IF('Assignment Worksheet'!B30="M",+'Assignment Worksheet'!D30*4.333,0) -> 0 | AC30: =IF('Assignment Worksheet'!B30="S",+'Assignment Worksheet'!D30*2.166,0) -> 0 | AD30: =IF('Assignment Worksheet'!B30="B",+'Assignment Worksheet'!D30*2,0) -> 0 | AE30: =IF('Assignment Worksheet'!B30="W",+'Assignment Worksheet'!D30,0) -> 0 | AF30: 0 | AG30: 0 | AH30: 0 | AI30: 0
A31: 21 | B31: 0 | C31: =+'Assignment Worksheet'!H31 -> 0 | D31: =+'Assignment Worksheet'!J31 -> 0 | E31: =+'Assignment Worksheet'!K31 -> 0 | F31: =+'Assignment Worksheet'!L31 -> 0 | G31: =+'Assignment Worksheet'!M31 -> 0 | H31: =+'Assignment Worksheet'!N31 -> 0 | I31: 0 | J31: 0 | M31: 0 | N31: 0 | O31: =IF(I31>0,(+'D-Checklist'!B31),"") ->  | Q31: 21 | R31: =IF('Assignment Worksheet'!D31>0,(IF('Assignment Worksheet'!C31>'G&K-Funding Analysis'!AA31,"Ineligible", "Eligible")),0) -> 0 | S31: =+'C-NADA Values'!I31 ->  | T31: =IF('Assignment Worksheet'!D31>0,(IF('G&K-Funding Analysis'!AI31>0,"Eligible","Ineligible")),"") ->  | U31: =+'C-NADA Values'!H31 -> 0 | V31: =IF(R31="Ineligible",(+U31*'B-Inputs'!$B$16),+U31*$D$5) -> 0 | W31: =+'Assignment Worksheet'!G31 -> 0 | X31: =IF(W31>0,+'B-Inputs'!$B$20,0) -> 0 | Y31: =+'Assignment Worksheet'!E31*$D$6 -> 0 | Z31: =+'Assignment Worksheet'!F31 -> 00:00:00 | AB31: =IF('Assignment Worksheet'!B31="M",+'Assignment Worksheet'!D31*4.333,0) -> 0 | AC31: =IF('Assignment Worksheet'!B31="S",+'Assignment Worksheet'!D31*2.166,0) -> 0 | AD31: =IF('Assignment Worksheet'!B31="B",+'Assignment Worksheet'!D31*2,0) -> 0 | AE31: =IF('Assignment Worksheet'!B31="W",+'Assignment Worksheet'!D31,0) -> 0 | AF31: 0 | AG31: 0 | AH31: 0 | AI31: 0
A32: 22 | B32: 0 | C32: =+'Assignment Worksheet'!H32 -> 0 | D32: =+'Assignment Worksheet'!J32 -> 0 | E32: =+'Assignment Worksheet'!K32 -> 0 | F32: =+'Assignment Worksheet'!L32 -> 0 | G32: =+'Assignment Worksheet'!M32 -> 0 | H32: =+'Assignment Worksheet'!N32 -> 0 | I32: 0 | J32: 0 | M32: 0 | N32: 0 | O32: =IF(I32>0,(+'D-Checklist'!B32),"") ->  | Q32: 22 | R32: =IF('Assignment Worksheet'!D32>0,(IF('Assignment Worksheet'!C32>'G&K-Funding Analysis'!AA32,"Ineligible", "Eligible")),0) -> 0 | S32: =+'C-NADA Values'!I32 ->  | T32: =IF('Assignment Worksheet'!D32>0,(IF('G&K-Funding Analysis'!AI32>0,"Eligible","Ineligible")),"") ->  | U32: =+'C-NADA Values'!H32 -> 0 | V32: =IF(R32="Ineligible",(+U32*'B-Inputs'!$B$16),+U32*$D$5) -> 0 | W32: =+'Assignment Worksheet'!G32 -> 0 | X32: =IF(W32>0,+'B-Inputs'!$B$20,0) -> 0 | Y32: =+'Assignment Worksheet'!E32*$D$6 -> 0 | Z32: =+'Assignment Worksheet'!F32 -> 00:00:00 | AB32: =IF('Assignment Worksheet'!B32="M",+'Assignment Worksheet'!D32*4.333,0) -> 0 | AC32: =IF('Assignment Worksheet'!B32="S",+'Assignment Worksheet'!D32*2.166,0) -> 0 | AD32: =IF('Assignment Worksheet'!B32="B",+'Assignment Worksheet'!D32*2,0) -> 0 | AE32: =IF('Assignment Worksheet'!B32="W",+'Assignment Worksheet'!D32,0) -> 0 | AF32: 0 | AG32: 0 | AH32: 0 | AI32: 0
A33: 23 | B33: 0 | C33: =+'Assignment Worksheet'!H33 -> 0 | D33: =+'Assignment Worksheet'!J33 -> 0 | E33: =+'Assignment Worksheet'!K33 -> 0 | F33: =+'Assignment Worksheet'!L33 -> 0 | G33: =+'Assignment Worksheet'!M33 -> 0 | H33: =+'Assignment Worksheet'!N33 -> 0 | I33: 0 | J33: 0 | M33: 0 | N33: 0 | O33: =IF(I33>0,(+'D-Checklist'!B33),"") ->  | Q33: 23 | R33: =IF('Assignment Worksheet'!D33>0,(IF('Assignment Worksheet'!C33>'G&K-Funding Analysis'!AA33,"Ineligible", "Eligible")),0) -> 0 | S33: =+'C-NADA Values'!I33 ->  | T33: =IF('Assignment Worksheet'!D33>0,(IF('G&K-Funding Analysis'!AI33>0,"Eligible","Ineligible")),"") ->  | U33: =+'C-NADA Values'!H33 -> 0 | V33: =IF(R33="Ineligible",(+U33*'B-Inputs'!$B$16),+U33*$D$5) -> 0 | W33: =+'Assignment Worksheet'!G33 -> 0 | X33: =IF(W33>0,+'B-Inputs'!$B$20,0) -> 0 | Y33: =+'Assignment Worksheet'!E33*$D$6 -> 0 | Z33: =+'Assignment Worksheet'!F33 -> 00:00:00 | AB33: =IF('Assignment Worksheet'!B33="M",+'Assignment Worksheet'!D33*4.333,0) -> 0 | AC33: =IF('Assignment Worksheet'!B33="S",+'Assignment Worksheet'!D33*2.166,0) -> 0 | AD33: =IF('Assignment Worksheet'!B33="B",+'Assignment Worksheet'!D33*2,0) -> 0 | AE33: =IF('Assignment Worksheet'!B33="W",+'Assignment Worksheet'!D33,0) -> 0 | AF33: 0 | AG33: 0 | AH33: 0 | AI33: 0
A34: 24 | B34: 0 | C34: =+'Assignment Worksheet'!H34 -> 0 | D34: =+'Assignment Worksheet'!J34 -> 0 | E34: =+'Assignment Worksheet'!K34 -> 0 | F34: =+'Assignment Worksheet'!L34 -> 0 | G34: =+'Assignment Worksheet'!M34 -> 0 | H34: =+'Assignment Worksheet'!N34 -> 0 | I34: 0 | J34: 0 | M34: 0 | N34: 0 | O34: =IF(I34>0,(+'D-Checklist'!B34),"") ->  | Q34: 24 | R34: =IF('Assignment Worksheet'!D34>0,(IF('Assignment Worksheet'!C34>'G&K-Funding Analysis'!AA34,"Ineligible", "Eligible")),0) -> 0 | S34: =+'C-NADA Values'!I34 ->  | T34: =IF('Assignment Worksheet'!D34>0,(IF('G&K-Funding Analysis'!AI34>0,"Eligible","Ineligible")),"") ->  | U34: =+'C-NADA Values'!H34 -> 0 | V34: =IF(R34="Ineligible",(+U34*'B-Inputs'!$B$16),+U34*$D$5) -> 0 | W34: =+'Assignment Worksheet'!G34 -> 0 | X34: =IF(W34>0,+'B-Inputs'!$B$20,0) -> 0 | Y34: =+'Assignment Worksheet'!E34*$D$6 -> 0 | Z34: =+'Assignment Worksheet'!F34 -> 00:00:00 | AB34: =IF('Assignment Worksheet'!B34="M",+'Assignment Worksheet'!D34*4.333,0) -> 0 | AC34: =IF('Assignment Worksheet'!B34="S",+'Assignment Worksheet'!D34*2.166,0) -> 0 | AD34: =IF('Assignment Worksheet'!B34="B",+'Assignment Worksheet'!D34*2,0) -> 0 | AE34: =IF('Assignment Worksheet'!B34="W",+'Assignment Worksheet'!D34,0) -> 0 | AF34: 0 | AG34: 0 | AH34: 0 | AI34: 0
A35: 25 | B35: 0 | C35: =+'Assignment Worksheet'!H35 -> 0 | D35: =+'Assignment Worksheet'!J35 -> 0 | E35: =+'Assignment Worksheet'!K35 -> 0 | F35: =+'Assignment Worksheet'!L35 -> 0 | G35: =+'Assignment Worksheet'!M35 -> 0 | H35: =+'Assignment Worksheet'!N35 -> 0 | I35: 0 | J35: 0 | M35: 0 | N35: 0 | O35: =IF(I35>0,(+'D-Checklist'!B35),"") ->  | Q35: 25 | R35: =IF('Assignment Worksheet'!D35>0,(IF('Assignment Worksheet'!C35>'G&K-Funding Analysis'!AA35,"Ineligible", "Eligible")),0) -> 0 | S35: =+'C-NADA Values'!I35 ->  | T35: =IF('Assignment Worksheet'!D35>0,(IF('G&K-Funding Analysis'!AI35>0,"Eligible","Ineligible")),"") ->  | U35: =+'C-NADA Values'!H35 -> 0 | V35: =IF(R35="Ineligible",(+U35*'B-Inputs'!$B$16),+U35*$D$5) -> 0 | W35: =+'Assignment Worksheet'!G35 -> 0 | X35: =IF(W35>0,+'B-Inputs'!$B$20,0) -> 0 | Y35: =+'Assignment Worksheet'!E35*$D$6 -> 0 | Z35: =+'Assignment Worksheet'!F35 -> 00:00:00 | AB35: =IF('Assignment Worksheet'!B35="M",+'Assignment Worksheet'!D35*4.333,0) -> 0 | AC35: =IF('Assignment Worksheet'!B35="S",+'Assignment Worksheet'!D35*2.166,0) -> 0 | AD35: =IF('Assignment Worksheet'!B35="B",+'Assignment Worksheet'!D35*2,0) -> 0 | AE35: =IF('Assignment Worksheet'!B35="W",+'Assignment Worksheet'!D35,0) -> 0 | AF35: 0 | AG35: 0 | AH35: 0 | AI35: 0

Sheet L-Payment Schedule (hidden)
A1: Payment Schedule Worksheet
A3: Dealership Name: | D3: =+'Assignment Worksheet'!D3 -> 0 | G3: Batch #: | H3: =+'B-Inputs'!B7 -> 7
C4: Address: | D4: =+'Assignment Worksheet'!D4 -> 0 | G4: City: | H4: =+'Assignment Worksheet'!H4 -> 0
A5: State: | D5: =+'Assignment Worksheet'!D5 -> 0 | P5: Funding Date: | S5: =+'B-Inputs'!$B$38 -> 2018-05-04
A6: Phone: | D6: =+'Assignment Worksheet'!D6 -> 0 | P6: Days Till First Payment: | S6: =+'B-Inputs'!$B$39 -> 14
A7: Fax: | D7: =+'Assignment Worksheet'!D7 -> 0 | P7: Payment Frequency | S7: =+'B-Inputs'!$B$41 -> 7
P8: Total Payment | EQ8: PRINCIPAL | JR8: INTEREST
B9: Last Name | C9: First Name | D9: Car Year | E9: Make | F9: Model | G9: Number Weekly Payments | H9: Funding Basis | I9: Funding Basis Pay Down | J9: Advance Fee | K9: Total Payment | L9: One Time Administrative Cost | M9: Title/Escrow | N9: Documents Compliant | P9: 1 | Q9: 2 | R9: 3 | S9: 4 | T9: 5 | U9: 6 | V9: 7 | W9: 8 | X9: 9 | Y9: 10 | Z9: 11 | AA9: 12 | AB9: 13 | AC9: 14 | AD9: 15 | AE9: 16 | AF9: 17 | AG9: 18 | AH9: 19 | AI9: 20 | AJ9: 21 | AK9: 22 | AL9: 23 | AM9: 24 | AN9: 25 | AO9: 26 | AP9: 27 | AQ9: 28 | AR9: 29 | AS9: 30 | AT9: 31 | AU9: 32 | AV9: 33 | AW9: 34 | AX9: 35 | AY9: 36 | AZ9: 37 | BA9: 38 | BB9: 39 | BC9: 40 | BD9: 41 | BE9: 42 | BF9: 43 | BG9: 44 | BH9: 45 | BI9: 46 | BJ9: 47 | BK9: 48 | BL9: 49 | BM9: 50 | BN9: 51 | BO9: 52 | BP9: 53 | BQ9: 54 | BR9: 55 | BS9: 56 | BT9: 57 | BU9: 58 | BV9: 59 | BW9: 60 | BX9: 61 | BY9: 62 | BZ9: 63 | CA9: 64 | CB9: 65 | CC9: 66 | CD9: 67 | CE9: 68 | CF9: 69 | CG9: 70 | CH9: 71 | CI9: 72 | CJ9: 73 | CK9: 74 | CL9: 75 | CM9: 76 | CN9: 77 | CO9: 78 | CP9: 79 | CQ9: 80 | CR9: 81 | CS9: 82 | CT9: 83 | CU9: 84 | CV9: 85 | CW9: 86 | CX9: 87 | CY9: 88 | CZ9: 89 | DA9: 90 | DB9: 91 | DC9: 92 | DD9: 93 | DE9: 94 | DF9: 95 | DG9: 96 | DH9: 97 | DI9: 98 | DJ9: 99 | DK9: 100 | DL9: 101 | DM9: 102 | DN9: 103 | DO9: 104 | DP9: 105 | DQ9: 106 | DR9: 107 | DS9: 108 | DT9: 109 | DU9: 110 | DV9: 111 | DW9: 112 | DX9: 113 | DY9: 114 | DZ9: 115 | EA9: 116 | EB9: 117 | EC9: 118 | ED9: 119 | EE9: 120 | EF9: 121 | EG9: 122 | EH9: 123 | EI9: 124 | EJ9: 125 | EK9: 126 | EL9: 127 | EM9: 128 | EN9: 129 | EO9: 130 | EQ9: 1 | ER9: 2 | ES9: 3 | ET9: 4 | EU9: 5 | EV9: 6 | EW9: 7 | EX9: 8 | EY9: 9 | EZ9: 10 | FA9: 11 | FB9: 12 | FC9: 13 | FD9: 14 | FE9: 15 | FF9: 16 | FG9: 17 | FH9: 18 | FI9: 19 | FJ9: 20 | FK9: 21 | FL9: 22 | FM9: 23 | FN9: 24 | FO9: 25 | FP9: 26 | FQ9: 27 | FR9: 28 | FS9: 29 | FT9: 30 | FU9: 31 | FV9: 32 | FW9: 33 | FX9: 34 | FY9: 35 | FZ9: 36 | GA9: 37 | GB9: 38 | GC9: 39 | GD9: 40 | GE9: 41 | GF9: 42 | GG9: 43 | GH9: 44 | GI9: 45 | GJ9: 46 | GK9: 47 | GL9: 48 | GM9: 49 | GN9: 50 | GO9: 51 | GP9: 52 | GQ9: 53 | GR9: 54 | GS9: 55 | GT9: 56 | GU9: 57 | GV9: 58 | GW9: 59 | GX9: 60 | GY9: 61 | GZ9: 62 | HA9: 63 | HB9: 64 | HC9: 65 | HD9: 66 | HE9: 67 | HF9: 68 | HG9: 69 | HH9: 70 | HI9: 71 | HJ9: 72 | HK9: 73 | HL9: 74 | HM9: 75 | HN9: 76 | HO9: 77 | HP9: 78 | HQ9: 79 | HR9: 80 | HS9: 81 | HT9: 82 | HU9: 83 | HV9: 84 | HW9: 85 | HX9: 86 | HY9: 87 | HZ9: 88 | IA9: 89 | IB9: 90 | IC9: 91 | ID9: 92 | IE9: 93 | IF9: 94 | IG9: 95 | IH9: 96 | II9: 97 | IJ9: 98 | IK9: 99 | IL9: 100 | IM9: 101 | IN9: 102 | IO9: 103 | IP9: 104 | IQ9: 105 | IR9: 106 | IS9: 107 | IT9: 108 | IU9: 109 | IV9: 110 | IW9: 111 | IX9: 112 | IY9: 113 | IZ9: 114 | JA9: 115 | JB9: 116 | JC9: 117 | JD9: 118 | JE9: 119 | JF9: 120 | JG9: 121 | JH9: 122 | JI9: 123 | JJ9: 124 | JK9: 125 | JL9: 126 | JM9: 127 | JN9: 128 | JO9: 129 | JP9: 130 | JR9: 1 | JS9: 2 | JT9: 3 | JU9: 4 | JV9: 5 | JW9: 6 | JX9: 7 | JY9: 8 | JZ9: 9 | KA9: 10 | KB9: 11 | KC9: 12 | KD9: 13 | KE9: 14 | KF9: 15 | KG9: 16 | KH9: 17 | KI9: 18 | KJ9: 19 | KK9: 20 | KL9: 21 | KM9: 22 | KN9: 23 | KO9: 24 | KP9: 25 | KQ9: 26 | KR9: 27 | KS9: 28 | KT9: 29 | KU9: 30 | KV9: 31 | KW9: 32 | KX9: 33 | KY9: 34 | KZ9: 35 | LA9: 36 | LB9: 37 | LC9: 38 | LD9: 39 | LE9: 40 | LF9: 41 | LG9: 42 | LH9: 43 | LI9: 44 | LJ9: 45 | LK9: 46 | LL9: 47 | LM9: 48 | LN9: 49 | LO9: 50 | LP9: 51 | LQ9: 52 | LR9: 53 | LS9: 54 | LT9: 55 | LU9: 56 | LV9: 57 | LW9: 58 | LX9: 59 | LY9: 60 | LZ9: 61 | MA9: 62 | MB9: 63 | MC9: 64 | MD9: 65 | ME9: 66 | MF9: 67 | MG9: 68 | MH9: 69 | MI9: 70 | MJ9: 71 | MK9: 72 | ML9: 73 | MM9: 74 | MN9: 75 | MO9: 76 | MP9: 77 | MQ9: 78 | MR9: 79 | MS9: 80 | MT9: 81 | MU9: 82 | MV9: 83 | MW9: 84 | MX9: 85 | MY9: 86 | MZ9: 87 | NA9: 88 | NB9: 89 | NC9: 90 | ND9: 91 | NE9: 92 | NF9: 93 | NG9: 94 | NH9: 95 | NI9: 96 | NJ9: 97 | NK9: 98 | NL9: 99 | NM9: 100 | NN9: 101 | NO9: 102 | NP9: 103 | NQ9: 104 | NR9: 105 | NS9: 106 | NT9: 107 | NU9: 108 | NV9: 109 | NW9: 110 | NX9: 111 | NY9: 112 | NZ9: 113 | OA9: 114 | OB9: 115 | OC9: 116 | OD9: 117 | OE9: 118 | OF9: 119 | OG9: 120 | OH9: 121 | OI9: 122 | OJ9: 123 | OK9: 124 | OL9: 125 | OM9: 126 | ON9: 127 | OO9: 128 | OP9: 129 | OQ9: 130
A10: EX | B10: =+'Assignment Worksheet'!M10 -> Smith | C10: =+'Assignment Worksheet'!N10 -> David | D10: =+'Assignment Worksheet'!J10 -> 2011 | E10: =+'Assignment Worksheet'!K10 -> Chevy | F10: =+'Assignment Worksheet'!L10 -> Malibu | G10: =ROUND(+'G&K-Funding Analysis'!J10,0) -> 104 | H10: =+'G&K-Funding Analysis'!I10 -> 3125 | I10: =+'G&K-Funding Analysis'!K10 -> 30.05038849 | J10: =+'G&K-Funding Analysis'!L10 -> 9.015116547 | K10: =+'G&K-Funding Analysis'!M10 -> 39.06550504 | L10: =+'G&K-Funding Analysis'!N10 -> 700 | M10: =IF(H10>0,(IF('D-Checklist'!I10=1,0,200)),"") -> 200 | N10: =+'G&K-Funding Analysis'!O10 -> YES/NO | P10: =+S5+S6 -> 2018-05-18 | Q10: =+P10+$S$7 -> 2018-05-25 | R10: =+Q10+$S$7 -> 2018-06-01 | S10: 2018-06-08 | T10: 2018-06-15 | U10: 2018-06-22 | V10: 2018-06-29 | W10: 2018-07-06 | X10: 2018-07-13 | Y10: 2018-07-20 | Z10: 2018-07-27 | AA10: 2018-08-03 | AB10: 2018-08-10 | AC10: 2018-08-17 | AD10: 2018-08-24 | AE10: 2018-08-31 | AF10: 2018-09-07 | AG10: 2018-09-14 | AH10: 2018-09-21 | AI10: 2018-09-28 | AJ10: 2018-10-05 | AK10: 2018-10-12 | AL10: 2018-10-19 | AM10: 2018-10-26 | AN10: 2018-11-02 | AO10: 2018-11-09 | AP10: 2018-11-16 | AQ10: 2018-11-23 | AR10: 2018-11-30 | AS10: 2018-12-07 | AT10: 2018-12-14 | AU10: 2018-12-21 | AV10: 2018-12-28 | AW10: 2019-01-04 | AX10: 2019-01-11 | AY10: 2019-01-18 | AZ10: 2019-01-25 | BA10: 2019-02-01 | BB10: 2019-02-08 | BC10: 2019-02-15 | BD10: 2019-02-22 | BE10: 2019-03-01 | BF10: 2019-03-08 | BG10: 2019-03-15 | BH10: 2019-03-22 | BI10: 2019-03-29 | BJ10: 2019-04-05 | BK10: 2019-04-12 | BL10: 2019-04-19 | BM10: 2019-04-26 | BN10: 2019-05-03 | BO10: 2019-05-10 | BP10: 2019-05-17 | BQ10: 2019-05-24 | BR10: 2019-05-31 | BS10: 2019-06-07 | BT10: 2019-06-14 | BU10: 2019-06-21 | BV10: 2019-06-28 | BW10: 2019-07-05 | BX10: 2019-07-12 | BY10: 2019-07-19 | BZ10: 2019-07-26 | CA10: 2019-08-02 | CB10: 2019-08-09 | CC10: 2019-08-16 | CD10: =+CC10+$S$7 -> 2019-08-23 | CE10: 2019-08-30 | CF10: 2019-09-06 | CG10: 2019-09-13 | CH10: 2019-09-20 | CI10: 2019-09-27 | CJ10: 2019-10-04 | CK10: 2019-10-11 | CL10: 2019-10-18 | CM10: 2019-10-25 | CN10: 2019-11-01 | CO10: 2019-11-08 | CP10: 2019-11-15 | CQ10: 2019-11-22 | CR10: 2019-11-29 | CS10: 2019-12-06 | CT10: 2019-12-13 | CU10: 2019-12-20 | CV10: 2019-12-27 | CW10: 2020-01-03 | CX10: 2020-01-10 | CY10: 2020-01-17 | CZ10: 2020-01-24 | DA10: 2020-01-31 | DB10: 2020-02-07 | DC10: 2020-02-14 | DD10: 2020-02-21 | DE10: 2020-02-28 | DF10: 2020-03-06 | DG10: 2020-03-13 | DH10: 2020-03-20 | DI10: 2020-03-27 | DJ10: 2020-04-03 | DK10: 2020-04-10 | DL10: 2020-04-17 | DM10: 2020-04-24 | DN10: 2020-05-01 | DO10: 2020-05-08 | DP10: 2020-05-15 | DQ10: 2020-05-22 | DR10: 2020-05-29 | DS10: 2020-06-05 | DT10: 2020-06-12 | DU10: 2020-06-19 | DV10: 2020-06-26 | DW10: 2020-07-03 | DX10: 2020-07-10 | DY10: 2020-07-17 | DZ10: 2020-07-24 | EA10: 2020-07-31 | EB10: 2020-08-07 | EC10: 2020-08-14 | ED10: 2020-08-21 | EE10: 2020-08-28 | EF10: 2020-09-04 | EG10: 2020-09-11 | EH10: 2020-09-18 | EI10: 2020-09-25 | EJ10: 2020-10-02 | EK10: 2020-10-09 | EL10: 2020-10-16 | EM10: 2020-10-23 | EN10: 2020-10-30 | EO10: 2020-11-06 | EQ10: =+S5+S6 -> 2018-05-18 | ER10: =+EQ10+$S$7 -> 2018-05-25 | ES10: =+ER10+$S$7 -> 2018-06-01 | ET10: =+ES10+$S$7 -> 2018-06-08 | EU10: =+ET10+$S$7 -> 2018-06-15 | EV10: =+EU10+$S$7 -> 2018-06-22 | EW10: =+EV10+$S$7 -> 2018-06-29 | EX10: =+EW10+$S$7 -> 2018-07-06 | EY10: =+EX10+$S$7 -> 2018-07-13 | EZ10: =+EY10+$S$7 -> 2018-07-20 | FA10: =+EZ10+$S$7 -> 2018-07-27 | FB10: =+FA10+$S$7 -> 2018-08-03 | FC10: =+FB10+$S$7 -> 2018-08-10 | FD10: =+FC10+$S$7 -> 2018-08-17 | FE10: =+FD10+$S$7 -> 2018-08-24 | FF10: =+FE10+$S$7 -> 2018-08-31 | FG10: =+FF10+$S$7 -> 2018-09-07 | FH10: =+FG10+$S$7 -> 2018-09-14 | FI10: =+FH10+$S$7 -> 2018-09-21 | FJ10: =+FI10+$S$7 -> 2018-09-28 | FK10: =+FJ10+$S$7 -> 2018-10-05 | FL10: =+FK10+$S$7 -> 2018-10-12 | FM10: =+FL10+$S$7 -> 2018-10-19 | FN10: =+FM10+$S$7 -> 2018-10-26 | FO10: =+FN10+$S$7 -> 2018-11-02 | FP10: =+FO10+$S$7 -> 2018-11-09 | FQ10: =+FP10+$S$7 -> 2018-11-16 | FR10: =+FQ10+$S$7 -> 2018-11-23 | FS10: =+FR10+$S$7 -> 2018-11-30 | FT10: =+FS10+$S$7 -> 2018-12-07 | FU10: =+FT10+$S$7 -> 2018-12-14 | FV10: =+FU10+$S$7 -> 2018-12-21 | FW10: =+FV10+$S$7 -> 2018-12-28 | FX10: =+FW10+$S$7 -> 2019-01-04 | FY10: =+FX10+$S$7 -> 2019-01-11 | FZ10: =+FY10+$S$7 -> 2019-01-18 | GA10: =+FZ10+$S$7 -> 2019-01-25 | GB10: =+GA10+$S$7 -> 2019-02-01 | GC10: =+GB10+$S$7 -> 2019-02-08 | GD10: =+GC10+$S$7 -> 2019-02-15 | GE10: =+GD10+$S$7 -> 2019-02-22 | GF10: =+GE10+$S$7 -> 2019-03-01 | GG10: =+GF10+$S$7 -> 2019-03-08 | GH10: =+GG10+$S$7 -> 2019-03-15 | GI10: =+GH10+$S$7 -> 2019-03-22 | GJ10: =+GI10+$S$7 -> 2019-03-29 | GK10: =+GJ10+$S$7 -> 2019-04-05 | GL10: =+GK10+$S$7 -> 2019-04-12 | GM10: =+GL10+$S$7 -> 2019-04-19 | GN10: =+GM10+$S$7 -> 2019-04-26 | GO10: =+GN10+$S$7 -> 2019-05-03 | GP10: =+GO10+$S$7 -> 2019-05-10 | GQ10: =+GP10+$S$7 -> 2019-05-17 | GR10: =+GQ10+$S$7 -> 2019-05-24 | GS10: =+GR10+$S$7 -> 2019-05-31 | GT10: =+GS10+$S$7 -> 2019-06-07 | GU10: =+GT10+$S$7 -> 2019-06-14 | GV10: =+GU10+$S$7 -> 2019-06-21 | GW10: =+GV10+$S$7 -> 2019-06-28 | GX10: =+GW10+$S$7 -> 2019-07-05 | GY10: =+GX10+$S$7 -> 2019-07-12 | GZ10: =+GY10+$S$7 -> 2019-07-19 | HA10: =+GZ10+$S$7 -> 2019-07-26 | HB10: =+HA10+$S$7 -> 2019-08-02 | HC10: =+HB10+$S$7 -> 2019-08-09 | HD10: =+HC10+$S$7 -> 2019-08-16 | HE10: =+HD10+$S$7 -> 2019-08-23 | HF10: =+HE10+$S$7 -> 2019-08-30 | HG10: =+HF10+$S$7 -> 2019-09-06 | HH10: =+HG10+$S$7 -> 2019-09-13 | HI10: =+HH10+$S$7 -> 2019-09-20 | HJ10: =+HI10+$S$7 -> 2019-09-27 | HK10: =+HJ10+$S$7 -> 2019-10-04 | HL10: =+HK10+$S$7 -> 2019-10-11 | HM10: =+HL10+$S$7 -> 2019-10-18 | HN10: =+HM10+$S$7 -> 2019-10-25 | HO10: =+HN10+$S$7 -> 2019-11-01 | HP10: =+HO10+$S$7 -> 2019-11-08 | HQ10: =+HP10+$S$7 -> 2019-11-15 | HR10: =+HQ10+$S$7 -> 2019-11-22 | HS10: =+HR10+$S$7 -> 2019-11-29 | HT10: =+HS10+$S$7 -> 2019-12-06 | HU10: =+HT10+$S$7 -> 2019-12-13 | HV10: =+HU10+$S$7 -> 2019-12-20 | HW10: =+HV10+$S$7 -> 2019-12-27 | HX10: =+HW10+$S$7 -> 2020-01-03 | HY10: =+HX10+$S$7 -> 2020-01-10 | HZ10: =+HY10+$S$7 -> 2020-01-17 | IA10: =+HZ10+$S$7 -> 2020-01-24 | IB10: =+IA10+$S$7 -> 2020-01-31 | IC10: =+IB10+$S$7 -> 2020-02-07 | ID10: =+IC10+$S$7 -> 2020-02-14 | IE10: =+ID10+$S$7 -> 2020-02-21 | IF10: =+IE10+$S$7 -> 2020-02-28 | IG10: =+IF10+$S$7 -> 2020-03-06 | IH10: =+IG10+$S$7 -> 2020-03-13 | II10: =+IH10+$S$7 -> 2020-03-20 | IJ10: =+II10+$S$7 -> 2020-03-27 | IK10: =+IJ10+$S$7 -> 2020-04-03 | IL10: =+IK10+$S$7 -> 2020-04-10 | IM10: =+IL10+$S$7 -> 2020-04-17 | IN10: =+IM10+$S$7 -> 2020-04-24 | IO10: =+IN10+$S$7 -> 2020-05-01 | IP10: =+IO10+$S$7 -> 2020-05-08 | IQ10: =+IP10+$S$7 -> 2020-05-15 | IR10: =+IQ10+$S$7 -> 2020-05-22 | IS10: =+IR10+$S$7 -> 2020-05-29 | IT10: =+IS10+$S$7 -> 2020-06-05 | IU10: =+IT10+$S$7 -> 2020-06-12 | IV10: =+IU10+$S$7 -> 2020-06-19 | IW10: =+IV10+$S$7 -> 2020-06-26 | IX10: =+IW10+$S$7 -> 2020-07-03 | IY10: =+IX10+$S$7 -> 2020-07-10 | IZ10: =+IY10+$S$7 -> 2020-07-17 | JA10: =+IZ10+$S$7 -> 2020-07-24 | JB10: =+JA10+$S$7 -> 2020-07-31 | JC10: =+JB10+$S$7 -> 2020-08-07 | JD10: =+JC10+$S$7 -> 2020-08-14 | JE10: =+JD10+$S$7 -> 2020-08-21 | JF10: =+JE10+$S$7 -> 2020-08-28 | JG10: =+JF10+$S$7 -> 2020-09-04 | JH10: =+JG10+$S$7 -> 2020-09-11 | JI10: =+JH10+$S$7 -> 2020-09-18 | JJ10: =+JI10+$S$7 -> 2020-09-25 | JK10: =+JJ10+$S$7 -> 2020-10-02 | JL10: =+JK10+$S$7 -> 2020-10-09 | JM10: =+JL10+$S$7 -> 2020-10-16 | JN10: =+JM10+$S$7 -> 2020-10-23 | JO10: =+JN10+$S$7 -> 2020-10-30 | JP10: =+JO10+$S$7 -> 2020-11-06 | JR10: =+S5+S6 -> 2018-05-18 | JS10: =+JR10+$S$7 -> 2018-05-25 | JT10: =+JS10+$S$7 -> 2018-06-01 | JU10: =+JT10+$S$7 -> 2018-06-08 | JV10: =+JU10+$S$7 -> 2018-06-15 | JW10: =+JV10+$S$7 -> 2018-06-22 | JX10: =+JW10+$S$7 -> 2018-06-29 | JY10: =+JX10+$S$7 -> 2018-07-06 | JZ10: =+JY10+$S$7 -> 2018-07-13 | KA10: =+JZ10+$S$7 -> 2018-07-20 | KB10: =+KA10+$S$7 -> 2018-07-27 | KC10: =+KB10+$S$7 -> 2018-08-03 | KD10: =+KC10+$S$7 -> 2018-08-10 | KE10: =+KD10+$S$7 -> 2018-08-17 | KF10: =+KE10+$S$7 -> 2018-08-24 | KG10: =+KF10+$S$7 -> 2018-08-31 | KH10: =+KG10+$S$7 -> 2018-09-07 | KI10: =+KH10+$S$7 -> 2018-09-14 | KJ10: =+KI10+$S$7 -> 2018-09-21 | KK10: =+KJ10+$S$7 -> 2018-09-28 | KL10: =+KK10+$S$7 -> 2018-10-05 | KM10: =+KL10+$S$7 -> 2018-10-12 | KN10: =+KM10+$S$7 -> 2018-10-19 | KO10: =+KN10+$S$7 -> 2018-10-26 | KP10: =+KO10+$S$7 -> 2018-11-02 | KQ10: =+KP10+$S$7 -> 2018-11-09 | KR10: =+KQ10+$S$7 -> 2018-11-16 | KS10: =+KR10+$S$7 -> 2018-11-23 | KT10: =+KS10+$S$7 -> 2018-11-30 | KU10: =+KT10+$S$7 -> 2018-12-07 | KV10: =+KU10+$S$7 -> 2018-12-14 | KW10: =+KV10+$S$7 -> 2018-12-21 | KX10: =+KW10+$S$7 -> 2018-12-28 | KY10: =+KX10+$S$7 -> 2019-01-04 | KZ10: =+KY10+$S$7 -> 2019-01-11 | LA10: =+KZ10+$S$7 -> 2019-01-18 | LB10: =+LA10+$S$7 -> 2019-01-25 | LC10: =+LB10+$S$7 -> 2019-02-01 | LD10: =+LC10+$S$7 -> 2019-02-08 | LE10: =+LD10+$S$7 -> 2019-02-15 | LF10: =+LE10+$S$7 -> 2019-02-22 | LG10: =+LF10+$S$7 -> 2019-03-01 | LH10: =+LG10+$S$7 -> 2019-03-08 | LI10: =+LH10+$S$7 -> 2019-03-15 | LJ10: =+LI10+$S$7 -> 2019-03-22 | LK10: =+LJ10+$S$7 -> 2019-03-29 | LL10: =+LK10+$S$7 -> 2019-04-05 | LM10: =+LL10+$S$7 -> 2019-04-12 | LN10: =+LM10+$S$7 -> 2019-04-19 | LO10: =+LN10+$S$7 -> 2019-04-26 | LP10: =+LO10+$S$7 -> 2019-05-03 | LQ10: =+LP10+$S$7 -> 2019-05-10 | LR10: =+LQ10+$S$7 -> 2019-05-17 | LS10: =+LR10+$S$7 -> 2019-05-24 | LT10: =+LS10+$S$7 -> 2019-05-31 | LU10: =+LT10+$S$7 -> 2019-06-07 | LV10: =+LU10+$S$7 -> 2019-06-14 | LW10: =+LV10+$S$7 -> 2019-06-21 | LX10: =+LW10+$S$7 -> 2019-06-28 | LY10: =+LX10+$S$7 -> 2019-07-05 | LZ10: =+LY10+$S$7 -> 2019-07-12 | MA10: =+LZ10+$S$7 -> 2019-07-19 | MB10: =+MA10+$S$7 -> 2019-07-26 | MC10: =+MB10+$S$7 -> 2019-08-02 | MD10: =+MC10+$S$7 -> 2019-08-09 | ME10: =+MD10+$S$7 -> 2019-08-16 | MF10: =+ME10+$S$7 -> 2019-08-23 | MG10: =+MF10+$S$7 -> 2019-08-30 | MH10: =+MG10+$S$7 -> 2019-09-06 | MI10: =+MH10+$S$7 -> 2019-09-13 | MJ10: =+MI10+$S$7 -> 2019-09-20 | MK10: =+MJ10+$S$7 -> 2019-09-27 | ML10: =+MK10+$S$7 -> 2019-10-04 | MM10: =+ML10+$S$7 -> 2019-10-11 | MN10: =+MM10+$S$7 -> 2019-10-18 | MO10: =+MN10+$S$7 -> 2019-10-25 | MP10: =+MO10+$S$7 -> 2019-11-01 | MQ10: =+MP10+$S$7 -> 2019-11-08 | MR10: =+MQ10+$S$7 -> 2019-11-15 | MS10: =+MR10+$S$7 -> 2019-11-22 | MT10: =+MS10+$S$7 -> 2019-11-29 | MU10: =+MT10+$S$7 -> 2019-12-06 | MV10: =+MU10+$S$7 -> 2019-12-13 | MW10: =+MV10+$S$7 -> 2019-12-20 | MX10: =+MW10+$S$7 -> 2019-12-27 | MY10: =+MX10+$S$7 -> 2020-01-03 | MZ10: =+MY10+$S$7 -> 2020-01-10 | NA10: =+MZ10+$S$7 -> 2020-01-17 | NB10: =+NA10+$S$7 -> 2020-01-24 | NC10: =+NB10+$S$7 -> 2020-01-31 | ND10: =+NC10+$S$7 -> 2020-02-07 | NE10: =+ND10+$S$7 -> 2020-02-14 | NF10: =+NE10+$S$7 -> 2020-02-21 | NG10: =+NF10+$S$7 -> 2020-02-28 | NH10: =+NG10+$S$7 -> 2020-03-06 | NI10: =+NH10+$S$7 -> 2020-03-13 | NJ10: =+NI10+$S$7 -> 2020-03-20 | NK10: =+NJ10+$S$7 -> 2020-03-27 | NL10: =+NK10+$S$7 -> 2020-04-03 | NM10: =+NL10+$S$7 -> 2020-04-10 | NN10: =+NM10+$S$7 -> 2020-04-17 | NO10: =+NN10+$S$7 -> 2020-04-24 | NP10: =+NO10+$S$7 -> 2020-05-01 | NQ10: =+NP10+$S$7 -> 2020-05-08 | NR10: =+NQ10+$S$7 -> 2020-05-15 | NS10: =+NR10+$S$7 -> 2020-05-22 | NT10: =+NS10+$S$7 -> 2020-05-29 | NU10: =+NT10+$S$7 -> 2020-06-05 | NV10: =+NU10+$S$7 -> 2020-06-12 | NW10: =+NV10+$S$7 -> 2020-06-19 | NX10: =+NW10+$S$7 -> 2020-06-26 | NY10: =+NX10+$S$7 -> 2020-07-03 | NZ10: =+NY10+$S$7 -> 2020-07-10 | OA10: =+NZ10+$S$7 -> 2020-07-17 | OB10: =+OA10+$S$7 -> 2020-07-24 | OC10: =+OB10+$S$7 -> 2020-07-31 | OD10: =+OC10+$S$7 -> 2020-08-07 | OE10: =+OD10+$S$7 -> 2020-08-14 | OF10: =+OE10+$S$7 -> 2020-08-21 | OG10: =+OF10+$S$7 -> 2020-08-28 | OH10: =+OG10+$S$7 -> 2020-09-04 | OI10: =+OH10+$S$7 -> 2020-09-11 | OJ10: =+OI10+$S$7 -> 2020-09-18 | OK10: =+OJ10+$S$7 -> 2020-09-25 | OL10: =+OK10+$S$7 -> 2020-10-02 | OM10: =+OL10+$S$7 -> 2020-10-09 | ON10: =+OM10+$S$7 -> 2020-10-16 | OO10: =+ON10+$S$7 -> 2020-10-23 | OP10: =+OO10+$S$7 -> 2020-10-30 | OQ10: =+OP10+$S$7 -> 2020-11-06
A11: 1 | B11: =+'Assignment Worksheet'!M11 -> 0 | C11: =+'Assignment Worksheet'!N11 -> 0 | D11: =+'Assignment Worksheet'!J11 -> 2011 | E11: =+'Assignment Worksheet'!K11 -> 0 | F11: =+'Assignment Worksheet'!L11 -> 00:00:00 | G11: =IF(H11>0,(ROUND(+'G&K-Funding Analysis'!J11,0)),"") -> 130 | H11: =+'G&K-Funding Analysis'!I11 -> 5250 | I11: =+'G&K-Funding Analysis'!K11 -> 40.39 | J11: =+'G&K-Funding Analysis'!L11 -> 15.15 | K11: =+'G&K-Funding Analysis'!M11 -> 55.54 | L11: =+'G&K-Funding Analysis'!N11 -> 367.5 | M11: =IF(H11>0,(IF('D-Checklist'!I11=1,0,200)),"") -> 200 | N11: =+'G&K-Funding Analysis'!O11 -> NO | P11: =IF(P$9<=$G11,+$K11,0) -> 55.54 | Q11: =IF(Q$9<=$G11,+$K11,0) -> 55.54 | R11: 55.54 | S11: 55.54 | T11: 55.54 | U11: 55.54 | V11: 55.54 | W11: 55.54 | X11: 55.54 | Y11: 55.54 | Z11: 55.54 | AA11: 55.54 | AB11: 55.54 | AC11: 55.54 | AD11: 55.54 | AE11: 55.54 | AF11: 55.54 | AG11: 55.54 | AH11: 55.54 | AI11: 55.54 | AJ11: 55.54 | AK11: 55.54 | AL11: 55.54 | AM11: 55.54 | AN11: 55.54 | AO11: 55.54 | AP11: 55.54 | AQ11: 55.54 | AR11: 55.54 | AS11: 55.54 | AT11: 55.54 | AU11: 55.54 | AV11: 55.54 | AW11: 55.54 | AX11: 55.54 | AY11: 55.54 | AZ11: 55.54 | BA11: 55.54 | BB11: 55.54 | BC11: 55.54 | BD11: 55.54 | BE11: 55.54 | BF11: 55.54 | BG11: 55.54 | BH11: 55.54 | BI11: 55.54 | BJ11: 55.54 | BK11: 55.54 | BL11: 55.54 | BM11: 55.54 | BN11: 55.54 | BO11: 55.54 | BP11: 55.54 | BQ11: 55.54 | BR11: 55.54 | BS11: 55.54 | BT11: 55.54 | BU11: 55.54 | BV11: 55.54 | BW11: 55.54 | BX11: 55.54 | BY11: 55.54 | BZ11: 55.54 | CA11: 55.54 | CB11: 55.54 | CC11: =IF(CC$9<=$G11,+$K11,0) -> 55.54 | CD11: 55.54 | CE11: 55.54 | CF11: 55.54 | CG11: 55.54 | CH11: 55.54 | CI11: 55.54 | CJ11: 55.54 | CK11: 55.54 | CL11: 55.54 | CM11: 55.54 | CN11: 55.54 | CO11: 55.54 | CP11: 55.54 | CQ11: 55.54 | CR11: 55.54 | CS11: 55.54 | CT11: 55.54 | CU11: 55.54 | CV11: 55.54 | CW11: 55.54 | CX11: 55.54 | CY11: 55.54 | CZ11: 55.54 | DA11: 55.54 | DB11: 55.54 | DC11: 55.54 | DD11: 55.54 | DE11: 55.54 | DF11: 55.54 | DG11: 55.54 | DH11: 55.54 | DI11: 55.54 | DJ11: 55.54 | DK11: 55.54 | DL11: 55.54 | DM11: 55.54 | DN11: 55.54 | DO11: 55.54 | DP11: 55.54 | DQ11: 55.54 | DR11: 55.54 | DS11: 55.54 | DT11: 55.54 | DU11: 55.54 | DV11: 55.54 | DW11: 55.54 | DX11: 55.54 | DY11: 55.54 | DZ11: 55.54 | EA11: 55.54 | EB11: 55.54 | EC11: 55.54 | ED11: 55.54 | EE11: 55.54 | EF11: 55.54 | EG11: 55.54 | EH11: 55.54 | EI11: 55.54 | EJ11: 55.54 | EK11: 55.54 | EL11: 55.54 | EM11: 55.54 | EN11: 55.54 | EO11: =IF(EO$9<=$G11,+$K11,0) -> 55.54 | EQ11: =IF(EQ$9<=$G11,+$I11,0) -> 40.39 | ER11: =IF(ER$9<=$G11,+$I11,0) -> 40.39 | ES11: 40.39 | ET11: 40.39 | EU11: 40.39 | EV11: 40.39 | EW11: 40.39 | EX11: 40.39 | EY11: 40.39 | EZ11: 40.39 | FA11: 40.39 | FB11: 40.39 | FC11: 40.39 | FD11: 40.39 | FE11: 40.39 | FF11: 40.39 | FG11: 40.39 | FH11: 40.39 | FI11: 40.39 | FJ11: 40.39 | FK11: 40.39 | FL11: 40.39 | FM11: 40.39 | FN11: 40.39 | FO11: 40.39 | FP11: 40.39 | FQ11: 40.39 | FR11: 40.39 | FS11: 40.39 | FT11: 40.39 | FU11: 40.39 | FV11: 40.39 | FW11: 40.39 | FX11: 40.39 | FY11: 40.39 | FZ11: 40.39 | GA11: 40.39 | GB11: 40.39 | GC11: 40.39 | GD11: 40.39 | GE11: 40.39 | GF11: 40.39 | GG11: 40.39 | GH11: 40.39 | GI11: 40.39 | GJ11: 40.39 | GK11: 40.39 | GL11: 40.39 | GM11: 40.39 | GN11: 40.39 | GO11: 40.39 | GP11: 40.39 | GQ11: 40.39 | GR11: 40.39 | GS11: 40.39 | GT11: 40.39 | GU11: 40.39 | GV11: 40.39 | GW11: 40.39 | GX11: 40.39 | GY11: 40.39 | GZ11: 40.39 | HA11: 40.39 | HB11: 40.39 | HC11: 40.39 | HD11: =IF(HD$9<=$G11,+$I11,0) -> 40.39 | HE11: 40.39 | HF11: 40.39 | HG11: 40.39 | HH11: 40.39 | HI11: 40.39 | HJ11: 40.39 | HK11: 40.39 | HL11: 40.39 | HM11: 40.39 | HN11: 40.39 | HO11: 40.39 | HP11: 40.39 | HQ11: 40.39 | HR11: 40.39 | HS11: 40.39 | HT11: 40.39 | HU11: 40.39 | HV11: 40.39 | HW11: 40.39 | HX11: 40.39 | HY11: 40.39 | HZ11: 40.39 | IA11: 40.39 | IB11: 40.39 | IC11: 40.39 | ID11: 40.39 | IE11: 40.39 | IF11: 40.39 | IG11: 40.39 | IH11: 40.39 | II11: 40.39 | IJ11: 40.39 | IK11: 40.39 | IL11: 40.39 | IM11: 40.39 | IN11: 40.39 | IO11: 40.39 | IP11: 40.39 | IQ11: 40.39 | IR11: 40.39 | IS11: 40.39 | IT11: 40.39 | IU11: 40.39 | IV11: 40.39 | IW11: 40.39 | IX11: 40.39 | IY11: 40.39 | IZ11: 40.39 | JA11: 40.39 | JB11: 40.39 | JC11: 40.39 | JD11: 40.39 | JE11: 40.39 | JF11: 40.39 | JG11: 40.39 | JH11: 40.39 | JI11: 40.39 | JJ11: 40.39 | JK11: 40.39 | JL11: 40.39 | JM11: 40.39 | JN11: 40.39 | JO11: 40.39 | JP11: =IF(JP$9<=$G11,+$I11,0) -> 40.39 | JR11: =IF(JR$9<=$G11,+$J11,0) -> 15.15 | JS11: =IF(JS$9<=$G11,+$J11,0) -> 15.15 | JT11: 15.15 | JU11: 15.15 | JV11: 15.15 | JW11: 15.15 | JX11: 15.15 | JY11: 15.15 | JZ11: 15.15 | KA11: 15.15 | KB11: 15.15 | KC11: 15.15 | KD11: 15.15 | KE11: 15.15 | KF11: 15.15 | KG11: 15.15 | KH11: 15.15 | KI11: 15.15 | KJ11: 15.15 | KK11: 15.15 | KL11: 15.15 | KM11: 15.15 | KN11: 15.15 | KO11: 15.15 | KP11: 15.15 | KQ11: 15.15 | KR11: 15.15 | KS11: 15.15 | KT11: 15.15 | KU11: 15.15 | KV11: 15.15 | KW11: 15.15 | KX11: 15.15 | KY11: 15.15 | KZ11: 15.15 | LA11: 15.15 | LB11: 15.15 | LC11: 15.15 | LD11: 15.15 | LE11: 15.15 | LF11: 15.15 | LG11: 15.15 | LH11: 15.15 | LI11: 15.15 | LJ11: 15.15 | LK11: 15.15 | LL11: 15.15 | LM11: 15.15 | LN11: 15.15 | LO11: 15.15 | LP11: 15.15 | LQ11: 15.15 | LR11: 15.15 | LS11: 15.15 | LT11: 15.15 | LU11: 15.15 | LV11: 15.15 | LW11: 15.15 | LX11: 15.15 | LY11: 15.15 | LZ11: 15.15 | MA11: 15.15 | MB11: 15.15 | MC11: 15.15 | MD11: 15.15 | ME11: =IF(ME$9<=$G11,+$J11,0) -> 15.15 | MF11: 15.15 | MG11: 15.15 | MH11: 15.15 | MI11: 15.15 | MJ11: 15.15 | MK11: 15.15 | ML11: 15.15 | MM11: 15.15 | MN11: 15.15 | MO11: 15.15 | MP11: 15.15 | MQ11: 15.15 | MR11: 15.15 | MS11: 15.15 | MT11: 15.15 | MU11: 15.15 | MV11: 15.15 | MW11: 15.15 | MX11: 15.15 | MY11: 15.15 | MZ11: 15.15 | NA11: 15.15 | NB11: 15.15 | NC11: 15.15 | ND11: 15.15 | NE11: 15.15 | NF11: 15.15 | NG11: 15.15 | NH11: 15.15 | NI11: 15.15 | NJ11: 15.15 | NK11: 15.15 | NL11: 15.15 | NM11: 15.15 | NN11: 15.15 | NO11: 15.15 | NP11: 15.15 | NQ11: 15.15 | NR11: 15.15 | NS11: 15.15 | NT11: 15.15 | NU11: 15.15 | NV11: 15.15 | NW11: 15.15 | NX11: 15.15 | NY11: 15.15 | NZ11: 15.15 | OA11: 15.15 | OB11: 15.15 | OC11: 15.15 | OD11: 15.15 | OE11: 15.15 | OF11: 15.15 | OG11: 15.15 | OH11: 15.15 | OI11: 15.15 | OJ11: 15.15 | OK11: 15.15 | OL11: 15.15 | OM11: 15.15 | ON11: 15.15 | OO11: 15.15 | OP11: 15.15 | OQ11: =IF(OQ$9<=$G11,+$J11,0) -> 15.15
A12: 2 | B12: =+'Assignment Worksheet'!M12 -> 0 | C12: =+'Assignment Worksheet'!N12 -> 0 | D12: =+'Assignment Worksheet'!J12 -> 0 | E12: =+'Assignment Worksheet'!K12 -> 0 | F12: =+'Assignment Worksheet'!L12 -> 00:00:00 | G12: =IF(H12>0,(ROUND(+'G&K-Funding Analysis'!J12,0)),"") ->  | H12: =+'G&K-Funding Analysis'!I12 -> 0 | I12: =+'G&K-Funding Analysis'!K12 ->  | J12: =+'G&K-Funding Analysis'!L12 ->  | K12: =+'G&K-Funding Analysis'!M12 -> 0 | L12: =+'G&K-Funding Analysis'!N12 -> 0 | M12: =IF(H12>0,(IF('D-Checklist'!I12=1,0,200)),"") ->  | N12: =+'G&K-Funding Analysis'!O12 ->  | P12: 0 | Q12: 0 | R12: 0 | S12: 0 | T12: 0 | U12: 0 | V12: 0 | W12: 0 | X12: 0 | Y12: 0 | Z12: 0 | AA12: 0 | AB12: 0 | AC12: 0 | AD12: 0 | AE12: 0 | AF12: 0 | AG12: 0 | AH12: 0 | AI12: 0 | AJ12: 0 | AK12: 0 | AL12: 0 | AM12: 0 | AN12: 0 | AO12: 0 | AP12: 0 | AQ12: 0 | AR12: 0 | AS12: 0 | AT12: 0 | AU12: 0 | AV12: 0 | AW12: 0 | AX12: 0 | AY12: 0 | AZ12: 0 | BA12: 0 | BB12: 0 | BC12: 0 | BD12: 0 | BE12: 0 | BF12: 0 | BG12: 0 | BH12: 0 | BI12: 0 | BJ12: 0 | BK12: 0 | BL12: 0 | BM12: 0 | BN12: 0 | BO12: 0 | BP12: 0 | BQ12: 0 | BR12: 0 | BS12: 0 | BT12: 0 | BU12: 0 | BV12: 0 | BW12: 0 | BX12: 0 | BY12: 0 | BZ12: 0 | CA12: 0 | CB12: 0 | CC12: 0 | CD12: 0 | CE12: 0 | CF12: 0 | CG12: 0 | CH12: 0 | CI12: 0 | CJ12: 0 | CK12: 0 | CL12: 0 | CM12: 0 | CN12: 0 | CO12: 0 | CP12: 0 | CQ12: 0 | CR12: 0 | CS12: 0 | CT12: 0 | CU12: 0 | CV12: 0 | CW12: 0 | CX12: 0 | CY12: 0 | CZ12: 0 | DA12: 0 | DB12: 0 | DC12: 0 | DD12: 0 | DE12: 0 | DF12: 0 | DG12: 0 | DH12: 0 | DI12: 0 | DJ12: 0 | DK12: 0 | DL12: 0 | DM12: 0 | DN12: 0 | DO12: 0 | DP12: 0 | DQ12: 0 | DR12: 0 | DS12: 0 | DT12: 0 | DU12: 0 | DV12: 0 | DW12: 0 | DX12: 0 | DY12: 0 | DZ12: 0 | EA12: 0 | EB12: 0 | EC12: 0 | ED12: 0 | EE12: 0 | EF12: 0 | EG12: 0 | EH12: 0 | EI12: 0 | EJ12: 0 | EK12: 0 | EL12: 0 | EM12: 0 | EN12: 0 | EO12: 0 | EQ12: =IF(EQ$9<=$G12,+$I12,0) ->  | JR12: =IF(JR$9<=$G12,+$J12,0) -> 
A13: 3 | B13: =+'Assignment Worksheet'!M13 -> 0 | C13: =+'Assignment Worksheet'!N13 -> 0 | D13: =+'Assignment Worksheet'!J13 -> 0 | E13: =+'Assignment Worksheet'!K13 -> 0 | F13: =+'Assignment Worksheet'!L13 -> 00:00:00 | G13: =IF(H13>0,(ROUND(+'G&K-Funding Analysis'!J13,0)),"") ->  | H13: =+'G&K-Funding Analysis'!I13 -> 0 | I13: =+'G&K-Funding Analysis'!K13 ->  | J13: =+'G&K-Funding Analysis'!L13 ->  | K13: =+'G&K-Funding Analysis'!M13 -> 0 | L13: =+'G&K-Funding Analysis'!N13 -> 0 | M13: =IF(H13>0,(IF('D-Checklist'!I13=1,0,200)),"") ->  | N13: =+'G&K-Funding Analysis'!O13 ->  | P13: 0 | Q13: 0 | R13: 0 | S13: 0 | T13: 0 | U13: 0 | V13: 0 | W13: 0 | X13: 0 | Y13: 0 | Z13: 0 | AA13: 0 | AB13: 0 | AC13: 0 | AD13: 0 | AE13: 0 | AF13: 0 | AG13: 0 | AH13: 0 | AI13: 0 | AJ13: 0 | AK13: 0 | AL13: 0 | AM13: 0 | AN13: 0 | AO13: 0 | AP13: 0 | AQ13: 0 | AR13: 0 | AS13: 0 | AT13: 0 | AU13: 0 | AV13: 0 | AW13: 0 | AX13: 0 | AY13: 0 | AZ13: 0 | BA13: 0 | BB13: 0 | BC13: 0 | BD13: 0 | BE13: 0 | BF13: 0 | BG13: 0 | BH13: 0 | BI13: 0 | BJ13: 0 | BK13: 0 | BL13: 0 | BM13: 0 | BN13: 0 | BO13: 0 | BP13: 0 | BQ13: 0 | BR13: 0 | BS13: 0 | BT13: 0 | BU13: 0 | BV13: 0 | BW13: 0 | BX13: 0 | BY13: 0 | BZ13: 0 | CA13: 0 | CB13: 0 | CC13: 0 | CD13: 0 | CE13: 0 | CF13: 0 | CG13: 0 | CH13: 0 | CI13: 0 | CJ13: 0 | CK13: 0 | CL13: 0 | CM13: 0 | CN13: 0 | CO13: 0 | CP13: 0 | CQ13: 0 | CR13: 0 | CS13: 0 | CT13: 0 | CU13: 0 | CV13: 0 | CW13: 0 | CX13: 0 | CY13: 0 | CZ13: 0 | DA13: 0 | DB13: 0 | DC13: 0 | DD13: 0 | DE13: 0 | DF13: 0 | DG13: 0 | DH13: 0 | DI13: 0 | DJ13: 0 | DK13: 0 | DL13: 0 | DM13: 0 | DN13: 0 | DO13: 0 | DP13: 0 | DQ13: 0 | DR13: 0 | DS13: 0 | DT13: 0 | DU13: 0 | DV13: 0 | DW13: 0 | DX13: 0 | DY13: 0 | DZ13: 0 | EA13: 0 | EB13: 0 | EC13: 0 | ED13: 0 | EE13: 0 | EF13: 0 | EG13: 0 | EH13: 0 | EI13: 0 | EJ13: 0 | EK13: 0 | EL13: 0 | EM13: 0 | EN13: 0 | EO13: 0
A14: 4 | B14: =+'Assignment Worksheet'!M14 -> 0 | C14: =+'Assignment Worksheet'!N14 -> 0 | D14: =+'Assignment Worksheet'!J14 -> 0 | E14: =+'Assignment Worksheet'!K14 -> 0 | F14: =+'Assignment Worksheet'!L14 -> 00:00:00 | G14: =IF(H14>0,(ROUND(+'G&K-Funding Analysis'!J14,0)),"") ->  | H14: =+'G&K-Funding Analysis'!I14 -> 0 | I14: =+'G&K-Funding Analysis'!K14 ->  | J14: =+'G&K-Funding Analysis'!L14 ->  | K14: =+'G&K-Funding Analysis'!M14 -> 0 | L14: =+'G&K-Funding Analysis'!N14 -> 0 | M14: =IF(H14>0,(IF('D-Checklist'!I14=1,0,200)),"") ->  | N14: =+'G&K-Funding Analysis'!O14 ->  | P14: 0 | Q14: 0 | R14: 0 | S14: 0 | T14: 0 | U14: 0 | V14: 0 | W14: 0 | X14: 0 | Y14: 0 | Z14: 0 | AA14: 0 | AB14: 0 | AC14: 0 | AD14: 0 | AE14: 0 | AF14: 0 | AG14: 0 | AH14: 0 | AI14: 0 | AJ14: 0 | AK14: 0 | AL14: 0 | AM14: 0 | AN14: 0 | AO14: 0 | AP14: 0 | AQ14: 0 | AR14: 0 | AS14: 0 | AT14: 0 | AU14: 0 | AV14: 0 | AW14: 0 | AX14: 0 | AY14: 0 | AZ14: 0 | BA14: 0 | BB14: 0 | BC14: 0 | BD14: 0 | BE14: 0 | BF14: 0 | BG14: 0 | BH14: 0 | BI14: 0 | BJ14: 0 | BK14: 0 | BL14: 0 | BM14: 0 | BN14: 0 | BO14: 0 | BP14: 0 | BQ14: 0 | BR14: 0 | BS14: 0 | BT14: 0 | BU14: 0 | BV14: 0 | BW14: 0 | BX14: 0 | BY14: 0 | BZ14: 0 | CA14: 0 | CB14: =IF(CB$9<=$G14,+$K14,0) -> 0 | CC14: 0 | CD14: 0 | CE14: 0 | CF14: 0 | CG14: 0 | CH14: 0 | CI14: 0 | CJ14: 0 | CK14: 0 | CL14: 0 | CM14: 0 | CN14: 0 | CO14: 0 | CP14: 0 | CQ14: 0 | CR14: 0 | CS14: 0 | CT14: 0 | CU14: 0 | CV14: 0 | CW14: 0 | CX14: 0 | CY14: 0 | CZ14: 0 | DA14: 0 | DB14: 0 | DC14: 0 | DD14: 0 | DE14: 0 | DF14: 0 | DG14: 0 | DH14: 0 | DI14: 0 | DJ14: 0 | DK14: 0 | DL14: 0 | DM14: 0 | DN14: 0 | DO14: 0 | DP14: 0 | DQ14: 0 | DR14: 0 | DS14: 0 | DT14: 0 | DU14: 0 | DV14: 0 | DW14: 0 | DX14: 0 | DY14: 0 | DZ14: 0 | EA14: 0 | EB14: 0 | EC14: 0 | ED14: 0 | EE14: 0 | EF14: 0 | EG14: 0 | EH14: 0 | EI14: 0 | EJ14: 0 | EK14: 0 | EL14: 0 | EM14: 0 | EN14: =IF(EN$9<=$G14,+$K14,0) -> 0 | EO14: 0 | HC14: =IF(HC$9<=$G14,+$I14,0) ->  | JO14: =IF(JO$9<=$G14,+$I14,0) ->  | MD14: =IF(MD$9<=$G14,+$J14,0) ->  | OP14: =IF(OP$9<=$G14,+$J14,0) -> 
A15: 5 | B15: =+'Assignment Worksheet'!M15 -> 0 | C15: =+'Assignment Worksheet'!N15 -> 0 | D15: =+'Assignment Worksheet'!J15 -> 0 | E15: =+'Assignment Worksheet'!K15 -> 0 | F15: =+'Assignment Worksheet'!L15 -> 00:00:00 | G15: =IF(H15>0,(ROUND(+'G&K-Funding Analysis'!J15,0)),"") ->  | H15: =+'G&K-Funding Analysis'!I15 -> 0 | I15: =+'G&K-Funding Analysis'!K15 ->  | J15: =+'G&K-Funding Analysis'!L15 ->  | K15: =+'G&K-Funding Analysis'!M15 -> 0 | L15: =+'G&K-Funding Analysis'!N15 -> 0 | M15: =IF(H15>0,(IF('D-Checklist'!I15=1,0,200)),"") ->  | N15: =+'G&K-Funding Analysis'!O15 ->  | P15: 0 | Q15: =IF(Q$9<=$G15,+$K15,0) -> 0 | R15: 0 | S15: 0 | T15: 0 | U15: 0 | V15: 0 | W15: 0 | X15: 0 | Y15: 0 | Z15: 0 | AA15: =IF(AA$9<=$G15,+$K15,0) -> 0 | AB15: 0 | AC15: 0 | AD15: 0 | AE15: 0 | AF15: 0 | AG15: 0 | AH15: 0 | AI15: 0 | AJ15: 0 | AK15: =IF(AK$9<=$G15,+$K15,0) -> 0 | AL15: 0 | AM15: 0 | AN15: 0 | AO15: 0 | AP15: 0 | AQ15: 0 | AR15: 0 | AS15: 0 | AT15: 0 | AU15: =IF(AU$9<=$G15,+$K15,0) -> 0 | AV15: 0 | AW15: 0 | AX15: 0 | AY15: 0 | AZ15: 0 | BA15: 0 | BB15: 0 | BC15: 0 | BD15: 0 | BE15: =IF(BE$9<=$G15,+$K15,0) -> 0 | BF15: 0 | BG15: 0 | BH15: 0 | BI15: 0 | BJ15: 0 | BK15: 0 | BL15: 0 | BM15: 0 | BN15: 0 | BO15: =IF(BO$9<=$G15,+$K15,0) -> 0 | BP15: 0 | BQ15: 0 | BR15: 0 | BS15: 0 | BT15: 0 | BU15: 0 | BV15: 0 | BW15: 0 | BX15: 0 | BY15: 0 | BZ15: 0 | CA15: 0 | CB15: 0 | CC15: =IF(CC$9<=$G15,+$K15,0) -> 0 | CD15: 0 | CE15: 0 | CF15: 0 | CG15: 0 | CH15: 0 | CI15: 0 | CJ15: 0 | CK15: 0 | CL15: 0 | CM15: =IF(CM$9<=$G15,+$K15,0) -> 0 | CN15: 0 | CO15: 0 | CP15: 0 | CQ15: 0 | CR15: 0 | CS15: 0 | CT15: 0 | CU15: 0 | CV15: 0 | CW15: =IF(CW$9<=$G15,+$K15,0) -> 0 | CX15: 0 | CY15: 0 | CZ15: 0 | DA15: 0 | DB15: 0 | DC15: 0 | DD15: 0 | DE15: 0 | DF15: 0 | DG15: =IF(DG$9<=$G15,+$K15,0) -> 0 | DH15: 0 | DI15: 0 | DJ15: 0 | DK15: 0 | DL15: 0 | DM15: 0 | DN15: 0 | DO15: 0 | DP15: 0 | DQ15: =IF(DQ$9<=$G15,+$K15,0) -> 0 | DR15: 0 | DS15: 0 | DT15: 0 | DU15: 0 | DV15: 0 | DW15: 0 | DX15: 0 | DY15: 0 | DZ15: 0 | EA15: =IF(EA$9<=$G15,+$K15,0) -> 0 | EB15: 0 | EC15: 0 | ED15: 0 | EE15: 0 | EF15: 0 | EG15: 0 | EH15: 0 | EI15: 0 | EJ15: 0 | EK15: 0 | EL15: 0 | EM15: 0 | EN15: 0 | EO15: 0
A16: 6 | B16: =+'Assignment Worksheet'!M16 -> 0 | C16: =+'Assignment Worksheet'!N16 -> 0 | D16: =+'Assignment Worksheet'!J16 -> 0 | E16: =+'Assignment Worksheet'!K16 -> 0 | F16: =+'Assignment Worksheet'!L16 -> 00:00:00 | G16: =IF(H16>0,(ROUND(+'G&K-Funding Analysis'!J16,0)),"") ->  | H16: =+'G&K-Funding Analysis'!I16 -> 0 | I16: =+'G&K-Funding Analysis'!K16 ->  | J16: =+'G&K-Funding Analysis'!L16 ->  | K16: =+'G&K-Funding Analysis'!M16 -> 0 | L16: =+'G&K-Funding Analysis'!N16 -> 0 | M16: =IF(H16>0,(IF('D-Checklist'!I16=1,0,200)),"") ->  | N16: =+'G&K-Funding Analysis'!O16 ->  | P16: 0 | Q16: 0 | R16: 0 | S16: 0 | T16: 0 | U16: 0 | V16: 0 | W16: 0 | X16: 0 | Y16: 0 | Z16: 0 | AA16: 0 | AB16: 0 | AC16: 0 | AD16: 0 | AE16: 0 | AF16: 0 | AG16: 0 | AH16: 0 | AI16: 0 | AJ16: 0 | AK16: 0 | AL16: 0 | AM16: 0 | AN16: 0 | AO16: 0 | AP16: 0 | AQ16: 0 | AR16: 0 | AS16: 0 | AT16: 0 | AU16: 0 | AV16: 0 | AW16: 0 | AX16: 0 | AY16: 0 | AZ16: 0 | BA16: 0 | BB16: 0 | BC16: 0 | BD16: 0 | BE16: 0 | BF16: 0 | BG16: 0 | BH16: 0 | BI16: 0 | BJ16: 0 | BK16: 0 | BL16: 0 | BM16: 0 | BN16: 0 | BO16: 0 | BP16: 0 | BQ16: 0 | BR16: 0 | BS16: 0 | BT16: 0 | BU16: 0 | BV16: 0 | BW16: 0 | BX16: 0 | BY16: 0 | BZ16: 0 | CA16: 0 | CB16: 0 | CC16: 0 | CD16: 0 | CE16: 0 | CF16: 0 | CG16: 0 | CH16: 0 | CI16: 0 | CJ16: 0 | CK16: 0 | CL16: 0 | CM16: 0 | CN16: 0 | CO16: 0 | CP16: 0 | CQ16: 0 | CR16: 0 | CS16: 0 | CT16: 0 | CU16: 0 | CV16: 0 | CW16: 0 | CX16: 0 | CY16: 0 | CZ16: 0 | DA16: 0 | DB16: 0 | DC16: 0 | DD16: 0 | DE16: 0 | DF16: 0 | DG16: 0 | DH16: 0 | DI16: 0 | DJ16: 0 | DK16: 0 | DL16: 0 | DM16: 0 | DN16: 0 | DO16: 0 | DP16: 0 | DQ16: 0 | DR16: 0 | DS16: 0 | DT16: 0 | DU16: 0 | DV16: 0 | DW16: 0 | DX16: 0 | DY16: 0 | DZ16: 0 | EA16: 0 | EB16: 0 | EC16: 0 | ED16: 0 | EE16: 0 | EF16: 0 | EG16: 0 | EH16: 0 | EI16: 0 | EJ16: 0 | EK16: 0 | EL16: 0 | EM16: 0 | EN16: 0 | EO16: 0
A17: 7 | B17: =+'Assignment Worksheet'!M17 -> 0 | C17: =+'Assignment Worksheet'!N17 -> 0 | D17: =+'Assignment Worksheet'!J17 -> 0 | E17: =+'Assignment Worksheet'!K17 -> 0 | F17: =+'Assignment Worksheet'!L17 -> 00:00:00 | G17: =IF(H17>0,(ROUND(+'G&K-Funding Analysis'!J17,0)),"") ->  | H17: =+'G&K-Funding Analysis'!I17 -> 0 | I17: =+'G&K-Funding Analysis'!K17 ->  | J17: =+'G&K-Funding Analysis'!L17 ->  | K17: =+'G&K-Funding Analysis'!M17 -> 0 | L17: =+'G&K-Funding Analysis'!N17 -> 0 | M17: =IF(H17>0,(IF('D-Checklist'!I17=1,0,200)),"") ->  | N17: =+'G&K-Funding Analysis'!O17 ->  | P17: 0 | Q17: 0 | R17: 0 | S17: 0 | T17: 0 | U17: 0 | V17: 0 | W17: 0 | X17: 0 | Y17: 0 | Z17: 0 | AA17: 0 | AB17: 0 | AC17: 0 | AD17: 0 | AE17: 0 | AF17: 0 | AG17: 0 | AH17: 0 | AI17: 0 | AJ17: 0 | AK17: 0 | AL17: 0 | AM17: 0 | AN17: 0 | AO17: 0 | AP17: 0 | AQ17: 0 | AR17: 0 | AS17: 0 | AT17: 0 | AU17: 0 | AV17: 0 | AW17: 0 | AX17: 0 | AY17: 0 | AZ17: 0 | BA17: 0 | BB17: 0 | BC17: 0 | BD17: 0 | BE17: 0 | BF17: 0 | BG17: 0 | BH17: 0 | BI17: 0 | BJ17: 0 | BK17: 0 | BL17: 0 | BM17: 0 | BN17: 0 | BO17: 0 | BP17: 0 | BQ17: 0 | BR17: 0 | BS17: 0 | BT17: 0 | BU17: 0 | BV17: 0 | BW17: 0 | BX17: 0 | BY17: 0 | BZ17: 0 | CA17: 0 | CB17: 0 | CC17: 0 | CD17: 0 | CE17: 0 | CF17: 0 | CG17: 0 | CH17: 0 | CI17: 0 | CJ17: 0 | CK17: 0 | CL17: 0 | CM17: 0 | CN17: 0 | CO17: 0 | CP17: 0 | CQ17: 0 | CR17: 0 | CS17: 0 | CT17: 0 | CU17: 0 | CV17: 0 | CW17: 0 | CX17: 0 | CY17: 0 | CZ17: 0 | DA17: 0 | DB17: 0 | DC17: 0 | DD17: 0 | DE17: 0 | DF17: 0 | DG17: 0 | DH17: 0 | DI17: 0 | DJ17: 0 | DK17: 0 | DL17: 0 | DM17: 0 | DN17: 0 | DO17: 0 | DP17: 0 | DQ17: 0 | DR17: 0 | DS17: 0 | DT17: 0 | DU17: 0 | DV17: 0 | DW17: 0 | DX17: 0 | DY17: 0 | DZ17: 0 | EA17: 0 | EB17: 0 | EC17: 0 | ED17: 0 | EE17: 0 | EF17: 0 | EG17: 0 | EH17: 0 | EI17: 0 | EJ17: 0 | EK17: 0 | EL17: 0 | EM17: 0 | EN17: 0 | EO17: 0
A18: 8 | B18: =+'Assignment Worksheet'!M18 -> 0 | C18: =+'Assignment Worksheet'!N18 -> 0 | D18: =+'Assignment Worksheet'!J18 -> 0 | E18: =+'Assignment Worksheet'!K18 -> 0 | F18: =+'Assignment Worksheet'!L18 -> 00:00:00 | G18: =IF(H18>0,(ROUND(+'G&K-Funding Analysis'!J18,0)),"") ->  | H18: =+'G&K-Funding Analysis'!I18 -> 0 | I18: =+'G&K-Funding Analysis'!K18 ->  | J18: =+'G&K-Funding Analysis'!L18 ->  | K18: =+'G&K-Funding Analysis'!M18 -> 0 | L18: =+'G&K-Funding Analysis'!N18 -> 0 | M18: =IF(H18>0,(IF('D-Checklist'!I18=1,0,200)),"") ->  | N18: =+'G&K-Funding Analysis'!O18 ->  | P18: 0 | Q18: 0 | R18: 0 | S18: 0 | T18: 0 | U18: 0 | V18: 0 | W18: 0 | X18: 0 | Y18: 0 | Z18: 0 | AA18: 0 | AB18: 0 | AC18: 0 | AD18: 0 | AE18: 0 | AF18: 0 | AG18: 0 | AH18: 0 | AI18: 0 | AJ18: 0 | AK18: 0 | AL18: 0 | AM18: 0 | AN18: 0 | AO18: 0 | AP18: 0 | AQ18: 0 | AR18: 0 | AS18: 0 | AT18: 0 | AU18: 0 | AV18: 0 | AW18: 0 | AX18: 0 | AY18: 0 | AZ18: 0 | BA18: 0 | BB18: 0 | BC18: 0 | BD18: 0 | BE18: 0 | BF18: 0 | BG18: 0 | BH18: 0 | BI18: 0 | BJ18: 0 | BK18: 0 | BL18: 0 | BM18: 0 | BN18: 0 | BO18: 0 | BP18: 0 | BQ18: 0 | BR18: 0 | BS18: 0 | BT18: 0 | BU18: 0 | BV18: 0 | BW18: 0 | BX18: 0 | BY18: 0 | BZ18: 0 | CA18: 0 | CB18: 0 | CC18: 0 | CD18: 0 | CE18: 0 | CF18: 0 | CG18: 0 | CH18: 0 | CI18: 0 | CJ18: 0 | CK18: 0 | CL18: 0 | CM18: 0 | CN18: 0 | CO18: 0 | CP18: 0 | CQ18: 0 | CR18: 0 | CS18: 0 | CT18: 0 | CU18: 0 | CV18: 0 | CW18: 0 | CX18: 0 | CY18: 0 | CZ18: 0 | DA18: 0 | DB18: 0 | DC18: 0 | DD18: 0 | DE18: 0 | DF18: 0 | DG18: 0 | DH18: 0 | DI18: 0 | DJ18: 0 | DK18: 0 | DL18: 0 | DM18: 0 | DN18: 0 | DO18: 0 | DP18: 0 | DQ18: 0 | DR18: 0 | DS18: 0 | DT18: 0 | DU18: 0 | DV18: 0 | DW18: 0 | DX18: 0 | DY18: 0 | DZ18: 0 | EA18: 0 | EB18: 0 | EC18: 0 | ED18: 0 | EE18: 0 | EF18: 0 | EG18: 0 | EH18: 0 | EI18: 0 | EJ18: 0 | EK18: 0 | EL18: 0 | EM18: 0 | EN18: 0 | EO18: 0 | HB18: =IF(HB$9<=$G18,+$I18,0) ->  | JN18: =IF(JN$9<=$G18,+$I18,0) ->  | MC18: =IF(MC$9<=$G18,+$J18,0) ->  | OO18: =IF(OO$9<=$G18,+$J18,0) -> 
A19: 9 | B19: =+'Assignment Worksheet'!M19 -> 0 | C19: =+'Assignment Worksheet'!N19 -> 0 | D19: =+'Assignment Worksheet'!J19 -> 0 | E19: =+'Assignment Worksheet'!K19 -> 0 | F19: =+'Assignment Worksheet'!L19 -> 00:00:00 | G19: =IF(H19>0,(ROUND(+'G&K-Funding Analysis'!J19,0)),"") ->  | H19: =+'G&K-Funding Analysis'!I19 -> 0 | I19: =+'G&K-Funding Analysis'!K19 ->  | J19: =+'G&K-Funding Analysis'!L19 ->  | K19: =+'G&K-Funding Analysis'!M19 -> 0 | L19: =+'G&K-Funding Analysis'!N19 -> 0 | M19: =IF(H19>0,(IF('D-Checklist'!I19=1,0,200)),"") ->  | N19: =+'G&K-Funding Analysis'!O19 ->  | P19: 0 | Q19: 0 | R19: 0 | S19: 0 | T19: 0 | U19: 0 | V19: 0 | W19: 0 | X19: 0 | Y19: 0 | Z19: 0 | AA19: 0 | AB19: 0 | AC19: 0 | AD19: 0 | AE19: 0 | AF19: 0 | AG19: 0 | AH19: 0 | AI19: 0 | AJ19: 0 | AK19: 0 | AL19: 0 | AM19: 0 | AN19: 0 | AO19: 0 | AP19: 0 | AQ19: 0 | AR19: 0 | AS19: 0 | AT19: 0 | AU19: 0 | AV19: 0 | AW19: 0 | AX19: 0 | AY19: 0 | AZ19: 0 | BA19: 0 | BB19: 0 | BC19: 0 | BD19: 0 | BE19: 0 | BF19: 0 | BG19: 0 | BH19: 0 | BI19: 0 | BJ19: 0 | BK19: 0 | BL19: 0 | BM19: 0 | BN19: 0 | BO19: 0 | BP19: 0 | BQ19: 0 | BR19: 0 | BS19: 0 | BT19: 0 | BU19: 0 | BV19: 0 | BW19: 0 | BX19: 0 | BY19: 0 | BZ19: 0 | CA19: 0 | CB19: 0 | CC19: 0 | CD19: 0 | CE19: 0 | CF19: 0 | CG19: 0 | CH19: 0 | CI19: 0 | CJ19: 0 | CK19: 0 | CL19: 0 | CM19: 0 | CN19: 0 | CO19: 0 | CP19: 0 | CQ19: 0 | CR19: 0 | CS19: 0 | CT19: 0 | CU19: 0 | CV19: 0 | CW19: 0 | CX19: 0 | CY19: 0 | CZ19: 0 | DA19: 0 | DB19: 0 | DC19: 0 | DD19: 0 | DE19: 0 | DF19: 0 | DG19: 0 | DH19: 0 | DI19: 0 | DJ19: 0 | DK19: 0 | DL19: 0 | DM19: 0 | DN19: 0 | DO19: 0 | DP19: 0 | DQ19: 0 | DR19: 0 | DS19: 0 | DT19: 0 | DU19: 0 | DV19: 0 | DW19: 0 | DX19: 0 | DY19: 0 | DZ19: 0 | EA19: 0 | EB19: 0 | EC19: 0 | ED19: 0 | EE19: 0 | EF19: 0 | EG19: 0 | EH19: 0 | EI19: 0 | EJ19: 0 | EK19: 0 | EL19: 0 | EM19: 0 | EN19: 0 | EO19: 0 | FG19: =IF(FG$9<=$G19,+$I19,0) ->  | FW19: =IF(FW$9<=$G19,+$I19,0) ->  | GM19: =IF(GM$9<=$G19,+$I19,0) ->  | HR19: =IF(HR$9<=$G19,+$I19,0) ->  | IH19: =IF(IH$9<=$G19,+$I19,0) ->  | IX19: =IF(IX$9<=$G19,+$I19,0) ->  | KH19: =IF(KH$9<=$G19,+$J19,0) ->  | KX19: =IF(KX$9<=$G19,+$J19,0) ->  | LN19: =IF(LN$9<=$G19,+$J19,0) ->  | MS19: =IF(MS$9<=$G19,+$J19,0) ->  | NI19: =IF(NI$9<=$G19,+$J19,0) ->  | NY19: =IF(NY$9<=$G19,+$J19,0) -> 
A20: 10 | B20: =+'Assignment Worksheet'!M20 -> 0 | C20: =+'Assignment Worksheet'!N20 -> 0 | D20: =+'Assignment Worksheet'!J20 -> 0 | E20: =+'Assignment Worksheet'!K20 -> 0 | F20: =+'Assignment Worksheet'!L20 -> 00:00:00 | G20: =IF(H20>0,(ROUND(+'G&K-Funding Analysis'!J20,0)),"") ->  | H20: =+'G&K-Funding Analysis'!I20 -> 0 | I20: =+'G&K-Funding Analysis'!K20 ->  | J20: =+'G&K-Funding Analysis'!L20 ->  | K20: =+'G&K-Funding Analysis'!M20 -> 0 | L20: =+'G&K-Funding Analysis'!N20 -> 0 | M20: =IF(H20>0,(IF('D-Checklist'!I20=1,0,200)),"") ->  | N20: =+'G&K-Funding Analysis'!O20 ->  | P20: 0 | Q20: 0 | R20: 0 | S20: 0 | T20: 0 | U20: 0 | V20: 0 | W20: 0 | X20: 0 | Y20: 0 | Z20: 0 | AA20: 0 | AB20: 0 | AC20: 0 | AD20: 0 | AE20: 0 | AF20: 0 | AG20: 0 | AH20: 0 | AI20: 0 | AJ20: 0 | AK20: 0 | AL20: 0 | AM20: 0 | AN20: 0 | AO20: 0 | AP20: 0 | AQ20: 0 | AR20: 0 | AS20: 0 | AT20: 0 | AU20: 0 | AV20: 0 | AW20: 0 | AX20: 0 | AY20: 0 | AZ20: 0 | BA20: 0 | BB20: 0 | BC20: 0 | BD20: 0 | BE20: 0 | BF20: 0 | BG20: 0 | BH20: 0 | BI20: 0 | BJ20: 0 | BK20: 0 | BL20: 0 | BM20: 0 | BN20: 0 | BO20: 0 | BP20: 0 | BQ20: 0 | BR20: 0 | BS20: 0 | BT20: 0 | BU20: 0 | BV20: 0 | BW20: 0 | BX20: 0 | BY20: 0 | BZ20: 0 | CA20: 0 | CB20: 0 | CC20: 0 | CD20: 0 | CE20: 0 | CF20: 0 | CG20: 0 | CH20: 0 | CI20: 0 | CJ20: 0 | CK20: 0 | CL20: 0 | CM20: 0 | CN20: 0 | CO20: 0 | CP20: 0 | CQ20: 0 | CR20: 0 | CS20: 0 | CT20: 0 | CU20: 0 | CV20: 0 | CW20: 0 | CX20: 0 | CY20: 0 | CZ20: 0 | DA20: 0 | DB20: 0 | DC20: 0 | DD20: 0 | DE20: 0 | DF20: 0 | DG20: 0 | DH20: 0 | DI20: 0 | DJ20: 0 | DK20: 0 | DL20: 0 | DM20: 0 | DN20: 0 | DO20: 0 | DP20: 0 | DQ20: 0 | DR20: 0 | DS20: 0 | DT20: 0 | DU20: 0 | DV20: 0 | DW20: 0 | DX20: 0 | DY20: 0 | DZ20: 0 | EA20: 0 | EB20: 0 | EC20: 0 | ED20: 0 | EE20: 0 | EF20: 0 | EG20: 0 | EH20: 0 | EI20: 0 | EJ20: 0 | EK20: 0 | EL20: 0 | EM20: 0 | EN20: 0 | EO20: 0
A21: 11 | B21: =+'Assignment Worksheet'!M21 -> 0 | C21: =+'Assignment Worksheet'!N21 -> 0 | D21: =+'Assignment Worksheet'!J21 -> 0 | E21: =+'Assignment Worksheet'!K21 -> 0 | F21: =+'Assignment Worksheet'!L21 -> 00:00:00 | G21: =IF(H21>0,(ROUND(+'G&K-Funding Analysis'!J21,0)),"") ->  | H21: =+'G&K-Funding Analysis'!I21 -> 0 | I21: =+'G&K-Funding Analysis'!K21 ->  | J21: =+'G&K-Funding Analysis'!L21 ->  | K21: =+'G&K-Funding Analysis'!M21 -> 0 | L21: =+'G&K-Funding Analysis'!N21 -> 0 | M21: =IF(H21>0,(IF('D-Checklist'!I21=1,0,200)),"") ->  | N21: =+'G&K-Funding Analysis'!O21 ->  | P21: 0 | Q21: 0 | R21: 0 | S21: 0 | T21: 0 | U21: 0 | V21: 0 | W21: 0 | X21: 0 | Y21: 0 | Z21: 0 | AA21: 0 | AB21: 0 | AC21: 0 | AD21: 0 | AE21: 0 | AF21: 0 | AG21: 0 | AH21: 0 | AI21: 0 | AJ21: 0 | AK21: 0 | AL21: 0 | AM21: 0 | AN21: 0 | AO21: 0 | AP21: 0 | AQ21: 0 | AR21: 0 | AS21: 0 | AT21: 0 | AU21: 0 | AV21: 0 | AW21: 0 | AX21: 0 | AY21: 0 | AZ21: 0 | BA21: 0 | BB21: 0 | BC21: 0 | BD21: 0 | BE21: 0 | BF21: 0 | BG21: 0 | BH21: 0 | BI21: 0 | BJ21: 0 | BK21: 0 | BL21: 0 | BM21: 0 | BN21: 0 | BO21: 0 | BP21: 0 | BQ21: 0 | BR21: 0 | BS21: 0 | BT21: 0 | BU21: 0 | BV21: 0 | BW21: 0 | BX21: 0 | BY21: 0 | BZ21: 0 | CA21: 0 | CB21: 0 | CC21: 0 | CD21: 0 | CE21: 0 | CF21: 0 | CG21: 0 | CH21: 0 | CI21: 0 | CJ21: 0 | CK21: 0 | CL21: 0 | CM21: 0 | CN21: 0 | CO21: 0 | CP21: 0 | CQ21: 0 | CR21: 0 | CS21: 0 | CT21: 0 | CU21: 0 | CV21: 0 | CW21: 0 | CX21: 0 | CY21: 0 | CZ21: 0 | DA21: 0 | DB21: 0 | DC21: 0 | DD21: 0 | DE21: 0 | DF21: 0 | DG21: 0 | DH21: 0 | DI21: 0 | DJ21: 0 | DK21: 0 | DL21: 0 | DM21: 0 | DN21: 0 | DO21: 0 | DP21: 0 | DQ21: 0 | DR21: 0 | DS21: 0 | DT21: 0 | DU21: 0 | DV21: 0 | DW21: 0 | DX21: 0 | DY21: 0 | DZ21: 0 | EA21: 0 | EB21: 0 | EC21: 0 | ED21: 0 | EE21: 0 | EF21: 0 | EG21: 0 | EH21: 0 | EI21: 0 | EJ21: 0 | EK21: 0 | EL21: 0 | EM21: 0 | EN21: 0 | EO21: 0
A22: 12 | B22: =+'Assignment Worksheet'!M22 -> 0 | C22: =+'Assignment Worksheet'!N22 -> 0 | D22: =+'Assignment Worksheet'!J22 -> 0 | E22: =+'Assignment Worksheet'!K22 -> 0 | F22: =+'Assignment Worksheet'!L22 -> 00:00:00 | G22: =IF(H22>0,(ROUND(+'G&K-Funding Analysis'!J22,0)),"") ->  | H22: =+'G&K-Funding Analysis'!I22 -> 0 | I22: =+'G&K-Funding Analysis'!K22 ->  | J22: =+'G&K-Funding Analysis'!L22 ->  | K22: =+'G&K-Funding Analysis'!M22 -> 0 | L22: =+'G&K-Funding Analysis'!N22 -> 0 | M22: =IF(H22>0,(IF('D-Checklist'!I22=1,0,200)),"") ->  | N22: =+'G&K-Funding Analysis'!O22 ->  | P22: 0 | Q22: 0 | R22: 0 | S22: 0 | T22: 0 | U22: 0 | V22: 0 | W22: 0 | X22: 0 | Y22: 0 | Z22: 0 | AA22: 0 | AB22: 0 | AC22: 0 | AD22: 0 | AE22: 0 | AF22: 0 | AG22: 0 | AH22: 0 | AI22: 0 | AJ22: 0 | AK22: 0 | AL22: 0 | AM22: 0 | AN22: 0 | AO22: 0 | AP22: 0 | AQ22: 0 | AR22: 0 | AS22: 0 | AT22: 0 | AU22: 0 | AV22: 0 | AW22: 0 | AX22: 0 | AY22: 0 | AZ22: 0 | BA22: 0 | BB22: 0 | BC22: 0 | BD22: 0 | BE22: 0 | BF22: 0 | BG22: 0 | BH22: 0 | BI22: 0 | BJ22: 0 | BK22: 0 | BL22: 0 | BM22: 0 | BN22: 0 | BO22: 0 | BP22: 0 | BQ22: 0 | BR22: 0 | BS22: 0 | BT22: 0 | BU22: 0 | BV22: 0 | BW22: 0 | BX22: 0 | BY22: 0 | BZ22: 0 | CA22: 0 | CB22: 0 | CC22: 0 | CD22: 0 | CE22: 0 | CF22: 0 | CG22: 0 | CH22: 0 | CI22: 0 | CJ22: 0 | CK22: 0 | CL22: 0 | CM22: 0 | CN22: 0 | CO22: 0 | CP22: 0 | CQ22: 0 | CR22: 0 | CS22: 0 | CT22: 0 | CU22: 0 | CV22: 0 | CW22: 0 | CX22: 0 | CY22: 0 | CZ22: 0 | DA22: 0 | DB22: 0 | DC22: 0 | DD22: 0 | DE22: 0 | DF22: 0 | DG22: 0 | DH22: 0 | DI22: 0 | DJ22: 0 | DK22: 0 | DL22: 0 | DM22: 0 | DN22: 0 | DO22: 0 | DP22: 0 | DQ22: 0 | DR22: 0 | DS22: 0 | DT22: 0 | DU22: 0 | DV22: 0 | DW22: 0 | DX22: 0 | DY22: 0 | DZ22: 0 | EA22: 0 | EB22: 0 | EC22: 0 | ED22: 0 | EE22: 0 | EF22: 0 | EG22: 0 | EH22: 0 | EI22: 0 | EJ22: 0 | EK22: 0 | EL22: 0 | EM22: 0 | EN22: 0 | EO22: 0
A23: 13 | B23: =+'Assignment Worksheet'!M23 -> 0 | C23: =+'Assignment Worksheet'!N23 -> 0 | D23: =+'Assignment Worksheet'!J23 -> 0 | E23: =+'Assignment Worksheet'!K23 -> 0 | F23: =+'Assignment Worksheet'!L23 -> 00:00:00 | G23: =IF(H23>0,(ROUND(+'G&K-Funding Analysis'!J23,0)),"") ->  | H23: =+'G&K-Funding Analysis'!I23 -> 0 | I23: =+'G&K-Funding Analysis'!K23 ->  | J23: =+'G&K-Funding Analysis'!L23 ->  | K23: =+'G&K-Funding Analysis'!M23 -> 0 | L23: =+'G&K-Funding Analysis'!N23 -> 0 | M23: =IF(H23>0,(IF('D-Checklist'!I23=1,0,200)),"") ->  | N23: =+'G&K-Funding Analysis'!O23 ->  | P23: 0 | Q23: 0 | R23: 0 | S23: 0 | T23: 0 | U23: 0 | V23: 0 | W23: 0 | X23: 0 | Y23: 0 | Z23: 0 | AA23: 0 | AB23: 0 | AC23: 0 | AD23: 0 | AE23: 0 | AF23: 0 | AG23: 0 | AH23: 0 | AI23: 0 | AJ23: 0 | AK23: 0 | AL23: 0 | AM23: 0 | AN23: 0 | AO23: 0 | AP23: 0 | AQ23: 0 | AR23: 0 | AS23: 0 | AT23: 0 | AU23: 0 | AV23: 0 | AW23: 0 | AX23: 0 | AY23: 0 | AZ23: 0 | BA23: 0 | BB23: 0 | BC23: 0 | BD23: 0 | BE23: 0 | BF23: 0 | BG23: 0 | BH23: 0 | BI23: 0 | BJ23: 0 | BK23: 0 | BL23: 0 | BM23: 0 | BN23: 0 | BO23: 0 | BP23: 0 | BQ23: 0 | BR23: 0 | BS23: 0 | BT23: 0 | BU23: 0 | BV23: 0 | BW23: 0 | BX23: 0 | BY23: 0 | BZ23: 0 | CA23: 0 | CB23: 0 | CC23: 0 | CD23: 0 | CE23: 0 | CF23: 0 | CG23: 0 | CH23: 0 | CI23: 0 | CJ23: 0 | CK23: 0 | CL23: 0 | CM23: 0 | CN23: 0 | CO23: 0 | CP23: 0 | CQ23: 0 | CR23: 0 | CS23: 0 | CT23: 0 | CU23: 0 | CV23: 0 | CW23: 0 | CX23: 0 | CY23: 0 | CZ23: 0 | DA23: 0 | DB23: 0 | DC23: 0 | DD23: 0 | DE23: 0 | DF23: 0 | DG23: 0 | DH23: 0 | DI23: 0 | DJ23: 0 | DK23: 0 | DL23: 0 | DM23: 0 | DN23: 0 | DO23: 0 | DP23: 0 | DQ23: 0 | DR23: 0 | DS23: 0 | DT23: 0 | DU23: 0 | DV23: 0 | DW23: 0 | DX23: 0 | DY23: 0 | DZ23: 0 | EA23: 0 | EB23: 0 | EC23: 0 | ED23: 0 | EE23: 0 | EF23: 0 | EG23: 0 | EH23: 0 | EI23: 0 | EJ23: 0 | EK23: 0 | EL23: 0 | EM23: 0 | EN23: 0 | EO23: 0
A24: 14 | B24: =+'Assignment Worksheet'!M24 -> 0 | C24: =+'Assignment Worksheet'!N24 -> 0 | D24: =+'Assignment Worksheet'!J24 -> 0 | E24: =+'Assignment Worksheet'!K24 -> 0 | F24: =+'Assignment Worksheet'!L24 -> 00:00:00 | G24: =IF(H24>0,(ROUND(+'G&K-Funding Analysis'!J24,0)),"") ->  | H24: =+'G&K-Funding Analysis'!I24 -> 0 | I24: =+'G&K-Funding Analysis'!K24 ->  | J24: =+'G&K-Funding Analysis'!L24 ->  | K24: =+'G&K-Funding Analysis'!M24 -> 0 | L24: =+'G&K-Funding Analysis'!N24 -> 0 | M24: =IF(H24>0,(IF('D-Checklist'!I24=1,0,200)),"") ->  | N24: =+'G&K-Funding Analysis'!O24 ->  | P24: 0 | Q24: 0 | R24: 0 | S24: 0 | T24: 0 | U24: 0 | V24: 0 | W24: 0 | X24: 0 | Y24: 0 | Z24: 0 | AA24: 0 | AB24: 0 | AC24: 0 | AD24: 0 | AE24: 0 | AF24: 0 | AG24: 0 | AH24: 0 | AI24: 0 | AJ24: 0 | AK24: 0 | AL24: 0 | AM24: 0 | AN24: 0 | AO24: 0 | AP24: 0 | AQ24: 0 | AR24: 0 | AS24: 0 | AT24: 0 | AU24: 0 | AV24: 0 | AW24: 0 | AX24: 0 | AY24: 0 | AZ24: 0 | BA24: 0 | BB24: 0 | BC24: 0 | BD24: 0 | BE24: 0 | BF24: 0 | BG24: 0 | BH24: 0 | BI24: 0 | BJ24: 0 | BK24: 0 | BL24: 0 | BM24: 0 | BN24: 0 | BO24: 0 | BP24: 0 | BQ24: 0 | BR24: 0 | BS24: 0 | BT24: 0 | BU24: 0 | BV24: 0 | BW24: 0 | BX24: 0 | BY24: 0 | BZ24: 0 | CA24: 0 | CB24: 0 | CC24: 0 | CD24: 0 | CE24: 0 | CF24: 0 | CG24: 0 | CH24: 0 | CI24: 0 | CJ24: 0 | CK24: 0 | CL24: 0 | CM24: 0 | CN24: 0 | CO24: 0 | CP24: 0 | CQ24: 0 | CR24: 0 | CS24: 0 | CT24: 0 | CU24: 0 | CV24: 0 | CW24: 0 | CX24: 0 | CY24: 0 | CZ24: 0 | DA24: 0 | DB24: 0 | DC24: 0 | DD24: 0 | DE24: 0 | DF24: 0 | DG24: 0 | DH24: 0 | DI24: 0 | DJ24: 0 | DK24: 0 | DL24: 0 | DM24: 0 | DN24: 0 | DO24: 0 | DP24: 0 | DQ24: 0 | DR24: 0 | DS24: 0 | DT24: 0 | DU24: 0 | DV24: 0 | DW24: 0 | DX24: 0 | DY24: 0 | DZ24: 0 | EA24: 0 | EB24: 0 | EC24: 0 | ED24: 0 | EE24: 0 | EF24: 0 | EG24: 0 | EH24: 0 | EI24: 0 | EJ24: 0 | EK24: 0 | EL24: 0 | EM24: 0 | EN24: 0 | EO24: 0
A25: 15 | B25: =+'Assignment Worksheet'!M25 -> 0 | C25: =+'Assignment Worksheet'!N25 -> 0 | D25: =+'Assignment Worksheet'!J25 -> 0 | E25: =+'Assignment Worksheet'!K25 -> 0 | F25: =+'Assignment Worksheet'!L25 -> 00:00:00 | G25: =IF(H25>0,(ROUND(+'G&K-Funding Analysis'!J25,0)),"") ->  | H25: =+'G&K-Funding Analysis'!I25 -> 0 | I25: =+'G&K-Funding Analysis'!K25 ->  | J25: =+'G&K-Funding Analysis'!L25 ->  | K25: =+'G&K-Funding Analysis'!M25 -> 0 | L25: =+'G&K-Funding Analysis'!N25 -> 0 | M25: =IF(H25>0,(IF('D-Checklist'!I25=1,0,200)),"") ->  | N25: =+'G&K-Funding Analysis'!O25 ->  | P25: 0 | Q25: =IF(Q$9<=$G25,+$K25,0) -> 0 | R25: 0 | S25: 0 | T25: 0 | U25: 0 | V25: 0 | W25: 0 | X25: 0 | Y25: 0 | Z25: 0 | AA25: =IF(AA$9<=$G25,+$K25,0) -> 0 | AB25: 0 | AC25: 0 | AD25: 0 | AE25: 0 | AF25: 0 | AG25: 0 | AH25: 0 | AI25: 0 | AJ25: 0 | AK25: =IF(AK$9<=$G25,+$K25,0) -> 0 | AL25: 0 | AM25: 0 | AN25: 0 | AO25: 0 | AP25: 0 | AQ25: 0 | AR25: 0 | AS25: 0 | AT25: 0 | AU25: =IF(AU$9<=$G25,+$K25,0) -> 0 | AV25: 0 | AW25: 0 | AX25: 0 | AY25: 0 | AZ25: 0 | BA25: 0 | BB25: 0 | BC25: 0 | BD25: 0 | BE25: =IF(BE$9<=$G25,+$K25,0) -> 0 | BF25: 0 | BG25: 0 | BH25: 0 | BI25: 0 | BJ25: 0 | BK25: 0 | BL25: 0 | BM25: 0 | BN25: 0 | BO25: =IF(BO$9<=$G25,+$K25,0) -> 0 | BP25: 0 | BQ25: 0 | BR25: 0 | BS25: 0 | BT25: 0 | BU25: 0 | BV25: 0 | BW25: 0 | BX25: 0 | BY25: 0 | BZ25: 0 | CA25: 0 | CB25: 0 | CC25: =IF(CC$9<=$G25,+$K25,0) -> 0 | CD25: 0 | CE25: 0 | CF25: 0 | CG25: 0 | CH25: 0 | CI25: 0 | CJ25: 0 | CK25: 0 | CL25: 0 | CM25: =IF(CM$9<=$G25,+$K25,0) -> 0 | CN25: 0 | CO25: 0 | CP25: 0 | CQ25: 0 | CR25: 0 | CS25: 0 | CT25: 0 | CU25: 0 | CV25: 0 | CW25: =IF(CW$9<=$G25,+$K25,0) -> 0 | CX25: 0 | CY25: 0 | CZ25: 0 | DA25: 0 | DB25: 0 | DC25: 0 | DD25: 0 | DE25: 0 | DF25: 0 | DG25: =IF(DG$9<=$G25,+$K25,0) -> 0 | DH25: 0 | DI25: 0 | DJ25: 0 | DK25: 0 | DL25: 0 | DM25: 0 | DN25: 0 | DO25: 0 | DP25: 0 | DQ25: =IF(DQ$9<=$G25,+$K25,0) -> 0 | DR25: 0 | DS25: 0 | DT25: 0 | DU25: 0 | DV25: 0 | DW25: 0 | DX25: 0 | DY25: 0 | DZ25: 0 | EA25: =IF(EA$9<=$G25,+$K25,0) -> 0 | EB25: 0 | EC25: 0 | ED25: 0 | EE25: 0 | EF25: 0 | EG25: 0 | EH25: 0 | EI25: 0 | EJ25: 0 | EK25: 0 | EL25: 0 | EM25: 0 | EN25: 0 | EO25: 0
A26: 16 | B26: =+'Assignment Worksheet'!M26 -> 0 | C26: =+'Assignment Worksheet'!N26 -> 0 | D26: =+'Assignment Worksheet'!J26 -> 0 | E26: =+'Assignment Worksheet'!K26 -> 0 | F26: =+'Assignment Worksheet'!L26 -> 00:00:00 | G26: =IF(H26>0,(ROUND(+'G&K-Funding Analysis'!J26,0)),"") ->  | H26: =+'G&K-Funding Analysis'!I26 -> 0 | I26: =+'G&K-Funding Analysis'!K26 ->  | J26: =+'G&K-Funding Analysis'!L26 ->  | K26: =+'G&K-Funding Analysis'!M26 -> 0 | L26: =+'G&K-Funding Analysis'!N26 -> 0 | M26: =IF(H26>0,(IF('D-Checklist'!I26=1,0,200)),"") ->  | N26: =+'G&K-Funding Analysis'!O26 ->  | P26: 0 | Q26: 0 | R26: 0 | S26: 0 | T26: 0 | U26: 0 | V26: 0 | W26: 0 | X26: 0 | Y26: 0 | Z26: 0 | AA26: 0 | AB26: 0 | AC26: 0 | AD26: 0 | AE26: 0 | AF26: 0 | AG26: 0 | AH26: 0 | AI26: 0 | AJ26: 0 | AK26: 0 | AL26: 0 | AM26: 0 | AN26: 0 | AO26: 0 | AP26: 0 | AQ26: 0 | AR26: 0 | AS26: 0 | AT26: 0 | AU26: 0 | AV26: 0 | AW26: 0 | AX26: 0 | AY26: 0 | AZ26: 0 | BA26: 0 | BB26: 0 | BC26: 0 | BD26: 0 | BE26: 0 | BF26: 0 | BG26: 0 | BH26: 0 | BI26: 0 | BJ26: 0 | BK26: 0 | BL26: 0 | BM26: 0 | BN26: 0 | BO26: 0 | BP26: 0 | BQ26: 0 | BR26: 0 | BS26: 0 | BT26: 0 | BU26: 0 | BV26: 0 | BW26: 0 | BX26: 0 | BY26: 0 | BZ26: 0 | CA26: 0 | CB26: 0 | CC26: 0 | CD26: 0 | CE26: 0 | CF26: 0 | CG26: 0 | CH26: 0 | CI26: 0 | CJ26: 0 | CK26: 0 | CL26: 0 | CM26: 0 | CN26: 0 | CO26: 0 | CP26: 0 | CQ26: 0 | CR26: 0 | CS26: 0 | CT26: 0 | CU26: 0 | CV26: 0 | CW26: 0 | CX26: 0 | CY26: 0 | CZ26: 0 | DA26: 0 | DB26: 0 | DC26: 0 | DD26: 0 | DE26: 0 | DF26: 0 | DG26: 0 | DH26: 0 | DI26: 0 | DJ26: 0 | DK26: 0 | DL26: 0 | DM26: 0 | DN26: 0 | DO26: 0 | DP26: 0 | DQ26: 0 | DR26: 0 | DS26: 0 | DT26: 0 | DU26: 0 | DV26: 0 | DW26: 0 | DX26: 0 | DY26: 0 | DZ26: 0 | EA26: 0 | EB26: 0 | EC26: 0 | ED26: 0 | EE26: 0 | EF26: 0 | EG26: 0 | EH26: 0 | EI26: 0 | EJ26: 0 | EK26: 0 | EL26: 0 | EM26: 0 | EN26: 0 | EO26: 0
A27: 17 | B27: =+'Assignment Worksheet'!M27 -> 0 | C27: =+'Assignment Worksheet'!N27 -> 0 | D27: =+'Assignment Worksheet'!J27 -> 0 | E27: =+'Assignment Worksheet'!K27 -> 0 | F27: =+'Assignment Worksheet'!L27 -> 00:00:00 | G27: =IF(H27>0,(ROUND(+'G&K-Funding Analysis'!J27,0)),"") ->  | H27: =+'G&K-Funding Analysis'!I27 -> 0 | I27: =+'G&K-Funding Analysis'!K27 ->  | J27: =+'G&K-Funding Analysis'!L27 ->  | K27: =+'G&K-Funding Analysis'!M27 -> 0 | L27: =+'G&K-Funding Analysis'!N27 -> 0 | M27: =IF(H27>0,(IF('D-Checklist'!I27=1,0,200)),"") ->  | N27: =+'G&K-Funding Analysis'!O27 ->  | P27: 0 | Q27: 0 | R27: 0 | S27: 0 | T27: 0 | U27: 0 | V27: 0 | W27: 0 | X27: 0 | Y27: 0 | Z27: 0 | AA27: 0 | AB27: 0 | AC27: 0 | AD27: 0 | AE27: 0 | AF27: 0 | AG27: 0 | AH27: 0 | AI27: 0 | AJ27: 0 | AK27: 0 | AL27: 0 | AM27: 0 | AN27: 0 | AO27: 0 | AP27: 0 | AQ27: 0 | AR27: 0 | AS27: 0 | AT27: 0 | AU27: 0 | AV27: 0 | AW27: 0 | AX27: 0 | AY27: 0 | AZ27: 0 | BA27: 0 | BB27: 0 | BC27: 0 | BD27: 0 | BE27: 0 | BF27: 0 | BG27: 0 | BH27: 0 | BI27: 0 | BJ27: 0 | BK27: 0 | BL27: 0 | BM27: 0 | BN27: 0 | BO27: 0 | BP27: 0 | BQ27: 0 | BR27: 0 | BS27: 0 | BT27: 0 | BU27: 0 | BV27: 0 | BW27: 0 | BX27: 0 | BY27: 0 | BZ27: 0 | CA27: 0 | CB27: 0 | CC27: 0 | CD27: 0 | CE27: 0 | CF27: 0 | CG27: 0 | CH27: 0 | CI27: 0 | CJ27: 0 | CK27: 0 | CL27: 0 | CM27: 0 | CN27: 0 | CO27: 0 | CP27: 0 | CQ27: 0 | CR27: 0 | CS27: 0 | CT27: 0 | CU27: 0 | CV27: 0 | CW27: 0 | CX27: 0 | CY27: 0 | CZ27: 0 | DA27: 0 | DB27: 0 | DC27: 0 | DD27: 0 | DE27: 0 | DF27: 0 | DG27: 0 | DH27: 0 | DI27: 0 | DJ27: 0 | DK27: 0 | DL27: 0 | DM27: 0 | DN27: 0 | DO27: 0 | DP27: 0 | DQ27: 0 | DR27: 0 | DS27: 0 | DT27: 0 | DU27: 0 | DV27: 0 | DW27: 0 | DX27: 0 | DY27: 0 | DZ27: 0 | EA27: 0 | EB27: 0 | EC27: 0 | ED27: 0 | EE27: 0 | EF27: 0 | EG27: 0 | EH27: 0 | EI27: 0 | EJ27: 0 | EK27: 0 | EL27: 0 | EM27: 0 | EN27: 0 | EO27: 0
A28: 18 | B28: =+'Assignment Worksheet'!M28 -> 0 | C28: =+'Assignment Worksheet'!N28 -> 0 | D28: =+'Assignment Worksheet'!J28 -> 0 | E28: =+'Assignment Worksheet'!K28 -> 0 | F28: =+'Assignment Worksheet'!L28 -> 00:00:00 | G28: =IF(H28>0,(ROUND(+'G&K-Funding Analysis'!J28,0)),"") ->  | H28: =+'G&K-Funding Analysis'!I28 -> 0 | I28: =+'G&K-Funding Analysis'!K28 ->  | J28: =+'G&K-Funding Analysis'!L28 ->  | K28: =+'G&K-Funding Analysis'!M28 -> 0 | L28: =+'G&K-Funding Analysis'!N28 -> 0 | M28: =IF(H28>0,(IF('D-Checklist'!I28=1,0,200)),"") ->  | N28: =+'G&K-Funding Analysis'!O28 ->  | P28: 0 | Q28: 0 | R28: 0 | S28: 0 | T28: 0 | U28: 0 | V28: 0 | W28: 0 | X28: 0 | Y28: 0 | Z28: 0 | AA28: 0 | AB28: 0 | AC28: 0 | AD28: 0 | AE28: 0 | AF28: 0 | AG28: 0 | AH28: 0 | AI28: 0 | AJ28: 0 | AK28: 0 | AL28: 0 | AM28: 0 | AN28: 0 | AO28: 0 | AP28: 0 | AQ28: 0 | AR28: 0 | AS28: 0 | AT28: 0 | AU28: 0 | AV28: 0 | AW28: 0 | AX28: 0 | AY28: 0 | AZ28: 0 | BA28: 0 | BB28: 0 | BC28: 0 | BD28: 0 | BE28: 0 | BF28: 0 | BG28: 0 | BH28: 0 | BI28: 0 | BJ28: 0 | BK28: 0 | BL28: 0 | BM28: 0 | BN28: 0 | BO28: 0 | BP28: 0 | BQ28: 0 | BR28: 0 | BS28: 0 | BT28: 0 | BU28: 0 | BV28: 0 | BW28: 0 | BX28: 0 | BY28: 0 | BZ28: 0 | CA28: 0 | CB28: 0 | CC28: 0 | CD28: 0 | CE28: 0 | CF28: 0 | CG28: 0 | CH28: 0 | CI28: 0 | CJ28: 0 | CK28: 0 | CL28: 0 | CM28: 0 | CN28: 0 | CO28: 0 | CP28: 0 | CQ28: 0 | CR28: 0 | CS28: 0 | CT28: 0 | CU28: 0 | CV28: 0 | CW28: 0 | CX28: 0 | CY28: 0 | CZ28: 0 | DA28: 0 | DB28: 0 | DC28: 0 | DD28: 0 | DE28: 0 | DF28: 0 | DG28: 0 | DH28: 0 | DI28: 0 | DJ28: 0 | DK28: 0 | DL28: 0 | DM28: 0 | DN28: 0 | DO28: 0 | DP28: 0 | DQ28: 0 | DR28: 0 | DS28: 0 | DT28: 0 | DU28: 0 | DV28: 0 | DW28: 0 | DX28: 0 | DY28: 0 | DZ28: 0 | EA28: 0 | EB28: 0 | EC28: 0 | ED28: 0 | EE28: 0 | EF28: 0 | EG28: 0 | EH28: 0 | EI28: 0 | EJ28: 0 | EK28: 0 | EL28: 0 | EM28: 0 | EN28: 0 | EO28: 0
A29: 19 | B29: =+'Assignment Worksheet'!M29 -> 0 | C29: =+'Assignment Worksheet'!N29 -> 0 | D29: =+'Assignment Worksheet'!J29 -> 0 | E29: =+'Assignment Worksheet'!K29 -> 0 | F29: =+'Assignment Worksheet'!L29 -> 00:00:00 | G29: =IF(H29>0,(ROUND(+'G&K-Funding Analysis'!J29,0)),"") ->  | H29: =+'G&K-Funding Analysis'!I29 -> 0 | I29: =+'G&K-Funding Analysis'!K29 ->  | J29: =+'G&K-Funding Analysis'!L29 ->  | K29: =+'G&K-Funding Analysis'!M29 -> 0 | L29: =+'G&K-Funding Analysis'!N29 -> 0 | M29: =IF(H29>0,(IF('D-Checklist'!I29=1,0,200)),"") ->  | N29: =+'G&K-Funding Analysis'!O29 ->  | P29: 0 | Q29: 0 | R29: 0 | S29: 0 | T29: 0 | U29: 0 | V29: 0 | W29: 0 | X29: 0 | Y29: 0 | Z29: 0 | AA29: 0 | AB29: 0 | AC29: 0 | AD29: 0 | AE29: 0 | AF29: 0 | AG29: 0 | AH29: 0 | AI29: 0 | AJ29: 0 | AK29: 0 | AL29: 0 | AM29: 0 | AN29: 0 | AO29: 0 | AP29: 0 | AQ29: 0 | AR29: 0 | AS29: 0 | AT29: 0 | AU29: 0 | AV29: 0 | AW29: 0 | AX29: 0 | AY29: 0 | AZ29: 0 | BA29: 0 | BB29: 0 | BC29: 0 | BD29: 0 | BE29: 0 | BF29: 0 | BG29: 0 | BH29: 0 | BI29: 0 | BJ29: 0 | BK29: 0 | BL29: 0 | BM29: 0 | BN29: 0 | BO29: 0 | BP29: 0 | BQ29: 0 | BR29: 0 | BS29: 0 | BT29: 0 | BU29: 0 | BV29: 0 | BW29: 0 | BX29: 0 | BY29: 0 | BZ29: 0 | CA29: 0 | CB29: 0 | CC29: 0 | CD29: 0 | CE29: 0 | CF29: 0 | CG29: 0 | CH29: 0 | CI29: 0 | CJ29: 0 | CK29: 0 | CL29: 0 | CM29: 0 | CN29: 0 | CO29: 0 | CP29: 0 | CQ29: 0 | CR29: 0 | CS29: 0 | CT29: 0 | CU29: 0 | CV29: 0 | CW29: 0 | CX29: 0 | CY29: 0 | CZ29: 0 | DA29: 0 | DB29: 0 | DC29: 0 | DD29: 0 | DE29: 0 | DF29: 0 | DG29: 0 | DH29: 0 | DI29: 0 | DJ29: 0 | DK29: 0 | DL29: 0 | DM29: 0 | DN29: 0 | DO29: 0 | DP29: 0 | DQ29: 0 | DR29: 0 | DS29: 0 | DT29: 0 | DU29: 0 | DV29: 0 | DW29: 0 | DX29: 0 | DY29: 0 | DZ29: 0 | EA29: 0 | EB29: 0 | EC29: 0 | ED29: 0 | EE29: 0 | EF29: 0 | EG29: 0 | EH29: 0 | EI29: 0 | EJ29: 0 | EK29: 0 | EL29: 0 | EM29: 0 | EN29: 0 | EO29: 0
A30: 20 | B30: =+'Assignment Worksheet'!M30 -> 0 | C30: =+'Assignment Worksheet'!N30 -> 0 | D30: =+'Assignment Worksheet'!J30 -> 0 | E30: =+'Assignment Worksheet'!K30 -> 0 | F30: =+'Assignment Worksheet'!L30 -> 00:00:00 | G30: =IF(H30>0,(ROUND(+'G&K-Funding Analysis'!J30,0)),"") ->  | H30: =+'G&K-Funding Analysis'!I30 -> 0 | I30: =+'G&K-Funding Analysis'!K30 ->  | J30: =+'G&K-Funding Analysis'!L30 ->  | K30: =+'G&K-Funding Analysis'!M30 -> 0 | L30: =+'G&K-Funding Analysis'!N30 -> 0 | M30: =IF(H30>0,(IF('D-Checklist'!I30=1,0,200)),"") ->  | N30: =+'G&K-Funding Analysis'!O30 ->  | P30: 0 | Q30: 0 | R30: 0 | S30: 0 | T30: 0 | U30: 0 | V30: 0 | W30: 0 | X30: 0 | Y30: 0 | Z30: 0 | AA30: 0 | AB30: 0 | AC30: 0 | AD30: 0 | AE30: 0 | AF30: 0 | AG30: 0 | AH30: 0 | AI30: 0 | AJ30: 0 | AK30: 0 | AL30: 0 | AM30: 0 | AN30: 0 | AO30: 0 | AP30: 0 | AQ30: 0 | AR30: 0 | AS30: 0 | AT30: 0 | AU30: 0 | AV30: 0 | AW30: 0 | AX30: 0 | AY30: 0 | AZ30: 0 | BA30: 0 | BB30: 0 | BC30: 0 | BD30: 0 | BE30: 0 | BF30: 0 | BG30: 0 | BH30: 0 | BI30: 0 | BJ30: 0 | BK30: 0 | BL30: 0 | BM30: 0 | BN30: 0 | BO30: 0 | BP30: 0 | BQ30: 0 | BR30: 0 | BS30: 0 | BT30: 0 | BU30: 0 | BV30: 0 | BW30: 0 | BX30: 0 | BY30: 0 | BZ30: 0 | CA30: 0 | CB30: 0 | CC30: 0 | CD30: 0 | CE30: 0 | CF30: 0 | CG30: 0 | CH30: 0 | CI30: 0 | CJ30: 0 | CK30: 0 | CL30: 0 | CM30: 0 | CN30: 0 | CO30: 0 | CP30: 0 | CQ30: 0 | CR30: 0 | CS30: 0 | CT30: 0 | CU30: 0 | CV30: 0 | CW30: 0 | CX30: 0 | CY30: 0 | CZ30: 0 | DA30: 0 | DB30: 0 | DC30: 0 | DD30: 0 | DE30: 0 | DF30: 0 | DG30: 0 | DH30: 0 | DI30: 0 | DJ30: 0 | DK30: 0 | DL30: 0 | DM30: 0 | DN30: 0 | DO30: 0 | DP30: 0 | DQ30: 0 | DR30: 0 | DS30: 0 | DT30: 0 | DU30: 0 | DV30: 0 | DW30: 0 | DX30: 0 | DY30: 0 | DZ30: 0 | EA30: 0 | EB30: 0 | EC30: 0 | ED30: 0 | EE30: 0 | EF30: 0 | EG30: 0 | EH30: 0 | EI30: 0 | EJ30: 0 | EK30: 0 | EL30: 0 | EM30: 0 | EN30: 0 | EO30: 0
A31: 21 | B31: =+'Assignment Worksheet'!M31 -> 0 | C31: =+'Assignment Worksheet'!N31 -> 0 | D31: =+'Assignment Worksheet'!J31 -> 0 | E31: =+'Assignment Worksheet'!K31 -> 0 | F31: =+'Assignment Worksheet'!L31 -> 00:00:00 | G31: =IF(H31>0,(ROUND(+'G&K-Funding Analysis'!J31,0)),"") ->  | H31: =+'G&K-Funding Analysis'!I31 -> 0 | I31: =+'G&K-Funding Analysis'!K31 ->  | J31: =+'G&K-Funding Analysis'!L31 ->  | K31: =+'G&K-Funding Analysis'!M31 -> 0 | L31: =+'G&K-Funding Analysis'!N31 -> 0 | M31: =IF(H31>0,(IF('D-Checklist'!I31=1,0,200)),"") ->  | N31: =+'G&K-Funding Analysis'!O31 ->  | P31: 0 | Q31: 0 | R31: 0 | S31: 0 | T31: 0 | U31: 0 | V31: 0 | W31: 0 | X31: 0 | Y31: 0 | Z31: 0 | AA31: 0 | AB31: 0 | AC31: 0 | AD31: 0 | AE31: 0 | AF31: 0 | AG31: 0 | AH31: 0 | AI31: 0 | AJ31: 0 | AK31: 0 | AL31: 0 | AM31: 0 | AN31: 0 | AO31: 0 | AP31: 0 | AQ31: 0 | AR31: 0 | AS31: 0 | AT31: 0 | AU31: 0 | AV31: 0 | AW31: 0 | AX31: 0 | AY31: 0 | AZ31: 0 | BA31: 0 | BB31: 0 | BC31: 0 | BD31: 0 | BE31: 0 | BF31: 0 | BG31: 0 | BH31: 0 | BI31: 0 | BJ31: 0 | BK31: 0 | BL31: 0 | BM31: 0 | BN31: 0 | BO31: 0 | BP31: 0 | BQ31: 0 | BR31: 0 | BS31: 0 | BT31: 0 | BU31: 0 | BV31: 0 | BW31: 0 | BX31: 0 | BY31: 0 | BZ31: 0 | CA31: 0 | CB31: 0 | CC31: 0 | CD31: 0 | CE31: 0 | CF31: 0 | CG31: 0 | CH31: 0 | CI31: 0 | CJ31: 0 | CK31: 0 | CL31: 0 | CM31: 0 | CN31: 0 | CO31: 0 | CP31: 0 | CQ31: 0 | CR31: 0 | CS31: 0 | CT31: 0 | CU31: 0 | CV31: 0 | CW31: 0 | CX31: 0 | CY31: 0 | CZ31: 0 | DA31: 0 | DB31: 0 | DC31: 0 | DD31: 0 | DE31: 0 | DF31: 0 | DG31: 0 | DH31: 0 | DI31: 0 | DJ31: 0 | DK31: 0 | DL31: 0 | DM31: 0 | DN31: 0 | DO31: 0 | DP31: 0 | DQ31: 0 | DR31: 0 | DS31: 0 | DT31: 0 | DU31: 0 | DV31: 0 | DW31: 0 | DX31: 0 | DY31: 0 | DZ31: 0 | EA31: 0 | EB31: 0 | EC31: 0 | ED31: 0 | EE31: 0 | EF31: 0 | EG31: 0 | EH31: 0 | EI31: 0 | EJ31: 0 | EK31: 0 | EL31: 0 | EM31: 0 | EN31: 0 | EO31: 0
A32: 22 | B32: =+'Assignment Worksheet'!M32 -> 0 | C32: =+'Assignment Worksheet'!N32 -> 0 | D32: =+'Assignment Worksheet'!J32 -> 0 | E32: =+'Assignment Worksheet'!K32 -> 0 | F32: =+'Assignment Worksheet'!L32 -> 00:00:00 | G32: =IF(H32>0,(ROUND(+'G&K-Funding Analysis'!J32,0)),"") ->  | H32: =+'G&K-Funding Analysis'!I32 -> 0 | I32: =+'G&K-Funding Analysis'!K32 ->  | J32: =+'G&K-Funding Analysis'!L32 ->  | K32: =+'G&K-Funding Analysis'!M32 -> 0 | L32: =+'G&K-Funding Analysis'!N32 -> 0 | M32: =IF(H32>0,(IF('D-Checklist'!I32=1,0,200)),"") ->  | N32: =+'G&K-Funding Analysis'!O32 ->  | P32: 0 | Q32: 0 | R32: 0 | S32: 0 | T32: 0 | U32: 0 | V32: 0 | W32: 0 | X32: 0 | Y32: 0 | Z32: 0 | AA32: 0 | AB32: 0 | AC32: 0 | AD32: 0 | AE32: 0 | AF32: 0 | AG32: 0 | AH32: 0 | AI32: 0 | AJ32: 0 | AK32: 0 | AL32: 0 | AM32: 0 | AN32: 0 | AO32: 0 | AP32: 0 | AQ32: 0 | AR32: 0 | AS32: 0 | AT32: 0 | AU32: 0 | AV32: 0 | AW32: 0 | AX32: 0 | AY32: 0 | AZ32: 0 | BA32: 0 | BB32: 0 | BC32: 0 | BD32: 0 | BE32: 0 | BF32: 0 | BG32: 0 | BH32: 0 | BI32: 0 | BJ32: 0 | BK32: 0 | BL32: 0 | BM32: 0 | BN32: 0 | BO32: 0 | BP32: 0 | BQ32: 0 | BR32: 0 | BS32: 0 | BT32: 0 | BU32: 0 | BV32: 0 | BW32: 0 | BX32: 0 | BY32: 0 | BZ32: 0 | CA32: 0 | CB32: 0 | CC32: 0 | CD32: 0 | CE32: 0 | CF32: 0 | CG32: 0 | CH32: 0 | CI32: 0 | CJ32: 0 | CK32: 0 | CL32: 0 | CM32: 0 | CN32: 0 | CO32: 0 | CP32: 0 | CQ32: 0 | CR32: 0 | CS32: 0 | CT32: 0 | CU32: 0 | CV32: 0 | CW32: 0 | CX32: 0 | CY32: 0 | CZ32: 0 | DA32: 0 | DB32: 0 | DC32: 0 | DD32: 0 | DE32: 0 | DF32: 0 | DG32: 0 | DH32: 0 | DI32: 0 | DJ32: 0 | DK32: 0 | DL32: 0 | DM32: 0 | DN32: 0 | DO32: 0 | DP32: 0 | DQ32: 0 | DR32: 0 | DS32: 0 | DT32: 0 | DU32: 0 | DV32: 0 | DW32: 0 | DX32: 0 | DY32: 0 | DZ32: 0 | EA32: 0 | EB32: 0 | EC32: 0 | ED32: 0 | EE32: 0 | EF32: 0 | EG32: 0 | EH32: 0 | EI32: 0 | EJ32: 0 | EK32: 0 | EL32: 0 | EM32: 0 | EN32: 0 | EO32: 0
A33: 23 | B33: =+'Assignment Worksheet'!M33 -> 0 | C33: =+'Assignment Worksheet'!N33 -> 0 | D33: =+'Assignment Worksheet'!J33 -> 0 | E33: =+'Assignment Worksheet'!K33 -> 0 | F33: =+'Assignment Worksheet'!L33 -> 00:00:00 | G33: =IF(H33>0,(ROUND(+'G&K-Funding Analysis'!J33,0)),"") ->  | H33: =+'G&K-Funding Analysis'!I33 -> 0 | I33: =+'G&K-Funding Analysis'!K33 ->  | J33: =+'G&K-Funding Analysis'!L33 ->  | K33: =+'G&K-Funding Analysis'!M33 -> 0 | L33: =+'G&K-Funding Analysis'!N33 -> 0 | M33: =IF(H33>0,(IF('D-Checklist'!I33=1,0,200)),"") ->  | N33: =+'G&K-Funding Analysis'!O33 ->  | P33: 0 | Q33: 0 | R33: 0 | S33: 0 | T33: 0 | U33: 0 | V33: 0 | W33: 0 | X33: 0 | Y33: 0 | Z33: 0 | AA33: 0 | AB33: 0 | AC33: 0 | AD33: 0 | AE33: 0 | AF33: 0 | AG33: 0 | AH33: 0 | AI33: 0 | AJ33: 0 | AK33: 0 | AL33: 0 | AM33: 0 | AN33: 0 | AO33: 0 | AP33: 0 | AQ33: 0 | AR33: 0 | AS33: 0 | AT33: 0 | AU33: 0 | AV33: 0 | AW33: 0 | AX33: 0 | AY33: 0 | AZ33: 0 | BA33: 0 | BB33: 0 | BC33: 0 | BD33: 0 | BE33: 0 | BF33: 0 | BG33: 0 | BH33: 0 | BI33: 0 | BJ33: 0 | BK33: 0 | BL33: 0 | BM33: 0 | BN33: 0 | BO33: 0 | BP33: 0 | BQ33: 0 | BR33: 0 | BS33: 0 | BT33: 0 | BU33: 0 | BV33: 0 | BW33: 0 | BX33: 0 | BY33: 0 | BZ33: 0 | CA33: 0 | CB33: 0 | CC33: 0 | CD33: 0 | CE33: 0 | CF33: 0 | CG33: 0 | CH33: 0 | CI33: 0 | CJ33: 0 | CK33: 0 | CL33: 0 | CM33: 0 | CN33: 0 | CO33: 0 | CP33: 0 | CQ33: 0 | CR33: 0 | CS33: 0 | CT33: 0 | CU33: 0 | CV33: 0 | CW33: 0 | CX33: 0 | CY33: 0 | CZ33: 0 | DA33: 0 | DB33: 0 | DC33: 0 | DD33: 0 | DE33: 0 | DF33: 0 | DG33: 0 | DH33: 0 | DI33: 0 | DJ33: 0 | DK33: 0 | DL33: 0 | DM33: 0 | DN33: 0 | DO33: 0 | DP33: 0 | DQ33: 0 | DR33: 0 | DS33: 0 | DT33: 0 | DU33: 0 | DV33: 0 | DW33: 0 | DX33: 0 | DY33: 0 | DZ33: 0 | EA33: 0 | EB33: 0 | EC33: 0 | ED33: 0 | EE33: 0 | EF33: 0 | EG33: 0 | EH33: 0 | EI33: 0 | EJ33: 0 | EK33: 0 | EL33: 0 | EM33: 0 | EN33: 0 | EO33: 0
A34: 24 | B34: =+'Assignment Worksheet'!M34 -> 0 | C34: =+'Assignment Worksheet'!N34 -> 0 | D34: =+'Assignment Worksheet'!J34 -> 0 | E34: =+'Assignment Worksheet'!K34 -> 0 | F34: =+'Assignment Worksheet'!L34 -> 00:00:00 | G34: =IF(H34>0,(ROUND(+'G&K-Funding Analysis'!J34,0)),"") ->  | H34: =+'G&K-Funding Analysis'!I34 -> 0 | I34: =+'G&K-Funding Analysis'!K34 ->  | J34: =+'G&K-Funding Analysis'!L34 ->  | K34: =+'G&K-Funding Analysis'!M34 -> 0 | L34: =+'G&K-Funding Analysis'!N34 -> 0 | M34: =IF(H34>0,(IF('D-Checklist'!I34=1,0,200)),"") ->  | N34: =+'G&K-Funding Analysis'!O34 ->  | P34: 0 | Q34: =IF(Q$9<=$G34,+$K34,0) -> 0 | R34: 0 | S34: 0 | T34: 0 | U34: 0 | V34: 0 | W34: 0 | X34: 0 | Y34: 0 | Z34: 0 | AA34: 0 | AB34: 0 | AC34: 0 | AD34: 0 | AE34: 0 | AF34: 0 | AG34: 0 | AH34: 0 | AI34: 0 | AJ34: 0 | AK34: 0 | AL34: 0 | AM34: 0 | AN34: 0 | AO34: 0 | AP34: 0 | AQ34: 0 | AR34: 0 | AS34: 0 | AT34: 0 | AU34: 0 | AV34: 0 | AW34: 0 | AX34: 0 | AY34: 0 | AZ34: 0 | BA34: 0 | BB34: 0 | BC34: 0 | BD34: 0 | BE34: 0 | BF34: 0 | BG34: 0 | BH34: 0 | BI34: 0 | BJ34: 0 | BK34: =IF(BK$9<=$G34,+$K34,0) -> 0 | BL34: 0 | BM34: 0 | BN34: 0 | BO34: 0 | BP34: 0 | BQ34: 0 | BR34: 0 | BS34: 0 | BT34: 0 | BU34: 0 | BV34: 0 | BW34: 0 | BX34: 0 | BY34: 0 | BZ34: 0 | CA34: =IF(CA$9<=$G34,+$K34,0) -> 0 | CB34: 0 | CC34: =IF(CC$9<=$G34,+$K34,0) -> 0 | CD34: 0 | CE34: 0 | CF34: 0 | CG34: 0 | CH34: 0 | CI34: 0 | CJ34: 0 | CK34: 0 | CL34: 0 | CM34: 0 | CN34: 0 | CO34: 0 | CP34: 0 | CQ34: 0 | CR34: 0 | CS34: 0 | CT34: 0 | CU34: 0 | CV34: 0 | CW34: 0 | CX34: 0 | CY34: 0 | CZ34: 0 | DA34: 0 | DB34: 0 | DC34: 0 | DD34: 0 | DE34: 0 | DF34: 0 | DG34: 0 | DH34: 0 | DI34: =IF(DI$9<=$G34,+$K34,0) -> 0 | DJ34: 0 | DK34: 0 | DL34: 0 | DM34: 0 | DN34: 0 | DO34: 0 | DP34: 0 | DQ34: 0 | DR34: 0 | DS34: 0 | DT34: 0 | DU34: 0 | DV34: 0 | DW34: 0 | DX34: 0 | DY34: 0 | DZ34: 0 | EA34: 0 | EB34: 0 | EC34: 0 | ED34: 0 | EE34: 0 | EF34: 0 | EG34: 0 | EH34: 0 | EI34: 0 | EJ34: 0 | EK34: 0 | EL34: =IF(EL$9<=$G34,+$K34,0) -> 0 | EM34: 0 | EN34: 0 | EO34: 0 | EY34: =IF(EY$9<=$G34,+$I34,0) ->  | GL34: =IF(GL$9<=$G34,+$I34,0) ->  | IG34: =IF(IG$9<=$G34,+$I34,0) ->  | JM34: =IF(JM$9<=$G34,+$I34,0) ->  | JZ34: =IF(JZ$9<=$G34,+$J34,0) ->  | LM34: =IF(LM$9<=$G34,+$J34,0) ->  | NH34: =IF(NH$9<=$G34,+$J34,0) ->  | ON34: =IF(ON$9<=$G34,+$J34,0) -> 
A35: 25 | B35: =+'Assignment Worksheet'!M35 -> 0 | C35: =+'Assignment Worksheet'!N35 -> 0 | D35: =+'Assignment Worksheet'!J35 -> 0 | E35: =+'Assignment Worksheet'!K35 -> 0 | F35: =+'Assignment Worksheet'!L35 -> 00:00:00 | G35: =IF(H35>0,(ROUND(+'G&K-Funding Analysis'!J35,0)),"") ->  | H35: =+'G&K-Funding Analysis'!I35 -> 0 | I35: =+'G&K-Funding Analysis'!K35 ->  | J35: =+'G&K-Funding Analysis'!L35 ->  | K35: =+'G&K-Funding Analysis'!M35 -> 0 | L35: =+'G&K-Funding Analysis'!N35 -> 0 | M35: =IF(H35>0,(IF('D-Checklist'!I35=1,0,200)),"") ->  | N35: =+'G&K-Funding Analysis'!O35 ->  | P35: =IF(P$9<=$G35,+$K35,0) -> 0 | Q35: 0 | R35: 0 | S35: 0 | T35: 0 | U35: 0 | V35: 0 | W35: 0 | X35: 0 | Y35: 0 | Z35: 0 | AA35: 0 | AB35: 0 | AC35: 0 | AD35: 0 | AE35: 0 | AF35: =IF(AF$9<=$G35,+$K35,0) -> 0 | AG35: 0 | AH35: 0 | AI35: 0 | AJ35: 0 | AK35: 0 | AL35: 0 | AM35: 0 | AN35: 0 | AO35: 0 | AP35: 0 | AQ35: 0 | AR35: 0 | AS35: 0 | AT35: 0 | AU35: 0 | AV35: 0 | AW35: 0 | AX35: 0 | AY35: 0 | AZ35: 0 | BA35: 0 | BB35: 0 | BC35: 0 | BD35: 0 | BE35: 0 | BF35: 0 | BG35: 0 | BH35: 0 | BI35: 0 | BJ35: 0 | BK35: 0 | BL35: 0 | BM35: 0 | BN35: 0 | BO35: 0 | BP35: 0 | BQ35: 0 | BR35: 0 | BS35: 0 | BT35: 0 | BU35: 0 | BV35: 0 | BW35: 0 | BX35: 0 | BY35: 0 | BZ35: 0 | CA35: =IF(CA$9<=$G35,+$K35,0) -> 0 | CB35: 0 | CC35: =IF(CC$9<=$G35,+$K35,0) -> 0 | CD35: 0 | CE35: 0 | CF35: 0 | CG35: 0 | CH35: 0 | CI35: 0 | CJ35: 0 | CK35: 0 | CL35: 0 | CM35: 0 | CN35: 0 | CO35: =IF(CO$9<=$G35,+$K35,0) -> 0 | CP35: 0 | CQ35: 0 | CR35: 0 | CS35: 0 | CT35: 0 | CU35: 0 | CV35: 0 | CW35: 0 | CX35: 0 | CY35: 0 | CZ35: 0 | DA35: 0 | DB35: 0 | DC35: 0 | DD35: 0 | DE35: =IF(DE$9<=$G35,+$K35,0) -> 0 | DF35: 0 | DG35: 0 | DH35: 0 | DI35: 0 | DJ35: 0 | DK35: 0 | DL35: 0 | DM35: 0 | DN35: 0 | DO35: 0 | DP35: 0 | DQ35: 0 | DR35: 0 | DS35: 0 | DT35: 0 | DU35: =IF(DU$9<=$G35,+$K35,0) -> 0 | DV35: =IF(DV$9<=$G35,+$K35,0) -> 0 | DW35: =IF(DW$9<=$G35,+$K35,0) -> 0 | DX35: 0 | DY35: 0 | DZ35: 0 | EA35: 0 | EB35: 0 | EC35: 0 | ED35: 0 | EE35: 0 | EF35: 0 | EG35: 0 | EH35: 0 | EI35: 0 | EJ35: 0 | EK35: 0 | EL35: 0 | EM35: 0 | EN35: 0 | EO35: 0 | EQ35: =IF(EQ$9<=$G35,+$I35,0) ->  | HP35: =IF(HP$9<=$G35,+$I35,0) ->  | JR35: =IF(JR$9<=$G35,+$J35,0) ->  | MQ35: =IF(MQ$9<=$G35,+$J35,0) -> 
P36: =SUM(P11:P35) -> 55.54 | Q36: =SUM(Q11:Q35) -> 55.54 | R36: 55.54 | S36: 55.54 | T36: 55.54 | U36: 55.54 | V36: 55.54 | W36: 55.54 | X36: 55.54 | Y36: 55.54 | Z36: 55.54 | AA36: 55.54 | AB36: 55.54 | AC36: 55.54 | AD36: 55.54 | AE36: 55.54 | AF36: 55.54 | AG36: 55.54 | AH36: 55.54 | AI36: 55.54 | AJ36: 55.54 | AK36: 55.54 | AL36: 55.54 | AM36: 55.54 | AN36: 55.54 | AO36: 55.54 | AP36: 55.54 | AQ36: 55.54 | AR36: 55.54 | AS36: 55.54 | AT36: 55.54 | AU36: 55.54 | AV36: 55.54 | AW36: 55.54 | AX36: 55.54 | AY36: 55.54 | AZ36: 55.54 | BA36: 55.54 | BB36: 55.54 | BC36: 55.54 | BD36: 55.54 | BE36: 55.54 | BF36: 55.54 | BG36: 55.54 | BH36: 55.54 | BI36: 55.54 | BJ36: 55.54 | BK36: 55.54 | BL36: 55.54 | BM36: 55.54 | BN36: 55.54 | BO36: 55.54 | BP36: 55.54 | BQ36: 55.54 | BR36: 55.54 | BS36: 55.54 | BT36: 55.54 | BU36: 55.54 | BV36: 55.54 | BW36: 55.54 | BX36: 55.54 | BY36: 55.54 | BZ36: 55.54 | CA36: 55.54 | CB36: 55.54 | CC36: =SUM(CC11:CC35) -> 55.54 | CD36: 55.54 | CE36: 55.54 | CF36: 55.54 | CG36: 55.54 | CH36: 55.54 | CI36: 55.54 | CJ36: 55.54 | CK36: 55.54 | CL36: 55.54 | CM36: 55.54 | CN36: 55.54 | CO36: 55.54 | CP36: 55.54 | CQ36: 55.54 | CR36: 55.54 | CS36: 55.54 | CT36: 55.54 | CU36: 55.54 | CV36: 55.54 | CW36: 55.54 | CX36: 55.54 | CY36: 55.54 | CZ36: 55.54 | DA36: 55.54 | DB36: 55.54 | DC36: 55.54 | DD36: 55.54 | DE36: 55.54 | DF36: 55.54 | DG36: 55.54 | DH36: 55.54 | DI36: 55.54 | DJ36: 55.54 | DK36: 55.54 | DL36: 55.54 | DM36: 55.54 | DN36: 55.54 | DO36: 55.54 | DP36: 55.54 | DQ36: 55.54 | DR36: 55.54 | DS36: 55.54 | DT36: 55.54 | DU36: 55.54 | DV36: 55.54 | DW36: 55.54 | DX36: 55.54 | DY36: 55.54 | DZ36: 55.54 | EA36: 55.54 | EB36: 55.54 | EC36: 55.54 | ED36: 55.54 | EE36: 55.54 | EF36: 55.54 | EG36: 55.54 | EH36: 55.54 | EI36: 55.54 | EJ36: 55.54 | EK36: 55.54 | EL36: 55.54 | EM36: 55.54 | EN36: 55.54 | EO36: =SUM(EO11:EO35) -> 55.54 | EQ36: =SUM(EQ11:EQ35) -> 40.39 | ER36: =SUM(ER11:ER35) -> 40.39 | ES36: 40.39 | ET36: 40.39 | EU36: 40.39 | EV36: 40.39 | EW36: 40.39 | EX36: 40.39 | EY36: 40.39 | EZ36: 40.39 | FA36: 40.39 | FB36: 40.39 | FC36: 40.39 | FD36: 40.39 | FE36: 40.39 | FF36: 40.39 | FG36: 40.39 | FH36: 40.39 | FI36: 40.39 | FJ36: 40.39 | FK36: 40.39 | FL36: 40.39 | FM36: 40.39 | FN36: 40.39 | FO36: 40.39 | FP36: 40.39 | FQ36: 40.39 | FR36: 40.39 | FS36: 40.39 | FT36: 40.39 | FU36: 40.39 | FV36: 40.39 | FW36: 40.39 | FX36: 40.39 | FY36: 40.39 | FZ36: 40.39 | GA36: 40.39 | GB36: 40.39 | GC36: 40.39 | GD36: 40.39 | GE36: 40.39 | GF36: 40.39 | GG36: 40.39 | GH36: 40.39 | GI36: 40.39 | GJ36: 40.39 | GK36: 40.39 | GL36: 40.39 | GM36: 40.39 | GN36: 40.39 | GO36: 40.39 | GP36: 40.39 | GQ36: 40.39 | GR36: 40.39 | GS36: 40.39 | GT36: 40.39 | GU36: 40.39 | GV36: 40.39 | GW36: 40.39 | GX36: 40.39 | GY36: 40.39 | GZ36: 40.39 | HA36: 40.39 | HB36: 40.39 | HC36: 40.39 | HD36: =SUM(HD11:HD35) -> 40.39 | HE36: 40.39 | HF36: 40.39 | HG36: 40.39 | HH36: 40.39 | HI36: 40.39 | HJ36: 40.39 | HK36: 40.39 | HL36: 40.39 | HM36: 40.39 | HN36: 40.39 | HO36: 40.39 | HP36: 40.39 | HQ36: 40.39 | HR36: 40.39 | HS36: 40.39 | HT36: 40.39 | HU36: 40.39 | HV36: 40.39 | HW36: 40.39 | HX36: 40.39 | HY36: 40.39 | HZ36: 40.39 | IA36: 40.39 | IB36: 40.39 | IC36: 40.39 | ID36: 40.39 | IE36: 40.39 | IF36: 40.39 | IG36: 40.39 | IH36: 40.39 | II36: 40.39 | IJ36: 40.39 | IK36: 40.39 | IL36: 40.39 | IM36: 40.39 | IN36: 40.39 | IO36: 40.39 | IP36: 40.39 | IQ36: 40.39 | IR36: 40.39 | IS36: 40.39 | IT36: 40.39 | IU36: 40.39 | IV36: 40.39 | IW36: 40.39 | IX36: 40.39 | IY36: 40.39 | IZ36: 40.39 | JA36: 40.39 | JB36: 40.39 | JC36: 40.39 | JD36: 40.39 | JE36: 40.39 | JF36: 40.39 | JG36: 40.39 | JH36: 40.39 | JI36: 40.39 | JJ36: 40.39 | JK36: 40.39 | JL36: 40.39 | JM36: 40.39 | JN36: 40.39 | JO36: 40.39 | JP36: =SUM(JP11:JP35) -> 40.39 | JR36: =SUM(JR11:JR35) -> 15.15 | JS36: =SUM(JS11:JS35) -> 15.15 | JT36: 15.15 | JU36: 15.15 | JV36: 15.15 | JW36: 15.15 | JX36: 15.15 | JY36: 15.15 | JZ36: 15.15 | KA36: 15.15 | KB36: 15.15 | KC36: 15.15 | KD36: 15.15 | KE36: 15.15 | KF36: 15.15 | KG36: 15.15 | KH36: 15.15 | KI36: 15.15 | KJ36: 15.15 | KK36: 15.15 | KL36: 15.15 | KM36: 15.15 | KN36: 15.15 | KO36: 15.15 | KP36: 15.15 | KQ36: 15.15 | KR36: 15.15 | KS36: 15.15 | KT36: 15.15 | KU36: 15.15 | KV36: 15.15 | KW36: 15.15 | KX36: 15.15 | KY36: 15.15 | KZ36: 15.15 | LA36: 15.15 | LB36: 15.15 | LC36: 15.15 | LD36: 15.15 | LE36: 15.15 | LF36: 15.15 | LG36: 15.15 | LH36: 15.15 | LI36: 15.15 | LJ36: 15.15 | LK36: 15.15 | LL36: 15.15 | LM36: 15.15 | LN36: 15.15 | LO36: 15.15 | LP36: 15.15 | LQ36: 15.15 | LR36: 15.15 | LS36: 15.15 | LT36: 15.15 | LU36: 15.15 | LV36: 15.15 | LW36: 15.15 | LX36: 15.15 | LY36: 15.15 | LZ36: 15.15 | MA36: 15.15 | MB36: 15.15 | MC36: 15.15 | MD36: 15.15 | ME36: =SUM(ME11:ME35) -> 15.15 | MF36: 15.15 | MG36: 15.15 | MH36: 15.15 | MI36: 15.15 | MJ36: 15.15 | MK36: 15.15 | ML36: 15.15 | MM36: 15.15 | MN36: 15.15 | MO36: 15.15 | MP36: 15.15 | MQ36: 15.15 | MR36: 15.15 | MS36: 15.15 | MT36: 15.15 | MU36: 15.15 | MV36: 15.15 | MW36: 15.15 | MX36: 15.15 | MY36: 15.15 | MZ36: 15.15 | NA36: 15.15 | NB36: 15.15 | NC36: 15.15 | ND36: 15.15 | NE36: 15.15 | NF36: 15.15 | NG36: 15.15 | NH36: 15.15 | NI36: 15.15 | NJ36: 15.15 | NK36: 15.15 | NL36: 15.15 | NM36: 15.15 | NN36: 15.15 | NO36: 15.15 | NP36: 15.15 | NQ36: 15.15 | NR36: 15.15 | NS36: 15.15 | NT36: 15.15 | NU36: 15.15 | NV36: 15.15 | NW36: 15.15 | NX36: 15.15 | NY36: 15.15 | NZ36: 15.15 | OA36: 15.15 | OB36: 15.15 | OC36: 15.15 | OD36: 15.15 | OE36: 15.15 | OF36: 15.15 | OG36: 15.15 | OH36: 15.15 | OI36: 15.15 | OJ36: 15.15 | OK36: 15.15 | OL36: 15.15 | OM36: 15.15 | ON36: 15.15 | OO36: 15.15 | OP36: 15.15 | OQ36: =SUM(OQ11:OQ35) -> 15.15

Sheet M - Block Ticket (hidden)
A1: Block Ticket | H1: Batch #: | I1: =+'B-Inputs'!B7 -> 7 | K1: =+'B-Inputs'!$B$38 -> 2018-05-04
A2: Dealership Name: | E2: =+'Assignment Worksheet'!D3 -> 0
E3: Date Funded: | G3: Notes: | J3: Total Purchase Amount: | M3: =+H36 -> 5250
E4: QuickBooks: | J4: Less Administrative Cost: | M4: =-L36 -> -367.5
A5: OFFICE USE ONLY: | E5: ICN #: | J5: Less Title Escrow: | M5: =-M36 -> 0
E6: Sales Comm. Updated: | J6: Less Wire Fee: | M6: =-'B-Inputs'!B34 -> 0
E7: Act Updated: | J7: Total to Be Deducted: | M7: =SUM(M4:M6) -> -367.5
K8: Total Funding Amount: | M8: =+M3+M7 -> 4882.5
J9: TOTAL TO BE FUNDED: | M9: =+M2-M7 -> 367.5
B10: Last Name | C10: First Name | D10: Car Year | E10: Make | F10: Model | G10: Number Weekly Payments | H10: Funding Basis | I10: Funding Basis Pay Down | J10: Advance Fee | K10: Total Payment | L10: One Time Administrative Cost | M10: Title/Escrow | N10: Documents Compliant
A11: 1 | B11: =+'Assignment Worksheet'!M11 -> 0 | C11: =+'Assignment Worksheet'!N11 -> 0 | D11: =+'Assignment Worksheet'!J11 -> 2011 | E11: =+'Assignment Worksheet'!K11 -> 0 | F11: =+'Assignment Worksheet'!L11 -> 0 | G11: =IF(D11>0,(+'G&K-Funding Analysis'!J11),"") -> 129.99 | H11: =IF(D11>0,(+'G&K-Funding Analysis'!I11),0) -> 5250 | I11: =IF(H11>0,(+'G&K-Funding Analysis'!K11),"") -> 40.39 | J11: =IF(H11>0,(+'G&K-Funding Analysis'!L11),"") -> 15.15 | K11: =IF(H11>0,(+'G&K-Funding Analysis'!M11),"") -> 55.54 | L11: =IF(H11>0,(+'G&K-Funding Analysis'!N11),"") -> 367.5 | M11: =IF(H11>0,IF('D-Checklist'!I11=1,0,+'B-Inputs'!$B$32),"") -> 0 | N11: =IF(H11>0,(+'G&K-Funding Analysis'!O11),"") -> NO
A12: 2 | B12: =+'Assignment Worksheet'!M12 -> 0 | C12: =+'Assignment Worksheet'!N12 -> 0 | D12: =+'Assignment Worksheet'!J12 -> 0 | E12: =+'Assignment Worksheet'!K12 -> 0 | F12: =+'Assignment Worksheet'!L12 -> 0 | G12: =IF(D12>0,(+'G&K-Funding Analysis'!J12),"") ->  | H12: =IF(D12>0,(+'G&K-Funding Analysis'!I12),0) -> 0 | I12: =IF(H12>0,(+'G&K-Funding Analysis'!K12),"") ->  | J12: =IF(H12>0,(+'G&K-Funding Analysis'!L12),"") ->  | K12: =IF(H12>0,(+'G&K-Funding Analysis'!M12),"") ->  | L12: =IF(H12>0,(+'G&K-Funding Analysis'!N12),"") ->  | M12: =IF(H12>0,IF('D-Checklist'!I12=1,0,+'B-Inputs'!$B$32),"") ->  | N12: =IF(H12>0,(+'G&K-Funding Analysis'!O12),"") -> 
A13: 3 | B13: =+'Assignment Worksheet'!M13 -> 0 | C13: =+'Assignment Worksheet'!N13 -> 0 | D13: =+'Assignment Worksheet'!J13 -> 0 | E13: =+'Assignment Worksheet'!K13 -> 0 | F13: =+'Assignment Worksheet'!L13 -> 0 | G13: =IF(D13>0,(+'G&K-Funding Analysis'!J13),"") ->  | H13: =IF(D13>0,(+'G&K-Funding Analysis'!I13),0) -> 0 | I13: =IF(H13>0,(+'G&K-Funding Analysis'!K13),"") ->  | J13: =IF(H13>0,(+'G&K-Funding Analysis'!L13),"") ->  | K13: =IF(H13>0,(+'G&K-Funding Analysis'!M13),"") ->  | L13: =IF(H13>0,(+'G&K-Funding Analysis'!N13),"") ->  | M13: =IF(H13>0,IF('D-Checklist'!I13=1,0,+'B-Inputs'!$B$32),"") ->  | N13: =IF(H13>0,(+'G&K-Funding Analysis'!O13),"") -> 
A14: 4 | B14: =+'Assignment Worksheet'!M14 -> 0 | C14: =+'Assignment Worksheet'!N14 -> 0 | D14: =+'Assignment Worksheet'!J14 -> 0 | E14: =+'Assignment Worksheet'!K14 -> 0 | F14: =+'Assignment Worksheet'!L14 -> 0 | G14: =IF(D14>0,(+'G&K-Funding Analysis'!J14),"") ->  | H14: =IF(D14>0,(+'G&K-Funding Analysis'!I14),0) -> 0 | I14: =IF(H14>0,(+'G&K-Funding Analysis'!K14),"") ->  | J14: =IF(H14>0,(+'G&K-Funding Analysis'!L14),"") ->  | K14: =IF(H14>0,(+'G&K-Funding Analysis'!M14),"") ->  | L14: =IF(H14>0,(+'G&K-Funding Analysis'!N14),"") ->  | M14: =IF(H14>0,IF('D-Checklist'!I14=1,0,+'B-Inputs'!$B$32),"") ->  | N14: =IF(H14>0,(+'G&K-Funding Analysis'!O14),"") -> 
A15: 5 | B15: =+'Assignment Worksheet'!M15 -> 0 | C15: =+'Assignment Worksheet'!N15 -> 0 | D15: =+'Assignment Worksheet'!J15 -> 0 | E15: =+'Assignment Worksheet'!K15 -> 0 | F15: =+'Assignment Worksheet'!L15 -> 0 | G15: =IF(D15>0,(+'G&K-Funding Analysis'!J15),"") ->  | H15: =IF(D15>0,(+'G&K-Funding Analysis'!I15),0) -> 0 | I15: =IF(H15>0,(+'G&K-Funding Analysis'!K15),"") ->  | J15: =IF(H15>0,(+'G&K-Funding Analysis'!L15),"") ->  | K15: =IF(H15>0,(+'G&K-Funding Analysis'!M15),"") ->  | L15: =IF(H15>0,(+'G&K-Funding Analysis'!N15),"") ->  | M15: =IF(H15>0,IF('D-Checklist'!I15=1,0,+'B-Inputs'!$B$32),"") ->  | N15: =IF(H15>0,(+'G&K-Funding Analysis'!O15),"") -> 
A16: 6 | B16: =+'Assignment Worksheet'!M16 -> 0 | C16: =+'Assignment Worksheet'!N16 -> 0 | D16: =+'Assignment Worksheet'!J16 -> 0 | E16: =+'Assignment Worksheet'!K16 -> 0 | F16: =+'Assignment Worksheet'!L16 -> 0 | G16: =IF(D16>0,(+'G&K-Funding Analysis'!J16),"") ->  | H16: =IF(D16>0,(+'G&K-Funding Analysis'!I16),0) -> 0 | I16: =IF(H16>0,(+'G&K-Funding Analysis'!K16),"") ->  | J16: =IF(H16>0,(+'G&K-Funding Analysis'!L16),"") ->  | K16: =IF(H16>0,(+'G&K-Funding Analysis'!M16),"") ->  | L16: =IF(H16>0,(+'G&K-Funding Analysis'!N16),"") ->  | M16: =IF(H16>0,IF('D-Checklist'!I16=1,0,+'B-Inputs'!$B$32),"") ->  | N16: =IF(H16>0,(+'G&K-Funding Analysis'!O16),"") -> 
A17: 7 | B17: =+'Assignment Worksheet'!M17 -> 0 | C17: =+'Assignment Worksheet'!N17 -> 0 | D17: =+'Assignment Worksheet'!J17 -> 0 | E17: =+'Assignment Worksheet'!K17 -> 0 | F17: =+'Assignment Worksheet'!L17 -> 0 | G17: =IF(D17>0,(+'G&K-Funding Analysis'!J17),"") ->  | H17: =IF(D17>0,(+'G&K-Funding Analysis'!I17),0) -> 0 | I17: =IF(H17>0,(+'G&K-Funding Analysis'!K17),"") ->  | J17: =IF(H17>0,(+'G&K-Funding Analysis'!L17),"") ->  | K17: =IF(H17>0,(+'G&K-Funding Analysis'!M17),"") ->  | L17: =IF(H17>0,(+'G&K-Funding Analysis'!N17),"") ->  | M17: =IF(H17>0,IF('D-Checklist'!I17=1,0,+'B-Inputs'!$B$32),"") ->  | N17: =IF(H17>0,(+'G&K-Funding Analysis'!O17),"") -> 
A18: 8 | B18: =+'Assignment Worksheet'!M18 -> 0 | C18: =+'Assignment Worksheet'!N18 -> 0 | D18: =+'Assignment Worksheet'!J18 -> 0 | E18: =+'Assignment Worksheet'!K18 -> 0 | F18: =+'Assignment Worksheet'!L18 -> 0 | G18: =IF(D18>0,(+'G&K-Funding Analysis'!J18),"") ->  | H18: =IF(D18>0,(+'G&K-Funding Analysis'!I18),0) -> 0 | I18: =IF(H18>0,(+'G&K-Funding Analysis'!K18),"") ->  | J18: =IF(H18>0,(+'G&K-Funding Analysis'!L18),"") ->  | K18: =IF(H18>0,(+'G&K-Funding Analysis'!M18),"") ->  | L18: =IF(H18>0,(+'G&K-Funding Analysis'!N18),"") ->  | M18: =IF(H18>0,IF('D-Checklist'!I18=1,0,+'B-Inputs'!$B$32),"") ->  | N18: =IF(H18>0,(+'G&K-Funding Analysis'!O18),"") -> 
A19: 9 | B19: =+'Assignment Worksheet'!M19 -> 0 | C19: =+'Assignment Worksheet'!N19 -> 0 | D19: =+'Assignment Worksheet'!J19 -> 0 | E19: =+'Assignment Worksheet'!K19 -> 0 | F19: =+'Assignment Worksheet'!L19 -> 0 | G19: =IF(D19>0,(+'G&K-Funding Analysis'!J19),"") ->  | H19: =IF(D19>0,(+'G&K-Funding Analysis'!I19),0) -> 0 | I19: =IF(H19>0,(+'G&K-Funding Analysis'!K19),"") ->  | J19: =IF(H19>0,(+'G&K-Funding Analysis'!L19),"") ->  | K19: =IF(H19>0,(+'G&K-Funding Analysis'!M19),"") ->  | L19: =IF(H19>0,(+'G&K-Funding Analysis'!N19),"") ->  | M19: =IF(H19>0,IF('D-Checklist'!I19=1,0,+'B-Inputs'!$B$32),"") ->  | N19: =IF(H19>0,(+'G&K-Funding Analysis'!O19),"") -> 
A20: 10 | B20: =+'Assignment Worksheet'!M20 -> 0 | C20: =+'Assignment Worksheet'!N20 -> 0 | D20: =+'Assignment Worksheet'!J20 -> 0 | E20: =+'Assignment Worksheet'!K20 -> 0 | F20: =+'Assignment Worksheet'!L20 -> 0 | G20: =IF(D20>0,(+'G&K-Funding Analysis'!J20),"") ->  | H20: =IF(D20>0,(+'G&K-Funding Analysis'!I20),0) -> 0 | I20: =IF(H20>0,(+'G&K-Funding Analysis'!K20),"") ->  | J20: =IF(H20>0,(+'G&K-Funding Analysis'!L20),"") ->  | K20: =IF(H20>0,(+'G&K-Funding Analysis'!M20),"") ->  | L20: =IF(H20>0,(+'G&K-Funding Analysis'!N20),"") ->  | M20: =IF(H20>0,IF('D-Checklist'!I20=1,0,+'B-Inputs'!$B$32),"") ->  | N20: =IF(H20>0,(+'G&K-Funding Analysis'!O20),"") -> 
A21: 11 | B21: =+'Assignment Worksheet'!M21 -> 0 | C21: =+'Assignment Worksheet'!N21 -> 0 | D21: =+'Assignment Worksheet'!J21 -> 0 | E21: =+'Assignment Worksheet'!K21 -> 0 | F21: =+'Assignment Worksheet'!L21 -> 0 | G21: =IF(D21>0,(+'G&K-Funding Analysis'!J21),"") ->  | H21: =IF(D21>0,(+'G&K-Funding Analysis'!I21),0) -> 0 | I21: =IF(H21>0,(+'G&K-Funding Analysis'!K21),"") ->  | J21: =IF(H21>0,(+'G&K-Funding Analysis'!L21),"") ->  | K21: =IF(H21>0,(+'G&K-Funding Analysis'!M21),"") ->  | L21: =IF(H21>0,(+'G&K-Funding Analysis'!N21),"") ->  | M21: =IF(H21>0,IF('D-Checklist'!I21=1,0,+'B-Inputs'!$B$32),"") ->  | N21: =IF(H21>0,(+'G&K-Funding Analysis'!O21),"") -> 
A22: 12 | B22: =+'Assignment Worksheet'!M22 -> 0 | C22: =+'Assignment Worksheet'!N22 -> 0 | D22: =+'Assignment Worksheet'!J22 -> 0 | E22: =+'Assignment Worksheet'!K22 -> 0 | F22: =+'Assignment Worksheet'!L22 -> 0 | G22: =IF(D22>0,(+'G&K-Funding Analysis'!J22),"") ->  | H22: =IF(D22>0,(+'G&K-Funding Analysis'!I22),0) -> 0 | I22: =IF(H22>0,(+'G&K-Funding Analysis'!K22),"") ->  | J22: =IF(H22>0,(+'G&K-Funding Analysis'!L22),"") ->  | K22: =IF(H22>0,(+'G&K-Funding Analysis'!M22),"") ->  | L22: =IF(H22>0,(+'G&K-Funding Analysis'!N22),"") ->  | M22: =IF(H22>0,IF('D-Checklist'!I22=1,0,+'B-Inputs'!$B$32),"") ->  | N22: =IF(H22>0,(+'G&K-Funding Analysis'!O22),"") -> 
A23: 13 | B23: =+'Assignment Worksheet'!M23 -> 0 | C23: =+'Assignment Worksheet'!N23 -> 0 | D23: =+'Assignment Worksheet'!J23 -> 0 | E23: =+'Assignment Worksheet'!K23 -> 0 | F23: =+'Assignment Worksheet'!L23 -> 0 | G23: =IF(D23>0,(+'G&K-Funding Analysis'!J23),"") ->  | H23: =IF(D23>0,(+'G&K-Funding Analysis'!I23),0) -> 0 | I23: =IF(H23>0,(+'G&K-Funding Analysis'!K23),"") ->  | J23: =IF(H23>0,(+'G&K-Funding Analysis'!L23),"") ->  | K23: =IF(H23>0,(+'G&K-Funding Analysis'!M23),"") ->  | L23: =IF(H23>0,(+'G&K-Funding Analysis'!N23),"") ->  | M23: =IF(H23>0,IF('D-Checklist'!I23=1,0,+'B-Inputs'!$B$32),"") ->  | N23: =IF(H23>0,(+'G&K-Funding Analysis'!O23),"") -> 
A24: 14 | B24: =+'Assignment Worksheet'!M24 -> 0 | C24: =+'Assignment Worksheet'!N24 -> 0 | D24: =+'Assignment Worksheet'!J24 -> 0 | E24: =+'Assignment Worksheet'!K24 -> 0 | F24: =+'Assignment Worksheet'!L24 -> 0 | G24: =IF(D24>0,(+'G&K-Funding Analysis'!J24),"") ->  | H24: =IF(D24>0,(+'G&K-Funding Analysis'!I24),0) -> 0 | I24: =IF(H24>0,(+'G&K-Funding Analysis'!K24),"") ->  | J24: =IF(H24>0,(+'G&K-Funding Analysis'!L24),"") ->  | K24: =IF(H24>0,(+'G&K-Funding Analysis'!M24),"") ->  | L24: =IF(H24>0,(+'G&K-Funding Analysis'!N24),"") ->  | M24: =IF(H24>0,IF('D-Checklist'!I24=1,0,+'B-Inputs'!$B$32),"") ->  | N24: =IF(H24>0,(+'G&K-Funding Analysis'!O24),"") -> 
A25: 15 | B25: =+'Assignment Worksheet'!M25 -> 0 | C25: =+'Assignment Worksheet'!N25 -> 0 | D25: =+'Assignment Worksheet'!J25 -> 0 | E25: =+'Assignment Worksheet'!K25 -> 0 | F25: =+'Assignment Worksheet'!L25 -> 0 | G25: =IF(D25>0,(+'G&K-Funding Analysis'!J25),"") ->  | H25: =IF(D25>0,(+'G&K-Funding Analysis'!I25),0) -> 0 | I25: =IF(H25>0,(+'G&K-Funding Analysis'!K25),"") ->  | J25: =IF(H25>0,(+'G&K-Funding Analysis'!L25),"") ->  | K25: =IF(H25>0,(+'G&K-Funding Analysis'!M25),"") ->  | L25: =IF(H25>0,(+'G&K-Funding Analysis'!N25),"") ->  | M25: =IF(H25>0,IF('D-Checklist'!I25=1,0,+'B-Inputs'!$B$32),"") ->  | N25: =IF(H25>0,(+'G&K-Funding Analysis'!O25),"") -> 
A26: 16 | B26: =+'Assignment Worksheet'!M26 -> 0 | C26: =+'Assignment Worksheet'!N26 -> 0 | D26: =+'Assignment Worksheet'!J26 -> 0 | E26: =+'Assignment Worksheet'!K26 -> 0 | F26: =+'Assignment Worksheet'!L26 -> 0 | G26: =IF(D26>0,(+'G&K-Funding Analysis'!J26),"") ->  | H26: =IF(D26>0,(+'G&K-Funding Analysis'!I26),0) -> 0 | I26: =IF(H26>0,(+'G&K-Funding Analysis'!K26),"") ->  | J26: =IF(H26>0,(+'G&K-Funding Analysis'!L26),"") ->  | K26: =IF(H26>0,(+'G&K-Funding Analysis'!M26),"") ->  | L26: =IF(H26>0,(+'G&K-Funding Analysis'!N26),"") ->  | M26: =IF(H26>0,IF('D-Checklist'!I26=1,0,+'B-Inputs'!$B$32),"") ->  | N26: =IF(H26>0,(+'G&K-Funding Analysis'!O26),"") -> 
A27: 17 | B27: =+'Assignment Worksheet'!M27 -> 0 | C27: =+'Assignment Worksheet'!N27 -> 0 | D27: =+'Assignment Worksheet'!J27 -> 0 | E27: =+'Assignment Worksheet'!K27 -> 0 | F27: =+'Assignment Worksheet'!L27 -> 0 | G27: =IF(D27>0,(+'G&K-Funding Analysis'!J27),"") ->  | H27: =IF(D27>0,(+'G&K-Funding Analysis'!I27),0) -> 0 | I27: =IF(H27>0,(+'G&K-Funding Analysis'!K27),"") ->  | J27: =IF(H27>0,(+'G&K-Funding Analysis'!L27),"") ->  | K27: =IF(H27>0,(+'G&K-Funding Analysis'!M27),"") ->  | L27: =IF(H27>0,(+'G&K-Funding Analysis'!N27),"") ->  | M27: =IF(H27>0,IF('D-Checklist'!I27=1,0,+'B-Inputs'!$B$32),"") ->  | N27: =IF(H27>0,(+'G&K-Funding Analysis'!O27),"") -> 
A28: 18 | B28: =+'Assignment Worksheet'!M28 -> 0 | C28: =+'Assignment Worksheet'!N28 -> 0 | D28: =+'Assignment Worksheet'!J28 -> 0 | E28: =+'Assignment Worksheet'!K28 -> 0 | F28: =+'Assignment Worksheet'!L28 -> 0 | G28: =IF(D28>0,(+'G&K-Funding Analysis'!J28),"") ->  | H28: =IF(D28>0,(+'G&K-Funding Analysis'!I28),0) -> 0 | I28: =IF(H28>0,(+'G&K-Funding Analysis'!K28),"") ->  | J28: =IF(H28>0,(+'G&K-Funding Analysis'!L28),"") ->  | K28: =IF(H28>0,(+'G&K-Funding Analysis'!M28),"") ->  | L28: =IF(H28>0,(+'G&K-Funding Analysis'!N28),"") ->  | M28: =IF(H28>0,IF('D-Checklist'!I28=1,0,+'B-Inputs'!$B$32),"") ->  | N28: =IF(H28>0,(+'G&K-Funding Analysis'!O28),"") -> 
A29: 19 | B29: =+'Assignment Worksheet'!M29 -> 0 | C29: =+'Assignment Worksheet'!N29 -> 0 | D29: =+'Assignment Worksheet'!J29 -> 0 | E29: =+'Assignment Worksheet'!K29 -> 0 | F29: =+'Assignment Worksheet'!L29 -> 0 | G29: =IF(D29>0,(+'G&K-Funding Analysis'!J29),"") ->  | H29: =IF(D29>0,(+'G&K-Funding Analysis'!I29),0) -> 0 | I29: =IF(H29>0,(+'G&K-Funding Analysis'!K29),"") ->  | J29: =IF(H29>0,(+'G&K-Funding Analysis'!L29),"") ->  | K29: =IF(H29>0,(+'G&K-Funding Analysis'!M29),"") ->  | L29: =IF(H29>0,(+'G&K-Funding Analysis'!N29),"") ->  | M29: =IF(H29>0,IF('D-Checklist'!I29=1,0,+'B-Inputs'!$B$32),"") ->  | N29: =IF(H29>0,(+'G&K-Funding Analysis'!O29),"") -> 
A30: 20 | B30: =+'Assignment Worksheet'!M30 -> 0 | C30: =+'Assignment Worksheet'!N30 -> 0 | D30: =+'Assignment Worksheet'!J30 -> 0 | E30: =+'Assignment Worksheet'!K30 -> 0 | F30: =+'Assignment Worksheet'!L30 -> 0 | G30: =IF(D30>0,(+'G&K-Funding Analysis'!J30),"") ->  | H30: =IF(D30>0,(+'G&K-Funding Analysis'!I30),0) -> 0 | I30: =IF(H30>0,(+'G&K-Funding Analysis'!K30),"") ->  | J30: =IF(H30>0,(+'G&K-Funding Analysis'!L30),"") ->  | K30: =IF(H30>0,(+'G&K-Funding Analysis'!M30),"") ->  | L30: =IF(H30>0,(+'G&K-Funding Analysis'!N30),"") ->  | M30: =IF(H30>0,IF('D-Checklist'!I30=1,0,+'B-Inputs'!$B$32),"") ->  | N30: =IF(H30>0,(+'G&K-Funding Analysis'!O30),"") -> 
A31: 21 | B31: =+'Assignment Worksheet'!M31 -> 0 | C31: =+'Assignment Worksheet'!N31 -> 0 | D31: =+'Assignment Worksheet'!J31 -> 0 | E31: =+'Assignment Worksheet'!K31 -> 0 | F31: =+'Assignment Worksheet'!L31 -> 0 | G31: =IF(D31>0,(+'G&K-Funding Analysis'!J31),"") ->  | H31: =IF(D31>0,(+'G&K-Funding Analysis'!I31),0) -> 0 | I31: =IF(H31>0,(+'G&K-Funding Analysis'!K31),"") ->  | J31: =IF(H31>0,(+'G&K-Funding Analysis'!L31),"") ->  | K31: =IF(H31>0,(+'G&K-Funding Analysis'!M31),"") ->  | L31: =IF(H31>0,(+'G&K-Funding Analysis'!N31),"") ->  | M31: =IF(H31>0,IF('D-Checklist'!I31=1,0,+'B-Inputs'!$B$32),"") ->  | N31: =IF(H31>0,(+'G&K-Funding Analysis'!O31),"") -> 
A32: 22 | B32: =+'Assignment Worksheet'!M32 -> 0 | C32: =+'Assignment Worksheet'!N32 -> 0 | D32: =+'Assignment Worksheet'!J32 -> 0 | E32: =+'Assignment Worksheet'!K32 -> 0 | F32: =+'Assignment Worksheet'!L32 -> 0 | G32: =IF(D32>0,(+'G&K-Funding Analysis'!J32),"") ->  | H32: =IF(D32>0,(+'G&K-Funding Analysis'!I32),0) -> 0 | I32: =IF(H32>0,(+'G&K-Funding Analysis'!K32),"") ->  | J32: =IF(H32>0,(+'G&K-Funding Analysis'!L32),"") ->  | K32: =IF(H32>0,(+'G&K-Funding Analysis'!M32),"") ->  | L32: =IF(H32>0,(+'G&K-Funding Analysis'!N32),"") ->  | M32: =IF(H32>0,IF('D-Checklist'!I32=1,0,+'B-Inputs'!$B$32),"") ->  | N32: =IF(H32>0,(+'G&K-Funding Analysis'!O32),"") -> 
A33: 23 | B33: =+'Assignment Worksheet'!M33 -> 0 | C33: =+'Assignment Worksheet'!N33 -> 0 | D33: =+'Assignment Worksheet'!J33 -> 0 | E33: =+'Assignment Worksheet'!K33 -> 0 | F33: =+'Assignment Worksheet'!L33 -> 0 | G33: =IF(D33>0,(+'G&K-Funding Analysis'!J33),"") ->  | H33: =IF(D33>0,(+'G&K-Funding Analysis'!I33),0) -> 0 | I33: =IF(H33>0,(+'G&K-Funding Analysis'!K33),"") ->  | J33: =IF(H33>0,(+'G&K-Funding Analysis'!L33),"") ->  | K33: =IF(H33>0,(+'G&K-Funding Analysis'!M33),"") ->  | L33: =IF(H33>0,(+'G&K-Funding Analysis'!N33),"") ->  | M33: =IF(H33>0,IF('D-Checklist'!I33=1,0,+'B-Inputs'!$B$32),"") ->  | N33: =IF(H33>0,(+'G&K-Funding Analysis'!O33),"") -> 
A34: 24 | B34: =+'Assignment Worksheet'!M34 -> 0 | C34: =+'Assignment Worksheet'!N34 -> 0 | D34: =+'Assignment Worksheet'!J34 -> 0 | E34: =+'Assignment Worksheet'!K34 -> 0 | F34: =+'Assignment Worksheet'!L34 -> 0 | G34: =IF(D34>0,(+'G&K-Funding Analysis'!J34),"") ->  | H34: =IF(D34>0,(+'G&K-Funding Analysis'!I34),0) -> 0 | I34: =IF(H34>0,(+'G&K-Funding Analysis'!K34),"") ->  | J34: =IF(H34>0,(+'G&K-Funding Analysis'!L34),"") ->  | K34: =IF(H34>0,(+'G&K-Funding Analysis'!M34),"") ->  | L34: =IF(H34>0,(+'G&K-Funding Analysis'!N34),"") ->  | M34: =IF(H34>0,IF('D-Checklist'!I34=1,0,+'B-Inputs'!$B$32),"") ->  | N34: =IF(H34>0,(+'G&K-Funding Analysis'!O34),"") -> 
A35: 25 | B35: =+'Assignment Worksheet'!M35 -> 0 | C35: =+'Assignment Worksheet'!N35 -> 0 | D35: =+'Assignment Worksheet'!J35 -> 0 | E35: =+'Assignment Worksheet'!K35 -> 0 | F35: =+'Assignment Worksheet'!L35 -> 0 | G35: =IF(D35>0,(+'G&K-Funding Analysis'!J35),"") ->  | H35: =IF(D35>0,(+'G&K-Funding Analysis'!I35),0) -> 0 | I35: =IF(H35>0,(+'G&K-Funding Analysis'!K35),"") ->  | J35: =IF(H35>0,(+'G&K-Funding Analysis'!L35),"") ->  | K35: =IF(H35>0,(+'G&K-Funding Analysis'!M35),"") ->  | L35: =IF(H35>0,(+'G&K-Funding Analysis'!N35),"") ->  | M35: =IF(H35>0,IF('D-Checklist'!I35=1,0,+'B-Inputs'!$B$32),"") ->  | N35: =IF(H35>0,(+'G&K-Funding Analysis'!O35),"") -> 
D36: Total Purchase Amount: | H36: =SUM(H11:H35) -> 5250 | L36: =SUM(L11:L35) -> 367.5 | M36: =SUM(M11:M35) -> 0

Sheet O - Customer Swaps (hidden)
A1: CUSTOMER CHANGE REPORT
A3: Dealership Name: | D3: =+'Assignment Worksheet'!D3 -> 0 | J3: Batch #: | K3: =+'B-Inputs'!B7 -> 7
C4: Address: | D4: =+'Assignment Worksheet'!D4 -> 0
A5: City: | D5: =+'Assignment Worksheet'!H4 -> 0 | J5: State: | K5: =+'Assignment Worksheet'!D5 -> 0
A6: Phone: | D6: =+'Assignment Worksheet'!D6 -> 0 | J6: Zip: | K6: =+'Assignment Worksheet'!F5 -> 0
A7: Fax: | D7: =+'Assignment Worksheet'!D7 -> 0 | J7: Email: | K7: =+'Assignment Worksheet'!H6 -> 0
A10: Vehicle | E10: Original Customer | G10: 1st Customer Change | I10: 2nd Customer Change | K10: 3rd Customer Change | M10: 4th Customer Change | O10: 5th Customer Change
B11: Car Year | C11: Make | D11: Model | E11: Last Name | F11: Fist name | G11: Last Name | H11: First name | I11: Last Name | J11: First name | K11: Last Name | L11: First name | M11: Last Name | N11: First name | O11: Last Name | P11: First name | Q11: # of Changes | R11: Change Fees
A12: 1 | B12: =+'Assignment Worksheet'!J11 -> 2011 | C12: =+'Assignment Worksheet'!K11 -> 0 | D12: =+'Assignment Worksheet'!L11 -> 0 | E12: =+'Assignment Worksheet'!M11 -> 0 | F12: =+'Assignment Worksheet'!N11 -> 0 | G12: Smith | H12: Paul | Q12: 1 | R12: =IF(Q12>0,(+Q12*'B-Inputs'!$B$31),0) -> 130
A13: 2 | B13: =+'Assignment Worksheet'!J12 -> 0 | C13: =+'Assignment Worksheet'!K12 -> 0 | D13: =+'Assignment Worksheet'!L12 -> 0 | E13: =+'Assignment Worksheet'!M12 -> 0 | F13: =+'Assignment Worksheet'!N12 -> 0 | R13: =IF(Q13>0,(+Q13*'B-Inputs'!$B$31),0) -> 0
A14: 3 | B14: =+'Assignment Worksheet'!J13 -> 0 | C14: =+'Assignment Worksheet'!K13 -> 0 | D14: =+'Assignment Worksheet'!L13 -> 0 | E14: =+'Assignment Worksheet'!M13 -> 0 | F14: =+'Assignment Worksheet'!N13 -> 0 | R14: =IF(Q14>0,(+Q14*'B-Inputs'!$B$31),0) -> 0
A15: 4 | B15: =+'Assignment Worksheet'!J14 -> 0 | C15: =+'Assignment Worksheet'!K14 -> 0 | D15: =+'Assignment Worksheet'!L14 -> 0 | E15: =+'Assignment Worksheet'!M14 -> 0 | F15: =+'Assignment Worksheet'!N14 -> 0 | R15: =IF(Q15>0,(+Q15*'B-Inputs'!$B$31),0) -> 0
A16: 5 | B16: =+'Assignment Worksheet'!J15 -> 0 | C16: =+'Assignment Worksheet'!K15 -> 0 | D16: =+'Assignment Worksheet'!L15 -> 0 | E16: =+'Assignment Worksheet'!M15 -> 0 | F16: =+'Assignment Worksheet'!N15 -> 0 | R16: =IF(Q16>0,(+Q16*'B-Inputs'!$B$31),0) -> 0
A17: 6 | B17: =+'Assignment Worksheet'!J16 -> 0 | C17: =+'Assignment Worksheet'!K16 -> 0 | D17: =+'Assignment Worksheet'!L16 -> 0 | E17: =+'Assignment Worksheet'!M16 -> 0 | F17: =+'Assignment Worksheet'!N16 -> 0 | R17: =IF(Q17>0,(+Q17*'B-Inputs'!$B$31),0) -> 0
A18: 7 | B18: =+'Assignment Worksheet'!J17 -> 0 | C18: =+'Assignment Worksheet'!K17 -> 0 | D18: =+'Assignment Worksheet'!L17 -> 0 | E18: =+'Assignment Worksheet'!M17 -> 0 | F18: =+'Assignment Worksheet'!N17 -> 0 | R18: =IF(Q18>0,(+Q18*'B-Inputs'!$B$31),0) -> 0
A19: 8 | B19: =+'Assignment Worksheet'!J18 -> 0 | C19: =+'Assignment Worksheet'!K18 -> 0 | D19: =+'Assignment Worksheet'!L18 -> 0 | E19: =+'Assignment Worksheet'!M18 -> 0 | F19: =+'Assignment Worksheet'!N18 -> 0 | R19: =IF(Q19>0,(+Q19*'B-Inputs'!$B$31),0) -> 0
A20: 9 | B20: =+'Assignment Worksheet'!J19 -> 0 | C20: =+'Assignment Worksheet'!K19 -> 0 | D20: =+'Assignment Worksheet'!L19 -> 0 | E20: =+'Assignment Worksheet'!M19 -> 0 | F20: =+'Assignment Worksheet'!N19 -> 0 | R20: =IF(Q20>0,(+Q20*'B-Inputs'!$B$31),0) -> 0
A21: 10 | B21: =+'Assignment Worksheet'!J20 -> 0 | C21: =+'Assignment Worksheet'!K20 -> 0 | D21: =+'Assignment Worksheet'!L20 -> 0 | E21: =+'Assignment Worksheet'!M20 -> 0 | F21: =+'Assignment Worksheet'!N20 -> 0 | R21: =IF(Q21>0,(+Q21*'B-Inputs'!$B$31),0) -> 0
A22: 11 | B22: =+'Assignment Worksheet'!J21 -> 0 | C22: =+'Assignment Worksheet'!K21 -> 0 | D22: =+'Assignment Worksheet'!L21 -> 0 | E22: =+'Assignment Worksheet'!M21 -> 0 | F22: =+'Assignment Worksheet'!N21 -> 0 | R22: =IF(Q22>0,(+Q22*'B-Inputs'!$B$31),0) -> 0
A23: 12 | B23: =+'Assignment Worksheet'!J22 -> 0 | C23: =+'Assignment Worksheet'!K22 -> 0 | D23: =+'Assignment Worksheet'!L22 -> 0 | E23: =+'Assignment Worksheet'!M22 -> 0 | F23: =+'Assignment Worksheet'!N22 -> 0 | R23: =IF(Q23>0,(+Q23*'B-Inputs'!$B$31),0) -> 0
A24: 13 | B24: =+'Assignment Worksheet'!J23 -> 0 | C24: =+'Assignment Worksheet'!K23 -> 0 | D24: =+'Assignment Worksheet'!L23 -> 0 | E24: =+'Assignment Worksheet'!M23 -> 0 | F24: =+'Assignment Worksheet'!N23 -> 0 | R24: =IF(Q24>0,(+Q24*'B-Inputs'!$B$31),0) -> 0
A25: 14 | B25: =+'Assignment Worksheet'!J24 -> 0 | C25: =+'Assignment Worksheet'!K24 -> 0 | D25: =+'Assignment Worksheet'!L24 -> 0 | E25: =+'Assignment Worksheet'!M24 -> 0 | F25: =+'Assignment Worksheet'!N24 -> 0 | R25: =IF(Q25>0,(+Q25*'B-Inputs'!$B$31),0) -> 0
A26: 15 | B26: =+'Assignment Worksheet'!J25 -> 0 | C26: =+'Assignment Worksheet'!K25 -> 0 | D26: =+'Assignment Worksheet'!L25 -> 0 | E26: =+'Assignment Worksheet'!M25 -> 0 | F26: =+'Assignment Worksheet'!N25 -> 0 | R26: =IF(Q26>0,(+Q26*'B-Inputs'!$B$31),0) -> 0
A27: 16 | B27: =+'Assignment Worksheet'!J26 -> 0 | C27: =+'Assignment Worksheet'!K26 -> 0 | D27: =+'Assignment Worksheet'!L26 -> 0 | E27: =+'Assignment Worksheet'!M26 -> 0 | F27: =+'Assignment Worksheet'!N26 -> 0 | R27: =IF(Q27>0,(+Q27*'B-Inputs'!$B$31),0) -> 0
A28: 17 | B28: =+'Assignment Worksheet'!J27 -> 0 | C28: =+'Assignment Worksheet'!K27 -> 0 | D28: =+'Assignment Worksheet'!L27 -> 0 | E28: =+'Assignment Worksheet'!M27 -> 0 | F28: =+'Assignment Worksheet'!N27 -> 0 | R28: =IF(Q28>0,(+Q28*'B-Inputs'!$B$31),0) -> 0
A29: 18 | B29: =+'Assignment Worksheet'!J28 -> 0 | C29: =+'Assignment Worksheet'!K28 -> 0 | D29: =+'Assignment Worksheet'!L28 -> 0 | E29: =+'Assignment Worksheet'!M28 -> 0 | F29: =+'Assignment Worksheet'!N28 -> 0 | R29: =IF(Q29>0,(+Q29*'B-Inputs'!$B$31),0) -> 0
A30: 19 | B30: =+'Assignment Worksheet'!J29 -> 0 | C30: =+'Assignment Worksheet'!K29 -> 0 | D30: =+'Assignment Worksheet'!L29 -> 0 | E30: =+'Assignment Worksheet'!M29 -> 0 | F30: =+'Assignment Worksheet'!N29 -> 0 | R30: =IF(Q30>0,(+Q30*'B-Inputs'!$B$31),0) -> 0
A31: 20 | B31: =+'Assignment Worksheet'!J30 -> 0 | C31: =+'Assignment Worksheet'!K30 -> 0 | D31: =+'Assignment Worksheet'!L30 -> 0 | E31: =+'Assignment Worksheet'!M30 -> 0 | F31: =+'Assignment Worksheet'!N30 -> 0 | R31: =IF(Q31>0,(+Q31*'B-Inputs'!$B$31),0) -> 0
A32: 21 | B32: =+'Assignment Worksheet'!J31 -> 0 | C32: =+'Assignment Worksheet'!K31 -> 0 | D32: =+'Assignment Worksheet'!L31 -> 0 | E32: =+'Assignment Worksheet'!M31 -> 0 | F32: =+'Assignment Worksheet'!N31 -> 0 | R32: =IF(Q32>0,(+Q32*'B-Inputs'!$B$31),0) -> 0
A33: 22 | B33: =+'Assignment Worksheet'!J32 -> 0 | C33: =+'Assignment Worksheet'!K32 -> 0 | D33: =+'Assignment Worksheet'!L32 -> 0 | E33: =+'Assignment Worksheet'!M32 -> 0 | F33: =+'Assignment Worksheet'!N32 -> 0 | R33: =IF(Q33>0,(+Q33*'B-Inputs'!$B$31),0) -> 0
A34: 23 | B34: =+'Assignment Worksheet'!J33 -> 0 | C34: =+'Assignment Worksheet'!K33 -> 0 | D34: =+'Assignment Worksheet'!L33 -> 0 | E34: =+'Assignment Worksheet'!M33 -> 0 | F34: =+'Assignment Worksheet'!N33 -> 0 | R34: =IF(Q34>0,(+Q34*'B-Inputs'!$B$31),0) -> 0
A35: 24 | B35: =+'Assignment Worksheet'!J34 -> 0 | C35: =+'Assignment Worksheet'!K34 -> 0 | D35: =+'Assignment Worksheet'!L34 -> 0 | E35: =+'Assignment Worksheet'!M34 -> 0 | F35: =+'Assignment Worksheet'!N34 -> 0 | R35: =IF(Q35>0,(+Q35*'B-Inputs'!$B$31),0) -> 0
A36: 25 | B36: =+'Assignment Worksheet'!J35 -> 0 | C36: =+'Assignment Worksheet'!K35 -> 0 | D36: =+'Assignment Worksheet'!L35 -> 0 | E36: =+'Assignment Worksheet'!M35 -> 0 | F36: =+'Assignment Worksheet'!N35 -> 0 | R36: =IF(Q36>0,(+Q36*'B-Inputs'!$B$31),0) -> 0
K37: =SUM(K12:K36) -> 0 | O37: =SUM(O12:O36) -> 0 | P37: =SUM(P12:P36) -> 0 | R37: =SUM(R12:R36) -> 130
F39: Total Customer Change Fees: | K39: =+R37 -> 130
F41: TOTAL TO BE DEDUCTED VIA ACH: | K41: =SUM(K39:K40) -> 130

Sheet N - Payment Histories (hidden)
A1: Payment Histories Worksheet
A3: Dealership Name: | D3: =+'Assignment Worksheet'!D3 -> 0 | I3: Batch #: | J3: =+'B-Inputs'!B7 -> 7
C4: Address: | D4: =+'Assignment Worksheet'!D4 -> 0 | I4: City: | J4: =+'Assignment Worksheet'!H4 -> 0
A5: State: | D5: =+'Assignment Worksheet'!D5 -> 0 | G5: First payment Date: | J5: =+'B-Inputs'!B40 -> 2018-05-18
A6: Phone: | D6: =+'Assignment Worksheet'!D6 -> 0 | G6: Payment Frequency: | J6: =+'B-Inputs'!$B$41 -> 7
A7: Fax: | D7: =+'Assignment Worksheet'!D7 -> 0
G9: 1 | H9: 2 | I9: 3 | J9: 4 | K9: 5 | L9: 6 | M9: 7 | N9: 8 | O9: 9 | P9: 10 | Q9: 11 | R9: 12 | S9: 13 | T9: 14 | U9: 15 | V9: 16 | W9: 17 | X9: 18 | Y9: 19 | Z9: 20 | AA9: 21 | AB9: 22 | AC9: 23 | AD9: 24 | AE9: 25 | AF9: 26 | AG9: 27 | AH9: 28 | AI9: 29 | AJ9: 30 | AK9: 31 | AL9: 32 | AM9: 33 | AN9: 34 | AO9: 35 | AP9: 36 | AQ9: 37 | AR9: 38 | AS9: 39 | AT9: 40 | AU9: 41 | AV9: 42 | AW9: 43 | AX9: 44 | AY9: 45 | AZ9: 46 | BA9: 47 | BB9: 48 | BC9: 49 | BD9: 50 | BE9: 51 | BF9: 52 | BG9: 53 | BH9: 54 | BI9: 55 | BJ9: 56 | BK9: 57 | BL9: 58 | BM9: 59 | BN9: 60 | BO9: 61 | BP9: 62 | BQ9: 63 | BR9: 64 | BS9: 65 | BT9: 66 | BU9: 67 | BV9: 68 | BW9: 69 | BX9: 70 | BY9: 71 | BZ9: 72 | CA9: 73 | CB9: 74 | CC9: 75 | CD9: 76 | CE9: 77 | CF9: 78 | CG9: 79 | CH9: 80 | CI9: 81 | CJ9: 82 | CK9: 83 | CL9: 84 | CM9: 85 | CN9: 86 | CO9: 87 | CP9: 88 | CQ9: 89 | CR9: 90 | CS9: 91 | CT9: 92 | CU9: 93 | CV9: 94 | CW9: 95 | CX9: 96 | CY9: 97 | CZ9: 98 | DA9: 99 | DB9: 100 | DC9: 101 | DD9: 102 | DE9: 103 | DF9: 104 | DG9: 105 | DH9: 106 | DI9: 107 | DJ9: 108 | DK9: 109 | DL9: 110 | DM9: 111 | DN9: 112 | DO9: 113 | DP9: 114 | DQ9: 115 | DR9: 116 | DS9: 117 | DT9: 118 | DU9: 119 | DV9: 120 | DW9: 121 | DX9: 122 | DY9: 123 | DZ9: 124 | EA9: 125 | EB9: 126 | EC9: 127 | ED9: 128 | EE9: 129 | EF9: 130
B10: Last Name | C10: First Name | D10: Car Year | E10: Make | F10: Model | G10: =+'B-Inputs'!$B$40 -> 2018-05-18 | H10: =+G10+'B-Inputs'!$B$41 -> 2018-05-25 | I10: =+H10+'B-Inputs'!$B$41 -> 2018-06-01 | J10: =+I10+'B-Inputs'!$B$41 -> 2018-06-08 | K10: =+J10+'B-Inputs'!$B$41 -> 2018-06-15 | L10: =+K10+'B-Inputs'!$B$41 -> 2018-06-22 | M10: =+L10+'B-Inputs'!$B$41 -> 2018-06-29 | N10: =+M10+'B-Inputs'!$B$41 -> 2018-07-06 | O10: =+N10+'B-Inputs'!$B$41 -> 2018-07-13 | P10: =+O10+'B-Inputs'!$B$41 -> 2018-07-20 | Q10: =+P10+'B-Inputs'!$B$41 -> 2018-07-27 | R10: =+Q10+'B-Inputs'!$B$41 -> 2018-08-03 | S10: =+R10+'B-Inputs'!$B$41 -> 2018-08-10 | T10: =+S10+'B-Inputs'!$B$41 -> 2018-08-17 | U10: =+T10+'B-Inputs'!$B$41 -> 2018-08-24 | V10: =+U10+'B-Inputs'!$B$41 -> 2018-08-31 | W10: =+V10+'B-Inputs'!$B$41 -> 2018-09-07 | X10: =+W10+'B-Inputs'!$B$41 -> 2018-09-14 | Y10: =+X10+'B-Inputs'!$B$41 -> 2018-09-21 | Z10: =+Y10+'B-Inputs'!$B$41 -> 2018-09-28 | AA10: =+Z10+'B-Inputs'!$B$41 -> 2018-10-05 | AB10: =+AA10+'B-Inputs'!$B$41 -> 2018-10-12 | AC10: =+AB10+'B-Inputs'!$B$41 -> 2018-10-19 | AD10: =+AC10+'B-Inputs'!$B$41 -> 2018-10-26 | AE10: =+AD10+'B-Inputs'!$B$41 -> 2018-11-02 | AF10: =+AE10+'B-Inputs'!$B$41 -> 2018-11-09 | AG10: =+AF10+'B-Inputs'!$B$41 -> 2018-11-16 | AH10: =+AG10+'B-Inputs'!$B$41 -> 2018-11-23 | AI10: =+AH10+'B-Inputs'!$B$41 -> 2018-11-30 | AJ10: =+AI10+'B-Inputs'!$B$41 -> 2018-12-07 | AK10: =+AJ10+'B-Inputs'!$B$41 -> 2018-12-14 | AL10: =+AK10+'B-Inputs'!$B$41 -> 2018-12-21 | AM10: =+AL10+'B-Inputs'!$B$41 -> 2018-12-28 | AN10: =+AM10+'B-Inputs'!$B$41 -> 2019-01-04 | AO10: =+AN10+'B-Inputs'!$B$41 -> 2019-01-11 | AP10: =+AO10+'B-Inputs'!$B$41 -> 2019-01-18 | AQ10: =+AP10+'B-Inputs'!$B$41 -> 2019-01-25 | AR10: =+AQ10+'B-Inputs'!$B$41 -> 2019-02-01 | AS10: =+AR10+'B-Inputs'!$B$41 -> 2019-02-08 | AT10: =+AS10+'B-Inputs'!$B$41 -> 2019-02-15 | AU10: =+AT10+'B-Inputs'!$B$41 -> 2019-02-22 | AV10: =+AU10+'B-Inputs'!$B$41 -> 2019-03-01 | AW10: =+AV10+'B-Inputs'!$B$41 -> 2019-03-08 | AX10: =+AW10+'B-Inputs'!$B$41 -> 2019-03-15 | AY10: =+AX10+'B-Inputs'!$B$41 -> 2019-03-22 | AZ10: =+AY10+'B-Inputs'!$B$41 -> 2019-03-29 | BA10: =+AZ10+'B-Inputs'!$B$41 -> 2019-04-05 | BB10: =+BA10+'B-Inputs'!$B$41 -> 2019-04-12 | BC10: =+BB10+'B-Inputs'!$B$41 -> 2019-04-19 | BD10: =+BC10+'B-Inputs'!$B$41 -> 2019-04-26 | BE10: =+BD10+'B-Inputs'!$B$41 -> 2019-05-03 | BF10: =+BE10+'B-Inputs'!$B$41 -> 2019-05-10 | BG10: =+BF10+'B-Inputs'!$B$41 -> 2019-05-17 | BH10: =+BG10+'B-Inputs'!$B$41 -> 2019-05-24 | BI10: =+BH10+'B-Inputs'!$B$41 -> 2019-05-31 | BJ10: =+BI10+'B-Inputs'!$B$41 -> 2019-06-07 | BK10: =+BJ10+'B-Inputs'!$B$41 -> 2019-06-14 | BL10: =+BK10+'B-Inputs'!$B$41 -> 2019-06-21 | BM10: =+BL10+'B-Inputs'!$B$41 -> 2019-06-28 | BN10: =+BM10+'B-Inputs'!$B$41 -> 2019-07-05 | BO10: =+BN10+'B-Inputs'!$B$41 -> 2019-07-12 | BP10: =+BO10+'B-Inputs'!$B$41 -> 2019-07-19 | BQ10: =+BP10+'B-Inputs'!$B$41 -> 2019-07-26 | BR10: =+BQ10+'B-Inputs'!$B$41 -> 2019-08-02 | BS10: =+BR10+'B-Inputs'!$B$41 -> 2019-08-09 | BT10: =+BS10+'B-Inputs'!$B$41 -> 2019-08-16 | BU10: =+BT10+'B-Inputs'!$B$41 -> 2019-08-23 | BV10: =+BU10+'B-Inputs'!$B$41 -> 2019-08-30 | BW10: =+BV10+'B-Inputs'!$B$41 -> 2019-09-06 | BX10: =+BW10+'B-Inputs'!$B$41 -> 2019-09-13 | BY10: =+BX10+'B-Inputs'!$B$41 -> 2019-09-20 | BZ10: =+BY10+'B-Inputs'!$B$41 -> 2019-09-27 | CA10: =+BZ10+'B-Inputs'!$B$41 -> 2019-10-04 | CB10: =+CA10+'B-Inputs'!$B$41 -> 2019-10-11 | CC10: =+CB10+'B-Inputs'!$B$41 -> 2019-10-18 | CD10: =+CC10+'B-Inputs'!$B$41 -> 2019-10-25 | CE10: =+CD10+'B-Inputs'!$B$41 -> 2019-11-01 | CF10: =+CE10+'B-Inputs'!$B$41 -> 2019-11-08 | CG10: =+CF10+'B-Inputs'!$B$41 -> 2019-11-15 | CH10: =+CG10+'B-Inputs'!$B$41 -> 2019-11-22 | CI10: =+CH10+'B-Inputs'!$B$41 -> 2019-11-29 | CJ10: =+CI10+'B-Inputs'!$B$41 -> 2019-12-06 | CK10: =+CJ10+'B-Inputs'!$B$41 -> 2019-12-13 | CL10: =+CK10+'B-Inputs'!$B$41 -> 2019-12-20 | CM10: =+CL10+'B-Inputs'!$B$41 -> 2019-12-27 | CN10: =+CM10+'B-Inputs'!$B$41 -> 2020-01-03 | CO10: =+CN10+'B-Inputs'!$B$41 -> 2020-01-10 | CP10: =+CO10+'B-Inputs'!$B$41 -> 2020-01-17 | CQ10: =+CP10+'B-Inputs'!$B$41 -> 2020-01-24 | CR10: =+CQ10+'B-Inputs'!$B$41 -> 2020-01-31 | CS10: =+CR10+'B-Inputs'!$B$41 -> 2020-02-07 | CT10: =+CS10+'B-Inputs'!$B$41 -> 2020-02-14 | CU10: =+CT10+'B-Inputs'!$B$41 -> 2020-02-21 | CV10: =+CU10+'B-Inputs'!$B$41 -> 2020-02-28 | CW10: =+CV10+'B-Inputs'!$B$41 -> 2020-03-06 | CX10: =+CW10+'B-Inputs'!$B$41 -> 2020-03-13 | CY10: =+CX10+'B-Inputs'!$B$41 -> 2020-03-20 | CZ10: =+CY10+'B-Inputs'!$B$41 -> 2020-03-27 | DA10: =+CZ10+'B-Inputs'!$B$41 -> 2020-04-03 | DB10: =+DA10+'B-Inputs'!$B$41 -> 2020-04-10 | DC10: =+DB10+'B-Inputs'!$B$41 -> 2020-04-17 | DD10: =+DC10+'B-Inputs'!$B$41 -> 2020-04-24 | DE10: =+DD10+'B-Inputs'!$B$41 -> 2020-05-01 | DF10: =+DE10+'B-Inputs'!$B$41 -> 2020-05-08 | DG10: =+DF10+'B-Inputs'!$B$41 -> 2020-05-15 | DH10: =+DG10+'B-Inputs'!$B$41 -> 2020-05-22 | DI10: =+DH10+'B-Inputs'!$B$41 -> 2020-05-29 | DJ10: =+DI10+'B-Inputs'!$B$41 -> 2020-06-05 | DK10: =+DJ10+'B-Inputs'!$B$41 -> 2020-06-12 | DL10: =+DK10+'B-Inputs'!$B$41 -> 2020-06-19 | DM10: =+DL10+'B-Inputs'!$B$41 -> 2020-06-26 | DN10: =+DM10+'B-Inputs'!$B$41 -> 2020-07-03 | DO10: =+DN10+'B-Inputs'!$B$41 -> 2020-07-10 | DP10: =+DO10+'B-Inputs'!$B$41 -> 2020-07-17 | DQ10: =+DP10+'B-Inputs'!$B$41 -> 2020-07-24 | DR10: =+DQ10+'B-Inputs'!$B$41 -> 2020-07-31 | DS10: =+DR10+'B-Inputs'!$B$41 -> 2020-08-07 | DT10: =+DS10+'B-Inputs'!$B$41 -> 2020-08-14 | DU10: =+DT10+'B-Inputs'!$B$41 -> 2020-08-21 | DV10: =+DU10+'B-Inputs'!$B$41 -> 2020-08-28 | DW10: =+DV10+'B-Inputs'!$B$41 -> 2020-09-04 | DX10: =+DW10+'B-Inputs'!$B$41 -> 2020-09-11 | DY10: =+DX10+'B-Inputs'!$B$41 -> 2020-09-18 | DZ10: =+DY10+'B-Inputs'!$B$41 -> 2020-09-25 | EA10: =+DZ10+'B-Inputs'!$B$41 -> 2020-10-02 | EB10: =+EA10+'B-Inputs'!$B$41 -> 2020-10-09 | EC10: =+EB10+'B-Inputs'!$B$41 -> 2020-10-16 | ED10: =+EC10+'B-Inputs'!$B$41 -> 2020-10-23 | EE10: =+ED10+'B-Inputs'!$B$41 -> 2020-10-30 | EF10: =+EE10+'B-Inputs'!$B$41 -> 2020-11-06
A11: 1 | B11: =+'Assignment Worksheet'!M11 -> 0 | C11: =+'Assignment Worksheet'!N11 -> 0 | D11: =+'Assignment Worksheet'!J11 -> 2011 | E11: =+'Assignment Worksheet'!K11 -> 0 | F11: =+'Assignment Worksheet'!L11 -> 00:00:00
A12: 2 | B12: =+'Assignment Worksheet'!M12 -> 0 | C12: =+'Assignment Worksheet'!N12 -> 0 | D12: =+'Assignment Worksheet'!J12 -> 0 | E12: =+'Assignment Worksheet'!K12 -> 0 | F12: =+'Assignment Worksheet'!L12 -> 00:00:00
A13: 3 | B13: =+'Assignment Worksheet'!M13 -> 0 | C13: =+'Assignment Worksheet'!N13 -> 0 | D13: =+'Assignment Worksheet'!J13 -> 0 | E13: =+'Assignment Worksheet'!K13 -> 0 | F13: =+'Assignment Worksheet'!L13 -> 00:00:00
A14: 4 | B14: =+'Assignment Worksheet'!M14 -> 0 | C14: =+'Assignment Worksheet'!N14 -> 0 | D14: =+'Assignment Worksheet'!J14 -> 0 | E14: =+'Assignment Worksheet'!K14 -> 0 | F14: =+'Assignment Worksheet'!L14 -> 00:00:00
A15: 5 | B15: =+'Assignment Worksheet'!M15 -> 0 | C15: =+'Assignment Worksheet'!N15 -> 0 | D15: =+'Assignment Worksheet'!J15 -> 0 | E15: =+'Assignment Worksheet'!K15 -> 0 | F15: =+'Assignment Worksheet'!L15 -> 00:00:00
A16: 6 | B16: =+'Assignment Worksheet'!M16 -> 0 | C16: =+'Assignment Worksheet'!N16 -> 0 | D16: =+'Assignment Worksheet'!J16 -> 0 | E16: =+'Assignment Worksheet'!K16 -> 0 | F16: =+'Assignment Worksheet'!L16 -> 00:00:00
A17: 7 | B17: =+'Assignment Worksheet'!M17 -> 0 | C17: =+'Assignment Worksheet'!N17 -> 0 | D17: =+'Assignment Worksheet'!J17 -> 0 | E17: =+'Assignment Worksheet'!K17 -> 0 | F17: =+'Assignment Worksheet'!L17 -> 00:00:00
A18: 8 | B18: =+'Assignment Worksheet'!M18 -> 0 | C18: =+'Assignment Worksheet'!N18 -> 0 | D18: =+'Assignment Worksheet'!J18 -> 0 | E18: =+'Assignment Worksheet'!K18 -> 0 | F18: =+'Assignment Worksheet'!L18 -> 00:00:00
A19: 9 | B19: =+'Assignment Worksheet'!M19 -> 0 | C19: =+'Assignment Worksheet'!N19 -> 0 | D19: =+'Assignment Worksheet'!J19 -> 0 | E19: =+'Assignment Worksheet'!K19 -> 0 | F19: =+'Assignment Worksheet'!L19 -> 00:00:00
A20: 10 | B20: =+'Assignment Worksheet'!M20 -> 0 | C20: =+'Assignment Worksheet'!N20 -> 0 | D20: =+'Assignment Worksheet'!J20 -> 0 | E20: =+'Assignment Worksheet'!K20 -> 0 | F20: =+'Assignment Worksheet'!L20 -> 00:00:00
A21: 11 | B21: =+'Assignment Worksheet'!M21 -> 0 | C21: =+'Assignment Worksheet'!N21 -> 0 | D21: =+'Assignment Worksheet'!J21 -> 0 | E21: =+'Assignment Worksheet'!K21 -> 0 | F21: =+'Assignment Worksheet'!L21 -> 00:00:00
A22: 12 | B22: =+'Assignment Worksheet'!M22 -> 0 | C22: =+'Assignment Worksheet'!N22 -> 0 | D22: =+'Assignment Worksheet'!J22 -> 0 | E22: =+'Assignment Worksheet'!K22 -> 0 | F22: =+'Assignment Worksheet'!L22 -> 00:00:00
A23: 13 | B23: =+'Assignment Worksheet'!M23 -> 0 | C23: =+'Assignment Worksheet'!N23 -> 0 | D23: =+'Assignment Worksheet'!J23 -> 0 | E23: =+'Assignment Worksheet'!K23 -> 0 | F23: =+'Assignment Worksheet'!L23 -> 00:00:00
A24: 14 | B24: =+'Assignment Worksheet'!M24 -> 0 | C24: =+'Assignment Worksheet'!N24 -> 0 | D24: =+'Assignment Worksheet'!J24 -> 0 | E24: =+'Assignment Worksheet'!K24 -> 0 | F24: =+'Assignment Worksheet'!L24 -> 00:00:00
A25: 15 | B25: =+'Assignment Worksheet'!M25 -> 0 | C25: =+'Assignment Worksheet'!N25 -> 0 | D25: =+'Assignment Worksheet'!J25 -> 0 | E25: =+'Assignment Worksheet'!K25 -> 0 | F25: =+'Assignment Worksheet'!L25 -> 00:00:00
A26: 16 | B26: =+'Assignment Worksheet'!M26 -> 0 | C26: =+'Assignment Worksheet'!N26 -> 0 | D26: =+'Assignment Worksheet'!J26 -> 0 | E26: =+'Assignment Worksheet'!K26 -> 0 | F26: =+'Assignment Worksheet'!L26 -> 00:00:00
A27: 17 | B27: =+'Assignment Worksheet'!M27 -> 0 | C27: =+'Assignment Worksheet'!N27 -> 0 | D27: =+'Assignment Worksheet'!J27 -> 0 | E27: =+'Assignment Worksheet'!K27 -> 0 | F27: =+'Assignment Worksheet'!L27 -> 00:00:00
A28: 18 | B28: =+'Assignment Worksheet'!M28 -> 0 | C28: =+'Assignment Worksheet'!N28 -> 0 | D28: =+'Assignment Worksheet'!J28 -> 0 | E28: =+'Assignment Worksheet'!K28 -> 0 | F28: =+'Assignment Worksheet'!L28 -> 00:00:00
A29: 19 | B29: =+'Assignment Worksheet'!M29 -> 0 | C29: =+'Assignment Worksheet'!N29 -> 0 | D29: =+'Assignment Worksheet'!J29 -> 0 | E29: =+'Assignment Worksheet'!K29 -> 0 | F29: =+'Assignment Worksheet'!L29 -> 00:00:00
A30: 20 | B30: =+'Assignment Worksheet'!M30 -> 0 | C30: =+'Assignment Worksheet'!N30 -> 0 | D30: =+'Assignment Worksheet'!J30 -> 0 | E30: =+'Assignment Worksheet'!K30 -> 0 | F30: =+'Assignment Worksheet'!L30 -> 00:00:00
A31: 21 | B31: =+'Assignment Worksheet'!M31 -> 0 | C31: =+'Assignment Worksheet'!N31 -> 0 | D31: =+'Assignment Worksheet'!J31 -> 0 | E31: =+'Assignment Worksheet'!K31 -> 0 | F31: =+'Assignment Worksheet'!L31 -> 00:00:00
A32: 22 | B32: =+'Assignment Worksheet'!M32 -> 0 | C32: =+'Assignment Worksheet'!N32 -> 0 | D32: =+'Assignment Worksheet'!J32 -> 0 | E32: =+'Assignment Worksheet'!K32 -> 0 | F32: =+'Assignment Worksheet'!L32 -> 00:00:00
A33: 23 | B33: =+'Assignment Worksheet'!M33 -> 0 | C33: =+'Assignment Worksheet'!N33 -> 0 | D33: =+'Assignment Worksheet'!J33 -> 0 | E33: =+'Assignment Worksheet'!K33 -> 0 | F33: =+'Assignment Worksheet'!L33 -> 00:00:00
A34: 24 | B34: =+'Assignment Worksheet'!M34 -> 0 | C34: =+'Assignment Worksheet'!N34 -> 0 | D34: =+'Assignment Worksheet'!J34 -> 0 | E34: =+'Assignment Worksheet'!K34 -> 0 | F34: =+'Assignment Worksheet'!L34 -> 00:00:00
A35: 25 | B35: =+'Assignment Worksheet'!M35 -> 0 | C35: =+'Assignment Worksheet'!N35 -> 0 | D35: =+'Assignment Worksheet'!J35 -> 0 | E35: =+'Assignment Worksheet'!K35 -> 0 | F35: =+'Assignment Worksheet'!L35 -> 00:00:00

Sheet SDA Instructions (hidden)
A1: Instructions for RCR Program
A2: SDA Instructions:
A3: Steps | B3: Instructions | C3: Responsibility | D3: Notes
A4: 1 | B4: Salesman and SDA team will jointly decide when it is time to send the PHASE 1 materials for the RCR Program. | C4: Sales Team and Margaret | D4: Send Cover Sheet, Program Details
A5: 2 | B5: Follow normal SDA Dealer application procedures for any NEW dealers. | C5: Sales Team and Margaret | D5: Use Same Dealer Application Process
A6: 3 | B6: If Dealer has never completed an RCR batch previously, they must complete a new Dealer Agreement and associated Addendum. Documents to be sent to dealer (via email) should include: - RCR Cover Letter - RCR Dealer Agreement - Addendum A Updatede with Negotiated Terms from Loan Committee - Assignment Agreement - Irrevocable Power of Attorney - Guaranty and Indemnity Agreement - Purchase Affirmation with Updated Batch Number - Certificate of Authority - DMS and GPS Contract Addendum - Title Escrow Agreement | C6: Margaret, Anddrea, or Kevin | D6: Templates are located in RCR Folder in Shared Drive
A7: 4 | B7: If Dealer is a returning RCR customer, only send the RCR Electronic Worksheet as described below. | C7: SDA Team | D7: Send "RCR Assignment Worksheet: from RCR Folder on Shared Drive.
A8: 5 | B8: When appropriate, send the RCR Electronic Worksheet and ask Dealer to complete the Assignment Worksheet Tab. Verify that all other tabs are hidden. | C8: SDA Team | D8: Send "RCR Assignment Worksheet: from RCR Folder on Shared Drive.
A9: 6 | B9: Dealer can contact either Sales Team or Margaret, Andrea, or Kevin for assistance. | C9: Sales Team and Margaret
A10: 7 | B10: Dealer should send completed worksheet to Cash@sdainc.net. | C10: Dealer | D10: Margaret, Kevin and Alecia all receive this email. Only Margaret will manage unless out of the office.
A11: 8 | B11: SDA to acknowledge receipt of worksheet and Thank Dealer for selecting SDA. | C11: Margaret, Andrea, or Kevin | D11: Simple Email
A17: SDA Instructions:
A18: Steps | B18: Instructions | C18: Responsibility | D18: Notes
A19: 1 | B19: SDA to review Assignment Worksheet Tab for complete and accurate information. Any missing data or incorrect information should be clairified with dealer by SDA Team. | C19: Margaret, Andrea, or Kevin
A20: 2 | B20: Once Assignment Worksheet is completed and accurate, SDA Team to update Inputs Tab with the relevant Dealer terms per the Dealer Agreement. Any negotiated terms that are different from the Standard RCR terms should be noted in ACT. | C20: Margaret, Andrea, or Kevin
A21: 3 | B21: All NADA "Average Trade-In" values for the appropriate region should be entered using Wayne Reaves solution. Copy VIN from spreadsheet and enter in WR. Enter NADA "Average Trade-In" Value to the NADA Values Tab. | C21: Margaret, Andrea, or Kevin
A22: 4 | B22: Contact Dealer directly with any questions on VIN lookups, missing or inaccurate VINS, or clarifications on models. | C22: Margaret, Andrea, or Kevin
A23: 5 | B23: Review the Funding Analysis tab to make sure all values are correct, payments are adding up correctly and there are no missing values. | C23: Margaret, Andrea, or Kevin
A24: 6 | B24: If all looks correct, print the reports required to send to the dealer - Funding Reports - by selcting "Control-Shift-I" at the same time. Make sure the correct printer is selected in advance. | C24: Margaret, Andrea, or Kevin
A25: 7 | B25: Compile with the cover letter and send to the dealer. | C25: Margaret, Andrea, or Kevin
A30: Print Macros
A31: Form | B31: Instructions | C31: Funding Reports | D31: All Reports
B32: Confirm that the Printer is set to the preferred printer prior to executing macros.
A33: Assignment Worksheet | B33: Press "Control-Shift-A" together. | C33: Yes | D33: Yes
A34: Input | B34: Press "Control-Shift-B" together. | D34: Yes
A35: NADA Values | B35: Press "Control-Shift-C" together. | D35: Yes
A36: Checklist | B36: Press "Control-Shift-D" together. | D36: Yes
A37: Attachment to Assignment | B37: Press "Control-Shift-E" together. | C37: Yes | D37: Yes
A38: Attachment Payments | B38: Press "Control-Shift-F" together. | C38: Yes | D38: Yes
A39: Funding Analysis | B39: Press "Control-Shift-G" together. | D39: Yes
A40: Payment Schedule | B40: Press "Control-Shift-L" together. | D40: Yes
A41: Funding Reports | B41: Press "Control-Shift-P" together. | D41: Yes
A42: All Reports | B42: Press "Control-Shift-J" together. | D42: Yes
A43: Basis and Term Report | B43: Press :Control-Shift-K" together | D43: Yes
A44: UnHide All Tabs | B44: Press "Control-Shift-U" together
A45: Hide All Tabs | B45: Press "Control-Shift-H" Together
A46: Block Ticket | B46: Press "Control-Shift-M" Together | C46: Yes | D46: Yes
A47: Payment Histories | B47: Press "Control-Shift-N" Together
A48: Customer Swap | B48: Press "Control-Shift-O" Together | D48: Yes
A49: Internal Payment Schedule | B49: Press "Control-Shift-Q" Together | C49: Yes | D49: Yes
